{"text_format":"3","workbook":"xlsx","n_sheets":6,"sheets":["版本記錄","系統功能列表","資料表及主鍵","資料欄位列表","工作表2","memo"],"not_rendered":{"defined_names":3},"read":"whole","date_system":"1900"}

{"sheet":"版本記錄","index":0,"n_rows":5,"n_cols":2,"rows_kept":5}
["日期","主要更新項目"]
["2023-07-15","建立各項資料表/欄位規格"]
[null,"新增資料表（5個資料表）及欄位，先記錄欄位，規格後補"]
["2023-07-30","完成新資料表/欄位的規格說明"]
["2024-08-15","新增欄位:信眾SHA(電話+身份證號)"]

{"sheet":"系統功能列表","index":1,"n_rows":36,"n_cols":2,"rows_kept":36}
["子系統","功能模組"]
["公告","公告分類管理"]
[null,"公告管理"]
[null,"公告檢視"]
["信眾","信眾資料"]
[null,"信眾匯入"]
["活動","活動主類型"]
[null,"活動詳細分類"]
[null,"活動管理"]
["報名","報名管理"]
[null,"報到名單"]
["專案","類別管理"]
[null,"專案管理"]
[null,"贊助報告"]
["基本資料","品項分類管理"]
[null,"品項管理"]
[null,"套表列印設定"]
["掛單","房間管理"]
["帳務","收支項目維護"]
[null,"收支帳戶維護"]
[null,"收支管理"]
["庫存","倉庫資料維護"]
[null,"庫存管理"]
["人事","人員匯入"]
[null,"人員組別管理"]
[null,"職稱管理"]
[null,"人員管理"]
[null,"考勤"]
["權限","使用者登錄"]
[null,"使用者管理"]
[null,"群組資料"]
[null,"群組登錄"]
[null,"變更管理密碼"]
[null,"登入記錄查詢"]
["選項","選項排序"]
[null,"後台設定"]

{"sheet":"資料表及主鍵","index":2,"n_rows":51,"n_cols":6,"rows_kept":51}
["所屬系統","資料表中文名","資料表名稱","主索引欄位","資料表說明","待辦工作"]
["公告","公告分類","news_kind","num","內部公告分類"]
["公告","公告資料主檔","news","num","內部公告資料"]
["公告","公告資料-附件檔","news_files","num, news_id","內部公告附件"]
["信眾","信眾資料","followers","num","信眾資料, 主要供報名用"]
["活動","活動主類型","activity_category_kind","num","基本的活動大分類, 如: 法會, 慈善"]
["活動","活動詳細分類","activity_kind","num","定義常用的活動類型, 包含: 舉辦日期, 相關品項等資訊"]
["活動","活動分類-相關品項","activity_kind_detail","num","記錄該活動類型的相關報名項目"]
["活動","活動主檔","activity","num","單次舉辦的活動, 可依據活動詳細分類定義內容"]
["活動","活動主檔-相關品項","activity_relating","num","該活動可報名的品項, 如: 牌位, 打齋, 掛單"]
["活動","活動主檔-相關備品","activity_spares","num","管理該活動需使用的備品品項"]
["報名","報名主檔","pro_order","order_no","信眾參加活動的報名資料, 也可用於非活動期間的一般報名、贊助"]
["報名","報名明細檔","pro_order_detail","num","報名的詳細品項, 如: 牌位, 打齋, 掛單"]
["報名","(新1)報名收款記錄","pro_order_record","num","(新資料表)"]
["報名","活動報到檔","activity_check","num","活動期間的每日報到記錄"]
["專案","專案類別管理","project_kind","num","專案分類"]
["專案","專案管理","project","num","對應記錄執行過程的報名項目做專案記錄管理, 用於對贊助者報告"]
["專案","專案管理-活動資料","project_sub","num","記錄應向贊助者報告的執行記錄, 也可定義專案SOP"]
["基本資料","品項管理主檔","actItem","num","定義所有類型的品項基本資料: 報名, 掛單, 備品, 庫存品"]
["基本資料","品項相關文件檔","actItem_files","num","定義該品項相關的表單套印設計"]
["基本資料","品項分類管理","actItem_kind","num","定義品項分類"]
["基本資料","套表列印設定","files","num","表單套印設計, 以HTML加上定義的報名相關資訊欄位"]
["掛單","房間管理主檔","bed_kind","num","管理:寮房的樓層/房間"]
["掛單","房間管理-床位明細","bed_kind_detail","num","管理:寮房的床位"]
["掛單","報名-掛單主檔","bed_order","bed_order_no","附屬於報名系統, 記錄掛單人員, 日期, 狀態"]
["掛單","報名-掛單明細","bed_order_detail","num","記錄掛單每日的:日期, 床位"]
["帳務","收支管理主檔","accounting","num","記錄日常收支作業, 類似存摺記錄"]
["帳務","收支附件檔","accounting_files","num","日常收支憑證圖檔, 如: 發票, 收據..等"]
["帳務","收支項目維護","accounting_kind","num","定義收支項目名稱, 及對應會計科目編號"]
["帳務","收支帳戶維護","accounting_kind2","num","定義帳戶資料, 及對應會計科目編號"]
["庫存","倉庫資料主檔","stock_kind","num","定義庫存品存放位置"]
["庫存","庫存管理主檔","stock","num","記錄物品進出記錄"]
["庫存","庫存管理-檔案附件","stock_files","num","倉庫憑證圖檔, 如: 簽收單, 借據..等"]
["庫存","庫存異動原因","stock_reason","num","(新資料表)"]
["庫存","(新3)供應商主檔","supplier","num","(新資料表)"]
["庫存","供應商類型","supplier_kind","num","(新資料表)"]
["人事","人員主檔","member","num","工作人員基本資料建檔"]
["人事","考勤","member_check","num","工作人員出勤記錄"]
["人事","人員組別管理","member_group","num","部門組別資料定義"]
["人事","職稱管理","member_title","num","人員職稱基本定義"]
["權限","使用者管理","admin","num","登入系統的使用者帳號"]
["權限","群組資料","admin_group","g_name","權限群組資料, 使用權限是基於群組設定的"]
["權限","登入記錄查詢","admin_log","num","使用者登入或使用系統的記錄"]
["選項","選項設定檔","item","num","系統主選單管理"]
["選項","後台設定檔","company","num","系統基本資料檔"]
["選項","縣市資料檔","PostCity","city","縣市資料"]
["選項","縣市-郵遞區號檔","PostNumber","ID","行政區及郵遞區號資料"]
["基本資料","品項層級檔","act_bom","num","2層式:功德主/牌位結構(BOM)"]
["信眾","稱謂資料檔","appellation","num","稱謂資料檔"]
["基本資料","國家資料檔","country","ID","國家資料檔"]
["信眾","信眾牌位檔","followers_tablet","num","信眾預設牌位標題"]

{"sheet":"資料欄位列表","index":3,"n_rows":457,"n_cols":11,"rows_kept":457}
["所屬系統","資料表中文名","TABLE.COL","資料表名稱","欄位名稱","資料型態","最大長度","可為空值","中文名稱(*必填)","值 / 關聯查詢","欄位說明"]
[{"$f":"_xlfn.XLOOKUP(D2,資料表及主鍵!C:C,資料表及主鍵!A:A)","v":"帳務"},{"$f":"_xlfn.XLOOKUP(D2,資料表及主鍵!C:C,資料表及主鍵!B:B)","v":"收支管理主檔"},{"$f":"D2&\".\"&E2","v":"accounting.num"},"accounting","num",null,null,"否","自動編號"]
[{"$f":"_xlfn.XLOOKUP(D3,資料表及主鍵!C:C,資料表及主鍵!A:A)","v":"帳務"},{"$f":"_xlfn.XLOOKUP(D3,資料表及主鍵!C:C,資料表及主鍵!B:B)","v":"收支管理主檔"},"accounting.uptime","accounting","uptime",null,null,"是","單據日期 *"]
[{"$f":"_xlfn.XLOOKUP(D4,資料表及主鍵!C:C,資料表及主鍵!A:A)","v":"帳務"},{"$f":"_xlfn.XLOOKUP(D4,資料表及主鍵!C:C,資料表及主鍵!B:B)","v":"收支管理主檔"},"accounting.reg_time","accounting","reg_time","datetime",null,"是","登記時間"]
[{"$f":"_xlfn.XLOOKUP(D5,資料表及主鍵!C:C,資料表及主鍵!A:A)","v":"帳務"},{"$f":"_xlfn.XLOOKUP(D5,資料表及主鍵!C:C,資料表及主鍵!B:B)","v":"收支管理主檔"},"accounting.category","accounting","category",null,null,"是","收支類別 *","收入, 支出"]
[{"$f":"_xlfn.XLOOKUP(D6,資料表及主鍵!C:C,資料表及主鍵!A:A)","v":"帳務"},{"$f":"_xlfn.XLOOKUP(D6,資料表及主鍵!C:C,資料表及主鍵!B:B)","v":"收支管理主檔"},"accounting.kind","accounting","kind",null,null,"是","收支項目 *","查詢:收支項目"]
[{"$f":"_xlfn.XLOOKUP(D7,資料表及主鍵!C:C,資料表及主鍵!A:A)","v":"帳務"},{"$f":"_xlfn.XLOOKUP(D7,資料表及主鍵!C:C,資料表及主鍵!B:B)","v":"收支管理主檔"},"accounting.kind2","accounting","kind2",null,null,"是","收支帳戶 *","查詢:收支帳戶"]
[{"$f":"_xlfn.XLOOKUP(D8,資料表及主鍵!C:C,資料表及主鍵!A:A)","v":"帳務"},{"$f":"_xlfn.XLOOKUP(D8,資料表及主鍵!C:C,資料表及主鍵!B:B)","v":"收支管理主檔"},"accounting.price","accounting","price",null,null,"是","未稅金額 *"]
[{"$f":"_xlfn.XLOOKUP(D9,資料表及主鍵!C:C,資料表及主鍵!A:A)","v":"帳務"},{"$f":"_xlfn.XLOOKUP(D9,資料表及主鍵!C:C,資料表及主鍵!B:B)","v":"收支管理主檔"},"accounting.tax","accounting","tax",null,null,"是","稅額 *"]
[{"$f":"_xlfn.XLOOKUP(D10,資料表及主鍵!C:C,資料表及主鍵!A:A)","v":"帳務"},{"$f":"_xlfn.XLOOKUP(D10,資料表及主鍵!C:C,資料表及主鍵!B:B)","v":"收支管理主檔"},"accounting.demo","accounting","demo",null,"MAX","是","備註"]
[{"$f":"_xlfn.XLOOKUP(D11,資料表及主鍵!C:C,資料表及主鍵!A:A)","v":"帳務"},{"$f":"_xlfn.XLOOKUP(D11,資料表及主鍵!C:C,資料表及主鍵!B:B)","v":"收支管理主檔"},"accounting.mem_num","accounting","mem_num",null,null,"是","內部負責人 *","查詢:人員"]
[{"$f":"_xlfn.XLOOKUP(D12,資料表及主鍵!C:C,資料表及主鍵!A:A)","v":"帳務"},{"$f":"_xlfn.XLOOKUP(D12,資料表及主鍵!C:C,資料表及主鍵!B:B)","v":"收支管理主檔"},"accounting.debtor","accounting","debtor",null,40,"是","外部負責人"]
[{"$f":"_xlfn.XLOOKUP(D13,資料表及主鍵!C:C,資料表及主鍵!A:A)","v":"帳務"},{"$f":"_xlfn.XLOOKUP(D13,資料表及主鍵!C:C,資料表及主鍵!B:B)","v":"收支管理主檔"},"accounting.activity_num","accounting","activity_num",null,null,"是","相關活動","查詢:活動主檔"]
[{"$f":"_xlfn.XLOOKUP(D14,資料表及主鍵!C:C,資料表及主鍵!A:A)","v":"帳務"},{"$f":"_xlfn.XLOOKUP(D14,資料表及主鍵!C:C,資料表及主鍵!B:B)","v":"收支管理主檔"},"accounting.excerpt","accounting","excerpt",null,"MAX","是","(新欄位)"]
[{"$f":"_xlfn.XLOOKUP(D15,資料表及主鍵!C:C,資料表及主鍵!A:A)","v":"基本資料"},{"$f":"_xlfn.XLOOKUP(D15,資料表及主鍵!C:C,資料表及主鍵!B:B)","v":"套表列印設定"},"files.num","files","num",null,null,"否","自動編號"]
[{"$f":"_xlfn.XLOOKUP(D16,資料表及主鍵!C:C,資料表及主鍵!A:A)","v":"基本資料"},{"$f":"_xlfn.XLOOKUP(D16,資料表及主鍵!C:C,資料表及主鍵!B:B)","v":"套表列印設定"},"files.subject","files","subject",null,100,"是","文件名稱 *"]
[{"$f":"_xlfn.XLOOKUP(D17,資料表及主鍵!C:C,資料表及主鍵!A:A)","v":"基本資料"},{"$f":"_xlfn.XLOOKUP(D17,資料表及主鍵!C:C,資料表及主鍵!B:B)","v":"套表列印設定"},"files.word","files","word",null,"MAX","是","內容 *","(HTML編輯器)","以HTML編輯, 並定義套用欄位"]
[{"$f":"_xlfn.XLOOKUP(D18,資料表及主鍵!C:C,資料表及主鍵!A:A)","v":"基本資料"},{"$f":"_xlfn.XLOOKUP(D18,資料表及主鍵!C:C,資料表及主鍵!B:B)","v":"套表列印設定"},"files.reg_time","files","reg_time",null,null,"是","建立日期 *"]
[{"$f":"_xlfn.XLOOKUP(D19,資料表及主鍵!C:C,資料表及主鍵!A:A)","v":"基本資料"},{"$f":"_xlfn.XLOOKUP(D19,資料表及主鍵!C:C,資料表及主鍵!B:B)","v":"套表列印設定"},"files.modify_time","files","modify_time",null,null,"是","最後修改日期","(自動記錄)"]
[{"$f":"_xlfn.XLOOKUP(D20,資料表及主鍵!C:C,資料表及主鍵!A:A)","v":"基本資料"},{"$f":"_xlfn.XLOOKUP(D20,資料表及主鍵!C:C,資料表及主鍵!B:B)","v":"套表列印設定"},"files.customize_data","files","customize_data",null,"MAX","是","自定義欄位需求",null,"報表套印的自訂變數"]
[{"$f":"_xlfn.XLOOKUP(D21,資料表及主鍵!C:C,資料表及主鍵!A:A)","v":"基本資料"},{"$f":"_xlfn.XLOOKUP(D21,資料表及主鍵!C:C,資料表及主鍵!B:B)","v":"套表列印設定"},"files.paperset","files","paperset",null,30,"是","紙張設定",null,"紙張設定參數值"]
[{"$f":"_xlfn.XLOOKUP(D22,資料表及主鍵!C:C,資料表及主鍵!A:A)","v":"權限"},{"$f":"_xlfn.XLOOKUP(D22,資料表及主鍵!C:C,資料表及主鍵!B:B)","v":"群組資料"},"admin_group.g_name","admin_group","g_name",null,6,"否","群組代號 *"]
[{"$f":"_xlfn.XLOOKUP(D23,資料表及主鍵!C:C,資料表及主鍵!A:A)","v":"權限"},{"$f":"_xlfn.XLOOKUP(D23,資料表及主鍵!C:C,資料表及主鍵!B:B)","v":"群組資料"},"admin_group.items","admin_group","items",null,510,"是","群組權限","(多項勾選有權限的選項)","以逗點分隔多組選項編號"]
[{"$f":"_xlfn.XLOOKUP(D24,資料表及主鍵!C:C,資料表及主鍵!A:A)","v":"權限"},{"$f":"_xlfn.XLOOKUP(D24,資料表及主鍵!C:C,資料表及主鍵!B:B)","v":"群組資料"},"admin_group.demo","admin_group","demo",null,200,"是","群組名稱 *"]
[{"$f":"_xlfn.XLOOKUP(D25,資料表及主鍵!C:C,資料表及主鍵!A:A)","v":"權限"},{"$f":"_xlfn.XLOOKUP(D25,資料表及主鍵!C:C,資料表及主鍵!B:B)","v":"使用者管理"},"admin.num","admin","num",null,null,"否","自動編號"]
[{"$f":"_xlfn.XLOOKUP(D26,資料表及主鍵!C:C,資料表及主鍵!A:A)","v":"權限"},{"$f":"_xlfn.XLOOKUP(D26,資料表及主鍵!C:C,資料表及主鍵!B:B)","v":"使用者管理"},"admin.u_id","admin","u_id",null,100,"是","帳號 *"]
[{"$f":"_xlfn.XLOOKUP(D27,資料表及主鍵!C:C,資料表及主鍵!A:A)","v":"權限"},{"$f":"_xlfn.XLOOKUP(D27,資料表及主鍵!C:C,資料表及主鍵!B:B)","v":"使用者管理"},"admin.u_password","admin","u_password",null,"MAX","是","密碼 * "]
[{"$f":"_xlfn.XLOOKUP(D28,資料表及主鍵!C:C,資料表及主鍵!A:A)","v":"權限"},{"$f":"_xlfn.XLOOKUP(D28,資料表及主鍵!C:C,資料表及主鍵!B:B)","v":"使用者管理"},"admin.u_name","admin","u_name",null,100,"是","姓名 *"]
[{"$f":"_xlfn.XLOOKUP(D29,資料表及主鍵!C:C,資料表及主鍵!A:A)","v":"權限"},{"$f":"_xlfn.XLOOKUP(D29,資料表及主鍵!C:C,資料表及主鍵!B:B)","v":"使用者管理"},"admin.sex","admin","sex",null,4,"是","-"]
[{"$f":"_xlfn.XLOOKUP(D30,資料表及主鍵!C:C,資料表及主鍵!A:A)","v":"權限"},{"$f":"_xlfn.XLOOKUP(D30,資料表及主鍵!C:C,資料表及主鍵!B:B)","v":"使用者管理"},"admin.kind","admin","kind",null,20,"是","-"]
[{"$f":"_xlfn.XLOOKUP(D31,資料表及主鍵!C:C,資料表及主鍵!A:A)","v":"權限"},{"$f":"_xlfn.XLOOKUP(D31,資料表及主鍵!C:C,資料表及主鍵!B:B)","v":"使用者管理"},"admin.phone1","admin","phone1",null,100,"是","-"]
[{"$f":"_xlfn.XLOOKUP(D32,資料表及主鍵!C:C,資料表及主鍵!A:A)","v":"權限"},{"$f":"_xlfn.XLOOKUP(D32,資料表及主鍵!C:C,資料表及主鍵!B:B)","v":"使用者管理"},"admin.phone2","admin","phone2",null,100,"是","-"]
[{"$f":"_xlfn.XLOOKUP(D33,資料表及主鍵!C:C,資料表及主鍵!A:A)","v":"權限"},{"$f":"_xlfn.XLOOKUP(D33,資料表及主鍵!C:C,資料表及主鍵!B:B)","v":"使用者管理"},"admin.birthday","admin","birthday",null,null,"是","-"]
[{"$f":"_xlfn.XLOOKUP(D34,資料表及主鍵!C:C,資料表及主鍵!A:A)","v":"權限"},{"$f":"_xlfn.XLOOKUP(D34,資料表及主鍵!C:C,資料表及主鍵!B:B)","v":"使用者管理"},"admin.email","admin","email",null,400,"是","-"]
[{"$f":"_xlfn.XLOOKUP(D35,資料表及主鍵!C:C,資料表及主鍵!A:A)","v":"權限"},{"$f":"_xlfn.XLOOKUP(D35,資料表及主鍵!C:C,資料表及主鍵!B:B)","v":"使用者管理"},"admin.city","admin","city",null,20,"是","-"]
[{"$f":"_xlfn.XLOOKUP(D36,資料表及主鍵!C:C,資料表及主鍵!A:A)","v":"權限"},{"$f":"_xlfn.XLOOKUP(D36,資料表及主鍵!C:C,資料表及主鍵!B:B)","v":"使用者管理"},"admin.area","admin","area",null,100,"是","-"]
[{"$f":"_xlfn.XLOOKUP(D37,資料表及主鍵!C:C,資料表及主鍵!A:A)","v":"權限"},{"$f":"_xlfn.XLOOKUP(D37,資料表及主鍵!C:C,資料表及主鍵!B:B)","v":"使用者管理"},"admin.address","admin","address",null,510,"是","-"]
[{"$f":"_xlfn.XLOOKUP(D38,資料表及主鍵!C:C,資料表及主鍵!A:A)","v":"權限"},{"$f":"_xlfn.XLOOKUP(D38,資料表及主鍵!C:C,資料表及主鍵!B:B)","v":"使用者管理"},"admin.uid","admin","uid",null,40,"是","-"]
[{"$f":"_xlfn.XLOOKUP(D39,資料表及主鍵!C:C,資料表及主鍵!A:A)","v":"權限"},{"$f":"_xlfn.XLOOKUP(D39,資料表及主鍵!C:C,資料表及主鍵!B:B)","v":"使用者管理"},"admin.demo","admin","demo",null,"MAX","是","-"]
[{"$f":"_xlfn.XLOOKUP(D40,資料表及主鍵!C:C,資料表及主鍵!A:A)","v":"權限"},{"$f":"_xlfn.XLOOKUP(D40,資料表及主鍵!C:C,資料表及主鍵!B:B)","v":"使用者管理"},"admin.power","admin","power",null,6,"是","所屬群組 *","查詢:群組"]
[{"$f":"_xlfn.XLOOKUP(D41,資料表及主鍵!C:C,資料表及主鍵!A:A)","v":"權限"},{"$f":"_xlfn.XLOOKUP(D41,資料表及主鍵!C:C,資料表及主鍵!B:B)","v":"使用者管理"},"admin.online","admin","online",null,null,"否","狀態 *","啟用/停權"]
[{"$f":"_xlfn.XLOOKUP(D42,資料表及主鍵!C:C,資料表及主鍵!A:A)","v":"權限"},{"$f":"_xlfn.XLOOKUP(D42,資料表及主鍵!C:C,資料表及主鍵!B:B)","v":"使用者管理"},"admin.reg_time","admin","reg_time",null,null,"是","登錄時間"]
[{"$f":"_xlfn.XLOOKUP(D43,資料表及主鍵!C:C,資料表及主鍵!A:A)","v":"權限"},{"$f":"_xlfn.XLOOKUP(D43,資料表及主鍵!C:C,資料表及主鍵!B:B)","v":"使用者管理"},"admin.login_time","admin","login_time",null,null,"是","最近登入時間"]
[{"$f":"_xlfn.XLOOKUP(D44,資料表及主鍵!C:C,資料表及主鍵!A:A)","v":"權限"},{"$f":"_xlfn.XLOOKUP(D44,資料表及主鍵!C:C,資料表及主鍵!B:B)","v":"使用者管理"},"admin.login_ip","admin","login_ip",null,100,"是","最近登入IP"]
[{"$f":"_xlfn.XLOOKUP(D45,資料表及主鍵!C:C,資料表及主鍵!A:A)","v":"權限"},{"$f":"_xlfn.XLOOKUP(D45,資料表及主鍵!C:C,資料表及主鍵!B:B)","v":"使用者管理"},"admin.login_code","admin","login_code",null,20,"是","-"]
[{"$f":"_xlfn.XLOOKUP(D46,資料表及主鍵!C:C,資料表及主鍵!A:A)","v":"權限"},{"$f":"_xlfn.XLOOKUP(D46,資料表及主鍵!C:C,資料表及主鍵!B:B)","v":"使用者管理"},"admin.adwidth","admin","adwidth",null,20,"是","-"]
[{"$f":"_xlfn.XLOOKUP(D47,資料表及主鍵!C:C,資料表及主鍵!A:A)","v":"權限"},{"$f":"_xlfn.XLOOKUP(D47,資料表及主鍵!C:C,資料表及主鍵!B:B)","v":"使用者管理"},"admin.wrp_news","admin","wrp_news",null,2,"是","-"]
[{"$f":"_xlfn.XLOOKUP(D48,資料表及主鍵!C:C,資料表及主鍵!A:A)","v":"權限"},{"$f":"_xlfn.XLOOKUP(D48,資料表及主鍵!C:C,資料表及主鍵!B:B)","v":"使用者管理"},"admin.wrp_bar","admin","wrp_bar",null,2,"是","-"]
[{"$f":"_xlfn.XLOOKUP(D49,資料表及主鍵!C:C,資料表及主鍵!A:A)","v":"權限"},{"$f":"_xlfn.XLOOKUP(D49,資料表及主鍵!C:C,資料表及主鍵!B:B)","v":"使用者管理"},"admin.gauth_key","admin","gauth_key","nvarchar","MAX","是","Google 驗證綁定碼"]
[{"$f":"_xlfn.XLOOKUP(D50,資料表及主鍵!C:C,資料表及主鍵!A:A)","v":"權限"},{"$f":"_xlfn.XLOOKUP(D50,資料表及主鍵!C:C,資料表及主鍵!B:B)","v":"使用者管理"},"admin.gauth_enabled","admin","gauth_enabled","bit",null,"是","Google 驗證啟用","(勾選)"]
[{"$f":"_xlfn.XLOOKUP(D51,資料表及主鍵!C:C,資料表及主鍵!A:A)","v":"選項"},{"$f":"_xlfn.XLOOKUP(D51,資料表及主鍵!C:C,資料表及主鍵!B:B)","v":"縣市資料檔"},"PostCity.city","PostCity","city","nvarchar",20,"是","縣市名稱"]
[{"$f":"_xlfn.XLOOKUP(D52,資料表及主鍵!C:C,資料表及主鍵!A:A)","v":"庫存"},{"$f":"_xlfn.XLOOKUP(D52,資料表及主鍵!C:C,資料表及主鍵!B:B)","v":"庫存管理-檔案附件"},"stock_files.num","stock_files","num","int",null,"否","自動編號"]
[{"$f":"_xlfn.XLOOKUP(D53,資料表及主鍵!C:C,資料表及主鍵!A:A)","v":"庫存"},{"$f":"_xlfn.XLOOKUP(D53,資料表及主鍵!C:C,資料表及主鍵!B:B)","v":"庫存管理-檔案附件"},"stock_files.stock_num","stock_files","stock_num","int",null,"是","庫存記錄編號","主檔/明細關聯:庫存管理主檔"]
[{"$f":"_xlfn.XLOOKUP(D54,資料表及主鍵!C:C,資料表及主鍵!A:A)","v":"庫存"},{"$f":"_xlfn.XLOOKUP(D54,資料表及主鍵!C:C,資料表及主鍵!B:B)","v":"庫存管理-檔案附件"},"stock_files.reg_time","stock_files","reg_time","datetime",null,"是","登錄時間"]
[{"$f":"_xlfn.XLOOKUP(D55,資料表及主鍵!C:C,資料表及主鍵!A:A)","v":"庫存"},{"$f":"_xlfn.XLOOKUP(D55,資料表及主鍵!C:C,資料表及主鍵!B:B)","v":"庫存管理-檔案附件"},"stock_files.pic1","stock_files","pic1","nvarchar",100,"是","圖檔/檔名"]
[{"$f":"_xlfn.XLOOKUP(D56,資料表及主鍵!C:C,資料表及主鍵!A:A)","v":"庫存"},{"$f":"_xlfn.XLOOKUP(D56,資料表及主鍵!C:C,資料表及主鍵!B:B)","v":"庫存管理-檔案附件"},"stock_files.pic1_name","stock_files","pic1_name","nvarchar",300,"是","原始圖檔/檔名"]
[{"$f":"_xlfn.XLOOKUP(D57,資料表及主鍵!C:C,資料表及主鍵!A:A)","v":"掛單"},{"$f":"_xlfn.XLOOKUP(D57,資料表及主鍵!C:C,資料表及主鍵!B:B)","v":"房間管理主檔"},"bed_kind.num","bed_kind","num","int",null,"否","自動編號"]
[{"$f":"_xlfn.XLOOKUP(D58,資料表及主鍵!C:C,資料表及主鍵!A:A)","v":"掛單"},{"$f":"_xlfn.XLOOKUP(D58,資料表及主鍵!C:C,資料表及主鍵!B:B)","v":"房間管理主檔"},"bed_kind.kind","bed_kind","kind","nvarchar",200,"是","樓層/房間名稱 *"]
[{"$f":"_xlfn.XLOOKUP(D59,資料表及主鍵!C:C,資料表及主鍵!A:A)","v":"掛單"},{"$f":"_xlfn.XLOOKUP(D59,資料表及主鍵!C:C,資料表及主鍵!B:B)","v":"房間管理主檔"},"bed_kind.root","bed_kind","root","int",null,"是","上層編號"]
[{"$f":"_xlfn.XLOOKUP(D60,資料表及主鍵!C:C,資料表及主鍵!A:A)","v":"掛單"},{"$f":"_xlfn.XLOOKUP(D60,資料表及主鍵!C:C,資料表及主鍵!B:B)","v":"房間管理主檔"},"bed_kind.range","bed_kind","range","int",null,"是","-"]
[{"$f":"_xlfn.XLOOKUP(D61,資料表及主鍵!C:C,資料表及主鍵!A:A)","v":"掛單"},{"$f":"_xlfn.XLOOKUP(D61,資料表及主鍵!C:C,資料表及主鍵!B:B)","v":"房間管理主檔"},"bed_kind.demo","bed_kind","demo","nvarchar","MAX","是","備註"]
[{"$f":"_xlfn.XLOOKUP(D62,資料表及主鍵!C:C,資料表及主鍵!A:A)","v":"掛單"},{"$f":"_xlfn.XLOOKUP(D62,資料表及主鍵!C:C,資料表及主鍵!B:B)","v":"房間管理主檔"},"bed_kind.sex","bed_kind","sex","nvarchar",4,"是","樓層類型 *","男眾/女眾"]
[{"$f":"_xlfn.XLOOKUP(D63,資料表及主鍵!C:C,資料表及主鍵!A:A)","v":"選項"},{"$f":"_xlfn.XLOOKUP(D63,資料表及主鍵!C:C,資料表及主鍵!B:B)","v":"縣市-郵遞區號檔"},"PostNumber.ID","PostNumber","ID","int",null,"是","自動編號"]
[{"$f":"_xlfn.XLOOKUP(D64,資料表及主鍵!C:C,資料表及主鍵!A:A)","v":"選項"},{"$f":"_xlfn.XLOOKUP(D64,資料表及主鍵!C:C,資料表及主鍵!B:B)","v":"縣市-郵遞區號檔"},"PostNumber.PostNumber","PostNumber","PostNumber","nvarchar",510,"是","郵遞區號"]
[{"$f":"_xlfn.XLOOKUP(D65,資料表及主鍵!C:C,資料表及主鍵!A:A)","v":"選項"},{"$f":"_xlfn.XLOOKUP(D65,資料表及主鍵!C:C,資料表及主鍵!B:B)","v":"縣市-郵遞區號檔"},"PostNumber.City","PostNumber","City","nvarchar",510,"是","縣市名稱"]
[{"$f":"_xlfn.XLOOKUP(D66,資料表及主鍵!C:C,資料表及主鍵!A:A)","v":"選項"},{"$f":"_xlfn.XLOOKUP(D66,資料表及主鍵!C:C,資料表及主鍵!B:B)","v":"縣市-郵遞區號檔"},"PostNumber.Area","PostNumber","Area","nvarchar",510,"是","行政區名稱"]
[{"$f":"_xlfn.XLOOKUP(D67,資料表及主鍵!C:C,資料表及主鍵!A:A)","v":"帳務"},{"$f":"_xlfn.XLOOKUP(D67,資料表及主鍵!C:C,資料表及主鍵!B:B)","v":"收支附件檔"},"accounting_files.num","accounting_files","num","int",null,"否","自動編號"]
[{"$f":"_xlfn.XLOOKUP(D68,資料表及主鍵!C:C,資料表及主鍵!A:A)","v":"帳務"},{"$f":"_xlfn.XLOOKUP(D68,資料表及主鍵!C:C,資料表及主鍵!B:B)","v":"收支附件檔"},"accounting_files.accounting_num","accounting_files","accounting_num","int",null,"是","收支主檔-關聯"]
[{"$f":"_xlfn.XLOOKUP(D69,資料表及主鍵!C:C,資料表及主鍵!A:A)","v":"帳務"},{"$f":"_xlfn.XLOOKUP(D69,資料表及主鍵!C:C,資料表及主鍵!B:B)","v":"收支附件檔"},"accounting_files.reg_time","accounting_files","reg_time","datetime",null,"是","上傳時間"]
[{"$f":"_xlfn.XLOOKUP(D70,資料表及主鍵!C:C,資料表及主鍵!A:A)","v":"帳務"},{"$f":"_xlfn.XLOOKUP(D70,資料表及主鍵!C:C,資料表及主鍵!B:B)","v":"收支附件檔"},"accounting_files.pic1","accounting_files","pic1","nvarchar",100,"是","磁碟檔名"]
[{"$f":"_xlfn.XLOOKUP(D71,資料表及主鍵!C:C,資料表及主鍵!A:A)","v":"帳務"},{"$f":"_xlfn.XLOOKUP(D71,資料表及主鍵!C:C,資料表及主鍵!B:B)","v":"收支附件檔"},"accounting_files.pic1_name","accounting_files","pic1_name","nvarchar",300,"是","上傳檔名"]
[{"$f":"_xlfn.XLOOKUP(D72,資料表及主鍵!C:C,資料表及主鍵!A:A)","v":"權限"},{"$f":"_xlfn.XLOOKUP(D72,資料表及主鍵!C:C,資料表及主鍵!B:B)","v":"登入記錄查詢"},"admin_log.num","admin_log","num","int",null,"否","自動編號"]
[{"$f":"_xlfn.XLOOKUP(D73,資料表及主鍵!C:C,資料表及主鍵!A:A)","v":"權限"},{"$f":"_xlfn.XLOOKUP(D73,資料表及主鍵!C:C,資料表及主鍵!B:B)","v":"登入記錄查詢"},"admin_log.u_id","admin_log","u_id","nvarchar",100,"是","帳號"]
[{"$f":"_xlfn.XLOOKUP(D74,資料表及主鍵!C:C,資料表及主鍵!A:A)","v":"權限"},{"$f":"_xlfn.XLOOKUP(D74,資料表及主鍵!C:C,資料表及主鍵!B:B)","v":"登入記錄查詢"},"admin_log.login_time","admin_log","login_time","datetime",null,"是","登入時間"]
[{"$f":"_xlfn.XLOOKUP(D75,資料表及主鍵!C:C,資料表及主鍵!A:A)","v":"權限"},{"$f":"_xlfn.XLOOKUP(D75,資料表及主鍵!C:C,資料表及主鍵!B:B)","v":"登入記錄查詢"},"admin_log.login_ip","admin_log","login_ip","nvarchar",100,"是","登入IP"]
[{"$f":"_xlfn.XLOOKUP(D76,資料表及主鍵!C:C,資料表及主鍵!A:A)","v":"權限"},{"$f":"_xlfn.XLOOKUP(D76,資料表及主鍵!C:C,資料表及主鍵!B:B)","v":"登入記錄查詢"},"admin_log.status","admin_log","status","int",null,"是","狀態"]
[{"$f":"_xlfn.XLOOKUP(D77,資料表及主鍵!C:C,資料表及主鍵!A:A)","v":"權限"},{"$f":"_xlfn.XLOOKUP(D77,資料表及主鍵!C:C,資料表及主鍵!B:B)","v":"登入記錄查詢"},"admin_log.agent","admin_log","agent","nvarchar",10,"是","登入設備型態"]
[{"$f":"_xlfn.XLOOKUP(D78,資料表及主鍵!C:C,資料表及主鍵!A:A)","v":"權限"},{"$f":"_xlfn.XLOOKUP(D78,資料表及主鍵!C:C,資料表及主鍵!B:B)","v":"登入記錄查詢"},"admin_log.word","admin_log","word","nvarchar",255,"是","(新欄位)"]
[{"$f":"_xlfn.XLOOKUP(D79,資料表及主鍵!C:C,資料表及主鍵!A:A)","v":"權限"},{"$f":"_xlfn.XLOOKUP(D79,資料表及主鍵!C:C,資料表及主鍵!B:B)","v":"登入記錄查詢"},"admin_log.systems","admin_log","systems","int",null,"是","系統代號"]
[{"$f":"_xlfn.XLOOKUP(D80,資料表及主鍵!C:C,資料表及主鍵!A:A)","v":"掛單"},{"$f":"_xlfn.XLOOKUP(D80,資料表及主鍵!C:C,資料表及主鍵!B:B)","v":"報名-掛單主檔"},"bed_order.bed_order_no","bed_order","bed_order_no","nvarchar",40,"否","單號"]
[{"$f":"_xlfn.XLOOKUP(D81,資料表及主鍵!C:C,資料表及主鍵!A:A)","v":"掛單"},{"$f":"_xlfn.XLOOKUP(D81,資料表及主鍵!C:C,資料表及主鍵!B:B)","v":"報名-掛單主檔"},"bed_order.order_no","bed_order","order_no","nvarchar",40,"是","來源單號","(由報名作業自動連結帶入)","來源的報名單號"]
[{"$f":"_xlfn.XLOOKUP(D82,資料表及主鍵!C:C,資料表及主鍵!A:A)","v":"掛單"},{"$f":"_xlfn.XLOOKUP(D82,資料表及主鍵!C:C,資料表及主鍵!B:B)","v":"報名-掛單主檔"},"bed_order.o_detail_id","bed_order","o_detail_id","int",null,"是","來源單號-明細編號","(由報名作業自動連結帶入)","來源的報名明細項目"]
[{"$f":"_xlfn.XLOOKUP(D83,資料表及主鍵!C:C,資料表及主鍵!A:A)","v":"掛單"},{"$f":"_xlfn.XLOOKUP(D83,資料表及主鍵!C:C,資料表及主鍵!B:B)","v":"報名-掛單主檔"},"bed_order.start_date","bed_order","start_date","datetime",null,"是","掛單起始日 *"]
[{"$f":"_xlfn.XLOOKUP(D84,資料表及主鍵!C:C,資料表及主鍵!A:A)","v":"掛單"},{"$f":"_xlfn.XLOOKUP(D84,資料表及主鍵!C:C,資料表及主鍵!B:B)","v":"報名-掛單主檔"},"bed_order.end_date","bed_order","end_date","datetime",null,"是","掛單結束日 *"]
[{"$f":"_xlfn.XLOOKUP(D85,資料表及主鍵!C:C,資料表及主鍵!A:A)","v":"掛單"},{"$f":"_xlfn.XLOOKUP(D85,資料表及主鍵!C:C,資料表及主鍵!B:B)","v":"報名-掛單主檔"},"bed_order.phone","bed_order","phone","nvarchar","MAX","是","聯絡電話"]
[{"$f":"_xlfn.XLOOKUP(D86,資料表及主鍵!C:C,資料表及主鍵!A:A)","v":"掛單"},{"$f":"_xlfn.XLOOKUP(D86,資料表及主鍵!C:C,資料表及主鍵!B:B)","v":"報名-掛單主檔"},"bed_order.keyin1","bed_order","keyin1","nvarchar",4,"是","單據狀態 *","已入住/未入住"]
[{"$f":"_xlfn.XLOOKUP(D87,資料表及主鍵!C:C,資料表及主鍵!A:A)","v":"掛單"},{"$f":"_xlfn.XLOOKUP(D87,資料表及主鍵!C:C,資料表及主鍵!B:B)","v":"報名-掛單主檔"},"bed_order.demo","bed_order","demo","nvarchar","MAX","是","備註"]
[{"$f":"_xlfn.XLOOKUP(D88,資料表及主鍵!C:C,資料表及主鍵!A:A)","v":"掛單"},{"$f":"_xlfn.XLOOKUP(D88,資料表及主鍵!C:C,資料表及主鍵!B:B)","v":"報名-掛單主檔"},"bed_order.reg_time","bed_order","reg_time","datetime",null,"是","登錄時間"]
[{"$f":"_xlfn.XLOOKUP(D89,資料表及主鍵!C:C,資料表及主鍵!A:A)","v":"活動"},{"$f":"_xlfn.XLOOKUP(D89,資料表及主鍵!C:C,資料表及主鍵!B:B)","v":"活動主檔-相關品項"},"activity_relating.num","activity_relating","num","int",null,"否","自動編號"]
[{"$f":"_xlfn.XLOOKUP(D90,資料表及主鍵!C:C,資料表及主鍵!A:A)","v":"活動"},{"$f":"_xlfn.XLOOKUP(D90,資料表及主鍵!C:C,資料表及主鍵!B:B)","v":"活動主檔-相關品項"},"activity_relating.activity_num","activity_relating","activity_num","int",null,"否","相關活動","主檔/明細關聯:活動詳細分類"]
[{"$f":"_xlfn.XLOOKUP(D91,資料表及主鍵!C:C,資料表及主鍵!A:A)","v":"活動"},{"$f":"_xlfn.XLOOKUP(D91,資料表及主鍵!C:C,資料表及主鍵!B:B)","v":"活動主檔-相關品項"},"activity_relating.actItem_num","activity_relating","actItem_num","int",null,"否","相關品項","查詢:活動品項"]
[{"$f":"_xlfn.XLOOKUP(D92,資料表及主鍵!C:C,資料表及主鍵!A:A)","v":"活動"},{"$f":"_xlfn.XLOOKUP(D92,資料表及主鍵!C:C,資料表及主鍵!B:B)","v":"活動主檔-相關品項"},"activity_relating.price","activity_relating","price","real",null,"是","預設金額"]
[{"$f":"_xlfn.XLOOKUP(D93,資料表及主鍵!C:C,資料表及主鍵!A:A)","v":"活動"},{"$f":"_xlfn.XLOOKUP(D93,資料表及主鍵!C:C,資料表及主鍵!B:B)","v":"活動主檔-相關品項"},"activity_relating.qty","activity_relating","qty","int",null,"是","數量"]
[{"$f":"_xlfn.XLOOKUP(D94,資料表及主鍵!C:C,資料表及主鍵!A:A)","v":"活動"},{"$f":"_xlfn.XLOOKUP(D94,資料表及主鍵!C:C,資料表及主鍵!B:B)","v":"活動主檔-相關品項"},"activity_relating.reg_time","activity_relating","reg_time","datetime",null,"是","建立日期"]
[{"$f":"_xlfn.XLOOKUP(D95,資料表及主鍵!C:C,資料表及主鍵!A:A)","v":"掛單"},{"$f":"_xlfn.XLOOKUP(D95,資料表及主鍵!C:C,資料表及主鍵!B:B)","v":"報名-掛單明細"},"bed_order_detail.num","bed_order_detail","num","int",null,"否","自動編號"]
[{"$f":"_xlfn.XLOOKUP(D96,資料表及主鍵!C:C,資料表及主鍵!A:A)","v":"掛單"},{"$f":"_xlfn.XLOOKUP(D96,資料表及主鍵!C:C,資料表及主鍵!B:B)","v":"報名-掛單明細"},"bed_order_detail.bed_order_no","bed_order_detail","bed_order_no","nvarchar",40,"是","相關掛單單號","主檔/明細關聯:報名-掛單主檔"]
[{"$f":"_xlfn.XLOOKUP(D97,資料表及主鍵!C:C,資料表及主鍵!A:A)","v":"掛單"},{"$f":"_xlfn.XLOOKUP(D97,資料表及主鍵!C:C,資料表及主鍵!B:B)","v":"報名-掛單明細"},"bed_order_detail.checkIn_date","bed_order_detail","checkIn_date","datetime",null,"是","掛單日期 *"]
[{"$f":"_xlfn.XLOOKUP(D98,資料表及主鍵!C:C,資料表及主鍵!A:A)","v":"掛單"},{"$f":"_xlfn.XLOOKUP(D98,資料表及主鍵!C:C,資料表及主鍵!B:B)","v":"報名-掛單明細"},"bed_order_detail.bed_kind1","bed_order_detail","bed_kind1","int",null,"是","樓層"]
[{"$f":"_xlfn.XLOOKUP(D99,資料表及主鍵!C:C,資料表及主鍵!A:A)","v":"掛單"},{"$f":"_xlfn.XLOOKUP(D99,資料表及主鍵!C:C,資料表及主鍵!B:B)","v":"報名-掛單明細"},"bed_order_detail.bed_kind2","bed_order_detail","bed_kind2","int",null,"是","房號/房名"]
[{"$f":"_xlfn.XLOOKUP(D100,資料表及主鍵!C:C,資料表及主鍵!A:A)","v":"掛單"},{"$f":"_xlfn.XLOOKUP(D100,資料表及主鍵!C:C,資料表及主鍵!B:B)","v":"報名-掛單明細"},"bed_order_detail.bed_kind_detail_id","bed_order_detail","bed_kind_detail_id","int",null,"是","床位編號 *"]
[{"$f":"_xlfn.XLOOKUP(D101,資料表及主鍵!C:C,資料表及主鍵!A:A)","v":"掛單"},{"$f":"_xlfn.XLOOKUP(D101,資料表及主鍵!C:C,資料表及主鍵!B:B)","v":"報名-掛單明細"},"bed_order_detail.license","bed_order_detail","license","nvarchar",20,"是","車牌號碼"]
[{"$f":"_xlfn.XLOOKUP(D102,資料表及主鍵!C:C,資料表及主鍵!A:A)","v":"活動"},{"$f":"_xlfn.XLOOKUP(D102,資料表及主鍵!C:C,資料表及主鍵!B:B)","v":"活動主檔-相關備品"},"activity_spares.num","activity_spares","num","int",null,"否","自動編號"]
[{"$f":"_xlfn.XLOOKUP(D103,資料表及主鍵!C:C,資料表及主鍵!A:A)","v":"活動"},{"$f":"_xlfn.XLOOKUP(D103,資料表及主鍵!C:C,資料表及主鍵!B:B)","v":"活動主檔-相關備品"},"activity_spares.activity_num","activity_spares","activity_num","int",null,"否","相關活動"]
[{"$f":"_xlfn.XLOOKUP(D104,資料表及主鍵!C:C,資料表及主鍵!A:A)","v":"活動"},{"$f":"_xlfn.XLOOKUP(D104,資料表及主鍵!C:C,資料表及主鍵!B:B)","v":"活動主檔-相關備品"},"activity_spares.actItem_num","activity_spares","actItem_num","int",null,"否","相關品項"]
[{"$f":"_xlfn.XLOOKUP(D105,資料表及主鍵!C:C,資料表及主鍵!A:A)","v":"活動"},{"$f":"_xlfn.XLOOKUP(D105,資料表及主鍵!C:C,資料表及主鍵!B:B)","v":"活動主檔-相關備品"},"activity_spares.qty1","activity_spares","qty1","int",null,"是","計劃用量"]
[{"$f":"_xlfn.XLOOKUP(D106,資料表及主鍵!C:C,資料表及主鍵!A:A)","v":"活動"},{"$f":"_xlfn.XLOOKUP(D106,資料表及主鍵!C:C,資料表及主鍵!B:B)","v":"活動主檔-相關備品"},"activity_spares.qty2","activity_spares","qty2","int",null,"是","使用數量",null,"(自動由庫存管理加總:同活動/同品項使用量)"]
[{"$f":"_xlfn.XLOOKUP(D107,資料表及主鍵!C:C,資料表及主鍵!A:A)","v":"活動"},{"$f":"_xlfn.XLOOKUP(D107,資料表及主鍵!C:C,資料表及主鍵!B:B)","v":"活動主檔-相關備品"},"activity_spares.demo","activity_spares","demo","nvarchar","MAX","是","備註"]
[{"$f":"_xlfn.XLOOKUP(D108,資料表及主鍵!C:C,資料表及主鍵!A:A)","v":"活動"},{"$f":"_xlfn.XLOOKUP(D108,資料表及主鍵!C:C,資料表及主鍵!B:B)","v":"活動主檔-相關備品"},"activity_spares.reg_time","activity_spares","reg_time","datetime",null,"是","建立日期"]
[{"$f":"_xlfn.XLOOKUP(D109,資料表及主鍵!C:C,資料表及主鍵!A:A)","v":"掛單"},{"$f":"_xlfn.XLOOKUP(D109,資料表及主鍵!C:C,資料表及主鍵!B:B)","v":"房間管理-床位明細"},"bed_kind_detail.num","bed_kind_detail","num","int",null,"否","自動編號"]
[{"$f":"_xlfn.XLOOKUP(D110,資料表及主鍵!C:C,資料表及主鍵!A:A)","v":"掛單"},{"$f":"_xlfn.XLOOKUP(D110,資料表及主鍵!C:C,資料表及主鍵!B:B)","v":"房間管理-床位明細"},"bed_kind_detail.bed_kind_id","bed_kind_detail","bed_kind_id","int",null,"是","房間編號","主檔/明細關聯: 房間管理"]
[{"$f":"_xlfn.XLOOKUP(D111,資料表及主鍵!C:C,資料表及主鍵!A:A)","v":"掛單"},{"$f":"_xlfn.XLOOKUP(D111,資料表及主鍵!C:C,資料表及主鍵!B:B)","v":"房間管理-床位明細"},"bed_kind_detail.bed_name","bed_kind_detail","bed_name","nvarchar",100,"是","床位編號"]
[{"$f":"_xlfn.XLOOKUP(D112,資料表及主鍵!C:C,資料表及主鍵!A:A)","v":"掛單"},{"$f":"_xlfn.XLOOKUP(D112,資料表及主鍵!C:C,資料表及主鍵!B:B)","v":"房間管理-床位明細"},"bed_kind_detail.bed_type","bed_kind_detail","bed_type","int",null,"是","床位型態 *","單人床/上舖/下舖/通舖"]
[{"$f":"_xlfn.XLOOKUP(D113,資料表及主鍵!C:C,資料表及主鍵!A:A)","v":"掛單"},{"$f":"_xlfn.XLOOKUP(D113,資料表及主鍵!C:C,資料表及主鍵!B:B)","v":"房間管理-床位明細"},"bed_kind_detail.demo","bed_kind_detail","demo","nvarchar","MAX","是","備註"]
[{"$f":"_xlfn.XLOOKUP(D114,資料表及主鍵!C:C,資料表及主鍵!A:A)","v":"報名"},{"$f":"_xlfn.XLOOKUP(D114,資料表及主鍵!C:C,資料表及主鍵!B:B)","v":"報名明細檔"},"pro_order_detail.num","pro_order_detail","num","int",null,"否","自動編號"]
[{"$f":"_xlfn.XLOOKUP(D115,資料表及主鍵!C:C,資料表及主鍵!A:A)","v":"報名"},{"$f":"_xlfn.XLOOKUP(D115,資料表及主鍵!C:C,資料表及主鍵!B:B)","v":"報名明細檔"},"pro_order_detail.order_no","pro_order_detail","order_no","nvarchar",40,"否","相關報名單號","主檔/明細關聯:報名主檔"]
[{"$f":"_xlfn.XLOOKUP(D116,資料表及主鍵!C:C,資料表及主鍵!A:A)","v":"報名"},{"$f":"_xlfn.XLOOKUP(D116,資料表及主鍵!C:C,資料表及主鍵!B:B)","v":"報名明細檔"},"pro_order_detail.actItem_num","pro_order_detail","actItem_num","int",null,"是","項目名稱 *","查詢:活動品項"]
[{"$f":"_xlfn.XLOOKUP(D117,資料表及主鍵!C:C,資料表及主鍵!A:A)","v":"報名"},{"$f":"_xlfn.XLOOKUP(D117,資料表及主鍵!C:C,資料表及主鍵!B:B)","v":"報名明細檔"},"pro_order_detail.f_num","pro_order_detail","f_num","int",null,"是","報名者","查詢:信眾:姓名/名稱","用於印在牌位上的名稱"]
[{"$f":"_xlfn.XLOOKUP(D118,資料表及主鍵!C:C,資料表及主鍵!A:A)","v":"報名"},{"$f":"_xlfn.XLOOKUP(D118,資料表及主鍵!C:C,資料表及主鍵!B:B)","v":"報名明細檔"},"pro_order_detail.address","pro_order_detail","address","nvarchar",400,"是","代表地址",null,"用於印在牌位上的代表地址"]
[{"$f":"_xlfn.XLOOKUP(D119,資料表及主鍵!C:C,資料表及主鍵!A:A)","v":"報名"},{"$f":"_xlfn.XLOOKUP(D119,資料表及主鍵!C:C,資料表及主鍵!B:B)","v":"報名明細檔"},"pro_order_detail.from_id","pro_order_detail","from_id","int",null,"是","陽上/報恩者"]
[{"$f":"_xlfn.XLOOKUP(D120,資料表及主鍵!C:C,資料表及主鍵!A:A)","v":"報名"},{"$f":"_xlfn.XLOOKUP(D120,資料表及主鍵!C:C,資料表及主鍵!B:B)","v":"報名明細檔"},"pro_order_detail.due_date","pro_order_detail","due_date","datetime",null,"是","期滿日期"]
[{"$f":"_xlfn.XLOOKUP(D121,資料表及主鍵!C:C,資料表及主鍵!A:A)","v":"報名"},{"$f":"_xlfn.XLOOKUP(D121,資料表及主鍵!C:C,資料表及主鍵!B:B)","v":"報名明細檔"},"pro_order_detail.bed_type","pro_order_detail","bed_type","int",null,"是","-"]
[{"$f":"_xlfn.XLOOKUP(D122,資料表及主鍵!C:C,資料表及主鍵!A:A)","v":"報名"},{"$f":"_xlfn.XLOOKUP(D122,資料表及主鍵!C:C,資料表及主鍵!B:B)","v":"報名明細檔"},"pro_order_detail.price","pro_order_detail","price","real",null,"是","預設金額"]
[{"$f":"_xlfn.XLOOKUP(D123,資料表及主鍵!C:C,資料表及主鍵!A:A)","v":"報名"},{"$f":"_xlfn.XLOOKUP(D123,資料表及主鍵!C:C,資料表及主鍵!B:B)","v":"報名明細檔"},"pro_order_detail.qty","pro_order_detail","qty","int",null,"是","數量 *"]
[{"$f":"_xlfn.XLOOKUP(D124,資料表及主鍵!C:C,資料表及主鍵!A:A)","v":"報名"},{"$f":"_xlfn.XLOOKUP(D124,資料表及主鍵!C:C,資料表及主鍵!B:B)","v":"報名明細檔"},"pro_order_detail.start_date","pro_order_detail","start_date","datetime",null,"是","開始日期"]
[{"$f":"_xlfn.XLOOKUP(D125,資料表及主鍵!C:C,資料表及主鍵!A:A)","v":"報名"},{"$f":"_xlfn.XLOOKUP(D125,資料表及主鍵!C:C,資料表及主鍵!B:B)","v":"報名明細檔"},"pro_order_detail.extend_date","pro_order_detail","extend_date","datetime",null,"是","應續約日"]
[{"$f":"_xlfn.XLOOKUP(D126,資料表及主鍵!C:C,資料表及主鍵!A:A)","v":"報名"},{"$f":"_xlfn.XLOOKUP(D126,資料表及主鍵!C:C,資料表及主鍵!B:B)","v":"報名明細檔"},"pro_order_detail.pay","pro_order_detail","pay","real",null,"是","已收金額"]
[{"$f":"_xlfn.XLOOKUP(D127,資料表及主鍵!C:C,資料表及主鍵!A:A)","v":"報名"},{"$f":"_xlfn.XLOOKUP(D127,資料表及主鍵!C:C,資料表及主鍵!B:B)","v":"報名明細檔"},"pro_order_detail.pay_date","pro_order_detail","pay_date","datetime",null,"是","付款日"]
[{"$f":"_xlfn.XLOOKUP(D128,資料表及主鍵!C:C,資料表及主鍵!A:A)","v":"報名"},{"$f":"_xlfn.XLOOKUP(D128,資料表及主鍵!C:C,資料表及主鍵!B:B)","v":"報名明細檔"},"pro_order_detail.keyin1","pro_order_detail","keyin1","int",null,"是","報名狀態 *","未收款/分期​/已收款/呆帳"]
[{"$f":"_xlfn.XLOOKUP(D129,資料表及主鍵!C:C,資料表及主鍵!A:A)","v":"報名"},{"$f":"_xlfn.XLOOKUP(D129,資料表及主鍵!C:C,資料表及主鍵!B:B)","v":"報名明細檔"},"pro_order_detail.demo","pro_order_detail","demo","nvarchar","MAX","是","狀態備註"]
[{"$f":"_xlfn.XLOOKUP(D130,資料表及主鍵!C:C,資料表及主鍵!A:A)","v":"報名"},{"$f":"_xlfn.XLOOKUP(D130,資料表及主鍵!C:C,資料表及主鍵!B:B)","v":"報名明細檔"},"pro_order_detail.customize_data","pro_order_detail","customize_data","nvarchar","MAX","是","自定義列印欄位"]
[{"$f":"_xlfn.XLOOKUP(D131,資料表及主鍵!C:C,資料表及主鍵!A:A)","v":"報名"},{"$f":"_xlfn.XLOOKUP(D131,資料表及主鍵!C:C,資料表及主鍵!B:B)","v":"報名明細檔"},"pro_order_detail.printed_files","pro_order_detail","printed_files","nvarchar","MAX","是","文件列印狀態",null,"自動標示相關文件是否已列印"]
[{"$f":"_xlfn.XLOOKUP(D132,資料表及主鍵!C:C,資料表及主鍵!A:A)","v":"報名"},{"$f":"_xlfn.XLOOKUP(D132,資料表及主鍵!C:C,資料表及主鍵!B:B)","v":"報名明細檔"},"pro_order_detail.parent_num","pro_order_detail","parent_num","int",null,"是","上層項目"]
[{"$f":"_xlfn.XLOOKUP(D133,資料表及主鍵!C:C,資料表及主鍵!A:A)","v":"報名"},{"$f":"_xlfn.XLOOKUP(D133,資料表及主鍵!C:C,資料表及主鍵!B:B)","v":"報名明細檔"},"pro_order_detail.f_num_tablet","pro_order_detail","f_num_tablet","nvarchar","MAX","是","牌位標題"]
[{"$f":"_xlfn.XLOOKUP(D134,資料表及主鍵!C:C,資料表及主鍵!A:A)","v":"報名"},{"$f":"_xlfn.XLOOKUP(D134,資料表及主鍵!C:C,資料表及主鍵!B:B)","v":"報名明細檔"},"pro_order_detail.from_id_tablet","pro_order_detail","from_id_tablet","nvarchar","MAX","是","陽上標題"]
[{"$f":"_xlfn.XLOOKUP(D135,資料表及主鍵!C:C,資料表及主鍵!A:A)","v":"報名"},{"$f":"_xlfn.XLOOKUP(D135,資料表及主鍵!C:C,資料表及主鍵!B:B)","v":"(新1)報名收款記錄"},{"$f":"D135&\".\"&E135","v":"pro_order_record.bank_code"},"pro_order_record","bank_code","nvarchar",10,"是","(新欄位)"]
[{"$f":"_xlfn.XLOOKUP(D136,資料表及主鍵!C:C,資料表及主鍵!A:A)","v":"報名"},{"$f":"_xlfn.XLOOKUP(D136,資料表及主鍵!C:C,資料表及主鍵!B:B)","v":"(新1)報名收款記錄"},"pro_order_record.detail_num","pro_order_record","detail_num","int",null,"是","(新欄位)"]
[{"$f":"_xlfn.XLOOKUP(D137,資料表及主鍵!C:C,資料表及主鍵!A:A)","v":"報名"},{"$f":"_xlfn.XLOOKUP(D137,資料表及主鍵!C:C,資料表及主鍵!B:B)","v":"(新1)報名收款記錄"},"pro_order_record.num","pro_order_record","num","int",null,"否","(新欄位)"]
[{"$f":"_xlfn.XLOOKUP(D138,資料表及主鍵!C:C,資料表及主鍵!A:A)","v":"報名"},{"$f":"_xlfn.XLOOKUP(D138,資料表及主鍵!C:C,資料表及主鍵!B:B)","v":"(新1)報名收款記錄"},"pro_order_record.organization","pro_order_record","organization","nvarchar",50,"是","(新欄位)"]
[{"$f":"_xlfn.XLOOKUP(D139,資料表及主鍵!C:C,資料表及主鍵!A:A)","v":"報名"},{"$f":"_xlfn.XLOOKUP(D139,資料表及主鍵!C:C,資料表及主鍵!B:B)","v":"(新1)報名收款記錄"},"pro_order_record.pay_date","pro_order_record","pay_date","datetime",null,"是","(新欄位)"]
[{"$f":"_xlfn.XLOOKUP(D140,資料表及主鍵!C:C,資料表及主鍵!A:A)","v":"報名"},{"$f":"_xlfn.XLOOKUP(D140,資料表及主鍵!C:C,資料表及主鍵!B:B)","v":"(新1)報名收款記錄"},"pro_order_record.payment","pro_order_record","payment","nvarchar",50,"是","(新欄位)"]
[{"$f":"_xlfn.XLOOKUP(D141,資料表及主鍵!C:C,資料表及主鍵!A:A)","v":"報名"},{"$f":"_xlfn.XLOOKUP(D141,資料表及主鍵!C:C,資料表及主鍵!B:B)","v":"(新1)報名收款記錄"},"pro_order_record.price","pro_order_record","price","real",null,"是","(新欄位)"]
[{"$f":"_xlfn.XLOOKUP(D142,資料表及主鍵!C:C,資料表及主鍵!A:A)","v":"報名"},{"$f":"_xlfn.XLOOKUP(D142,資料表及主鍵!C:C,資料表及主鍵!B:B)","v":"(新1)報名收款記錄"},"pro_order_record.reg_time","pro_order_record","reg_time","datetime",null,"是","(新欄位)"]
[{"$f":"_xlfn.XLOOKUP(D143,資料表及主鍵!C:C,資料表及主鍵!A:A)","v":"報名"},{"$f":"_xlfn.XLOOKUP(D143,資料表及主鍵!C:C,資料表及主鍵!B:B)","v":"報名主檔"},"pro_order.order_no","pro_order","order_no","nvarchar",40,"否","單號"]
[{"$f":"_xlfn.XLOOKUP(D144,資料表及主鍵!C:C,資料表及主鍵!A:A)","v":"報名"},{"$f":"_xlfn.XLOOKUP(D144,資料表及主鍵!C:C,資料表及主鍵!B:B)","v":"報名主檔"},"pro_order.up_time","pro_order","up_time","datetime",null,"是","報名日期 *"]
[{"$f":"_xlfn.XLOOKUP(D145,資料表及主鍵!C:C,資料表及主鍵!A:A)","v":"報名"},{"$f":"_xlfn.XLOOKUP(D145,資料表及主鍵!C:C,資料表及主鍵!B:B)","v":"報名主檔"},"pro_order.reg_time","pro_order","reg_time","datetime",null,"是","建檔日期"]
[{"$f":"_xlfn.XLOOKUP(D146,資料表及主鍵!C:C,資料表及主鍵!A:A)","v":"報名"},{"$f":"_xlfn.XLOOKUP(D146,資料表及主鍵!C:C,資料表及主鍵!B:B)","v":"報名主檔"},"pro_order.keyin1","pro_order","keyin1","nvarchar",6,"是","單據狀態 *","報名中/已報名/取消報名"]
[{"$f":"_xlfn.XLOOKUP(D147,資料表及主鍵!C:C,資料表及主鍵!A:A)","v":"報名"},{"$f":"_xlfn.XLOOKUP(D147,資料表及主鍵!C:C,資料表及主鍵!B:B)","v":"報名主檔"},"pro_order.f_num","pro_order","f_num","int",null,"是","姓名/名稱 *","查詢:信眾姓名/名稱"]
[{"$f":"_xlfn.XLOOKUP(D148,資料表及主鍵!C:C,資料表及主鍵!A:A)","v":"報名"},{"$f":"_xlfn.XLOOKUP(D148,資料表及主鍵!C:C,資料表及主鍵!B:B)","v":"報名主檔"},"pro_order.phone","pro_order","phone","nvarchar","MAX","是","聯絡電話 *"]
[{"$f":"_xlfn.XLOOKUP(D149,資料表及主鍵!C:C,資料表及主鍵!A:A)","v":"報名"},{"$f":"_xlfn.XLOOKUP(D149,資料表及主鍵!C:C,資料表及主鍵!B:B)","v":"報名主檔"},"pro_order.activity_num","pro_order","activity_num","int",null,"是","報名活動","查詢:報名活動"]
[{"$f":"_xlfn.XLOOKUP(D150,資料表及主鍵!C:C,資料表及主鍵!A:A)","v":"報名"},{"$f":"_xlfn.XLOOKUP(D150,資料表及主鍵!C:C,資料表及主鍵!B:B)","v":"報名主檔"},"pro_order.address","pro_order","address","nvarchar",400,"是","收件地址"]
[{"$f":"_xlfn.XLOOKUP(D151,資料表及主鍵!C:C,資料表及主鍵!A:A)","v":"報名"},{"$f":"_xlfn.XLOOKUP(D151,資料表及主鍵!C:C,資料表及主鍵!B:B)","v":"報名主檔"},"pro_order.demo","pro_order","demo","nvarchar","MAX","是","備註"]
[{"$f":"_xlfn.XLOOKUP(D152,資料表及主鍵!C:C,資料表及主鍵!A:A)","v":"報名"},{"$f":"_xlfn.XLOOKUP(D152,資料表及主鍵!C:C,資料表及主鍵!B:B)","v":"報名主檔"},"pro_order.customize_data","pro_order","customize_data","nvarchar","MAX","是","自定義欄位預設值"]
[{"$f":"_xlfn.XLOOKUP(D153,資料表及主鍵!C:C,資料表及主鍵!A:A)","v":"報名"},{"$f":"_xlfn.XLOOKUP(D153,資料表及主鍵!C:C,資料表及主鍵!B:B)","v":"報名主檔"},"pro_order.introducer","pro_order","introducer","int",null,"是","介紹人"]
[{"$f":"_xlfn.XLOOKUP(D154,資料表及主鍵!C:C,資料表及主鍵!A:A)","v":"報名"},{"$f":"_xlfn.XLOOKUP(D154,資料表及主鍵!C:C,資料表及主鍵!B:B)","v":"報名主檔"},"pro_order.send_receipt","pro_order","send_receipt","bit",null,"是","是否寄送收據"]
[{"$f":"_xlfn.XLOOKUP(D155,資料表及主鍵!C:C,資料表及主鍵!A:A)","v":"報名"},{"$f":"_xlfn.XLOOKUP(D155,資料表及主鍵!C:C,資料表及主鍵!B:B)","v":"報名主檔"},"pro_order.receipt_title","pro_order","receipt_title","nvarchar","MAX","是","收據抬頭"]
[{"$f":"_xlfn.XLOOKUP(D156,資料表及主鍵!C:C,資料表及主鍵!A:A)","v":"人事"},{"$f":"_xlfn.XLOOKUP(D156,資料表及主鍵!C:C,資料表及主鍵!B:B)","v":"職稱管理"},"member_title.num","member_title","num","int",null,"否","自動編號"]
[{"$f":"_xlfn.XLOOKUP(D157,資料表及主鍵!C:C,資料表及主鍵!A:A)","v":"人事"},{"$f":"_xlfn.XLOOKUP(D157,資料表及主鍵!C:C,資料表及主鍵!B:B)","v":"職稱管理"},"member_title.kind","member_title","kind","nvarchar",200,"是","職稱 *"]
[{"$f":"_xlfn.XLOOKUP(D158,資料表及主鍵!C:C,資料表及主鍵!A:A)","v":"人事"},{"$f":"_xlfn.XLOOKUP(D158,資料表及主鍵!C:C,資料表及主鍵!B:B)","v":"職稱管理"},"member_title.root","member_title","root","int",null,"是","上層編號"]
[{"$f":"_xlfn.XLOOKUP(D159,資料表及主鍵!C:C,資料表及主鍵!A:A)","v":"人事"},{"$f":"_xlfn.XLOOKUP(D159,資料表及主鍵!C:C,資料表及主鍵!B:B)","v":"職稱管理"},"member_title.range","member_title","range","int",null,"是","-"]
[{"$f":"_xlfn.XLOOKUP(D160,資料表及主鍵!C:C,資料表及主鍵!A:A)","v":"人事"},{"$f":"_xlfn.XLOOKUP(D160,資料表及主鍵!C:C,資料表及主鍵!B:B)","v":"職稱管理"},"member_title.demo","member_title","demo","nvarchar","MAX","是","備註"]
[{"$f":"_xlfn.XLOOKUP(D161,資料表及主鍵!C:C,資料表及主鍵!A:A)","v":"人事"},{"$f":"_xlfn.XLOOKUP(D161,資料表及主鍵!C:C,資料表及主鍵!B:B)","v":"職稱管理"},"member_title.status","member_title","status","nvarchar",2,"是","狀態 *","啟用/停用"]
[{"$f":"_xlfn.XLOOKUP(D162,資料表及主鍵!C:C,資料表及主鍵!A:A)","v":"基本資料"},{"$f":"_xlfn.XLOOKUP(D162,資料表及主鍵!C:C,資料表及主鍵!B:B)","v":"品項相關文件檔"},"actItem_files.num","actItem_files","num","int",null,"否","自動編號"]
[{"$f":"_xlfn.XLOOKUP(D163,資料表及主鍵!C:C,資料表及主鍵!A:A)","v":"基本資料"},{"$f":"_xlfn.XLOOKUP(D163,資料表及主鍵!C:C,資料表及主鍵!B:B)","v":"品項相關文件檔"},"actItem_files.actItem_num","actItem_files","actItem_num","int",null,"否","品項編號","主檔/明細關聯:品項主檔"]
[{"$f":"_xlfn.XLOOKUP(D164,資料表及主鍵!C:C,資料表及主鍵!A:A)","v":"基本資料"},{"$f":"_xlfn.XLOOKUP(D164,資料表及主鍵!C:C,資料表及主鍵!B:B)","v":"品項相關文件檔"},"actItem_files.files_num","actItem_files","files_num","int",null,"否","文件編號","查詢:相關文件"]
[{"$f":"_xlfn.XLOOKUP(D165,資料表及主鍵!C:C,資料表及主鍵!A:A)","v":"基本資料"},{"$f":"_xlfn.XLOOKUP(D165,資料表及主鍵!C:C,資料表及主鍵!B:B)","v":"品項相關文件檔"},"actItem_files.reg_time","actItem_files","reg_time","datetime",null,"是","登錄時間"]
[{"$f":"_xlfn.XLOOKUP(D166,資料表及主鍵!C:C,資料表及主鍵!A:A)","v":"基本資料"},{"$f":"_xlfn.XLOOKUP(D166,資料表及主鍵!C:C,資料表及主鍵!B:B)","v":"品項管理主檔"},"actItem.partno","actItem","partno","nvarchar",200,"是","料號"]
[{"$f":"_xlfn.XLOOKUP(D167,資料表及主鍵!C:C,資料表及主鍵!A:A)","v":"基本資料"},{"$f":"_xlfn.XLOOKUP(D167,資料表及主鍵!C:C,資料表及主鍵!B:B)","v":"品項管理主檔"},"actItem.reg_time","actItem","reg_time","datetime",null,"是","登記時間"]
[{"$f":"_xlfn.XLOOKUP(D168,資料表及主鍵!C:C,資料表及主鍵!A:A)","v":"人事"},{"$f":"_xlfn.XLOOKUP(D168,資料表及主鍵!C:C,資料表及主鍵!B:B)","v":"考勤"},{"$f":"D168&\".\"&E168","v":"member_check.num"},"member_check","num","int",null,"否","自動編號"]
[{"$f":"_xlfn.XLOOKUP(D169,資料表及主鍵!C:C,資料表及主鍵!A:A)","v":"人事"},{"$f":"_xlfn.XLOOKUP(D169,資料表及主鍵!C:C,資料表及主鍵!B:B)","v":"考勤"},"member_check.mem_num","member_check","mem_num","int",null,"是","人員編號"]
[{"$f":"_xlfn.XLOOKUP(D170,資料表及主鍵!C:C,資料表及主鍵!A:A)","v":"人事"},{"$f":"_xlfn.XLOOKUP(D170,資料表及主鍵!C:C,資料表及主鍵!B:B)","v":"考勤"},"member_check.check_date","member_check","check_date","date",null,"是","日期"]
[{"$f":"_xlfn.XLOOKUP(D171,資料表及主鍵!C:C,資料表及主鍵!A:A)","v":"人事"},{"$f":"_xlfn.XLOOKUP(D171,資料表及主鍵!C:C,資料表及主鍵!B:B)","v":"考勤"},"member_check.check_time","member_check","check_time","time",null,"是","時間"]
[{"$f":"_xlfn.XLOOKUP(D172,資料表及主鍵!C:C,資料表及主鍵!A:A)","v":"人事"},{"$f":"_xlfn.XLOOKUP(D172,資料表及主鍵!C:C,資料表及主鍵!B:B)","v":"考勤"},"member_check.check_type","member_check","check_type","int",null,"是","考勤型態"]
[{"$f":"_xlfn.XLOOKUP(D173,資料表及主鍵!C:C,資料表及主鍵!A:A)","v":"人事"},{"$f":"_xlfn.XLOOKUP(D173,資料表及主鍵!C:C,資料表及主鍵!B:B)","v":"考勤"},"member_check.demo","member_check","demo","nvarchar","MAX","是","備註"]
[{"$f":"_xlfn.XLOOKUP(D174,資料表及主鍵!C:C,資料表及主鍵!A:A)","v":"人事"},{"$f":"_xlfn.XLOOKUP(D174,資料表及主鍵!C:C,資料表及主鍵!B:B)","v":"考勤"},"member_check.login_type","member_check","login_type","int",null,"是","登錄型態","上班/下班"]
[{"$f":"_xlfn.XLOOKUP(D175,資料表及主鍵!C:C,資料表及主鍵!A:A)","v":"人事"},{"$f":"_xlfn.XLOOKUP(D175,資料表及主鍵!C:C,資料表及主鍵!B:B)","v":"考勤"},"member_check.login_ip","member_check","login_ip","nvarchar",100,"是","登錄IP"]
[{"$f":"_xlfn.XLOOKUP(D176,資料表及主鍵!C:C,資料表及主鍵!A:A)","v":"人事"},{"$f":"_xlfn.XLOOKUP(D176,資料表及主鍵!C:C,資料表及主鍵!B:B)","v":"考勤"},"member_check.hour","member_check","hour","int",null,"是","請假時數"]
[{"$f":"_xlfn.XLOOKUP(D177,資料表及主鍵!C:C,資料表及主鍵!A:A)","v":"報名"},{"$f":"_xlfn.XLOOKUP(D177,資料表及主鍵!C:C,資料表及主鍵!B:B)","v":"活動報到檔"},"activity_check.num","activity_check","num","int",null,"否","自動編號",null,"報名列表中, 有:姓名, 活動時顯示"]
[{"$f":"_xlfn.XLOOKUP(D178,資料表及主鍵!C:C,資料表及主鍵!A:A)","v":"報名"},{"$f":"_xlfn.XLOOKUP(D178,資料表及主鍵!C:C,資料表及主鍵!B:B)","v":"活動報到檔"},"activity_check.f_num","activity_check","f_num","int",null,"是","報名者","查詢:信眾:姓名/名稱"]
[{"$f":"_xlfn.XLOOKUP(D179,資料表及主鍵!C:C,資料表及主鍵!A:A)","v":"報名"},{"$f":"_xlfn.XLOOKUP(D179,資料表及主鍵!C:C,資料表及主鍵!B:B)","v":"活動報到檔"},"activity_check.activity_num","activity_check","activity_num","int",null,"是","相關活動","查詢:活動主檔"]
[{"$f":"_xlfn.XLOOKUP(D180,資料表及主鍵!C:C,資料表及主鍵!A:A)","v":"報名"},{"$f":"_xlfn.XLOOKUP(D180,資料表及主鍵!C:C,資料表及主鍵!B:B)","v":"活動報到檔"},"activity_check.reg_time","activity_check","reg_time","datetime",null,"是","報到時間"]
[{"$f":"_xlfn.XLOOKUP(D181,資料表及主鍵!C:C,資料表及主鍵!A:A)","v":"報名"},{"$f":"_xlfn.XLOOKUP(D181,資料表及主鍵!C:C,資料表及主鍵!B:B)","v":"活動報到檔"},"activity_check.status","activity_check","status","int",null,"是","狀態 *","報到/離開"]
[{"$f":"_xlfn.XLOOKUP(D182,資料表及主鍵!C:C,資料表及主鍵!A:A)","v":"報名"},{"$f":"_xlfn.XLOOKUP(D182,資料表及主鍵!C:C,資料表及主鍵!B:B)","v":"活動報到檔"},"activity_check.qty","activity_check","qty","int",null,"是","報到人數"]
[{"$f":"_xlfn.XLOOKUP(D183,資料表及主鍵!C:C,資料表及主鍵!A:A)","v":"庫存"},{"$f":"_xlfn.XLOOKUP(D183,資料表及主鍵!C:C,資料表及主鍵!B:B)","v":"倉庫資料主檔"},"stock_kind.num","stock_kind","num","int",null,"否","自動編號"]
[{"$f":"_xlfn.XLOOKUP(D184,資料表及主鍵!C:C,資料表及主鍵!A:A)","v":"庫存"},{"$f":"_xlfn.XLOOKUP(D184,資料表及主鍵!C:C,資料表及主鍵!B:B)","v":"倉庫資料主檔"},"stock_kind.kind","stock_kind","kind","nvarchar",200,"是","名稱"]
[{"$f":"_xlfn.XLOOKUP(D185,資料表及主鍵!C:C,資料表及主鍵!A:A)","v":"庫存"},{"$f":"_xlfn.XLOOKUP(D185,資料表及主鍵!C:C,資料表及主鍵!B:B)","v":"倉庫資料主檔"},"stock_kind.root","stock_kind","root","int",null,"是","上層編號"]
[{"$f":"_xlfn.XLOOKUP(D186,資料表及主鍵!C:C,資料表及主鍵!A:A)","v":"庫存"},{"$f":"_xlfn.XLOOKUP(D186,資料表及主鍵!C:C,資料表及主鍵!B:B)","v":"倉庫資料主檔"},"stock_kind.range","stock_kind","range","int",null,"是","-"]
[{"$f":"_xlfn.XLOOKUP(D187,資料表及主鍵!C:C,資料表及主鍵!A:A)","v":"庫存"},{"$f":"_xlfn.XLOOKUP(D187,資料表及主鍵!C:C,資料表及主鍵!B:B)","v":"倉庫資料主檔"},"stock_kind.demo","stock_kind","demo","nvarchar","MAX","是","備註"]
[{"$f":"_xlfn.XLOOKUP(D188,資料表及主鍵!C:C,資料表及主鍵!A:A)","v":"公告"},{"$f":"_xlfn.XLOOKUP(D188,資料表及主鍵!C:C,資料表及主鍵!B:B)","v":"公告資料主檔"},"news.num","news","num","int",null,"否","自動編號"]
[{"$f":"_xlfn.XLOOKUP(D189,資料表及主鍵!C:C,資料表及主鍵!A:A)","v":"公告"},{"$f":"_xlfn.XLOOKUP(D189,資料表及主鍵!C:C,資料表及主鍵!B:B)","v":"公告資料主檔"},"news.subject","news","subject","nvarchar",200,"是","公告標題 *"]
[{"$f":"_xlfn.XLOOKUP(D190,資料表及主鍵!C:C,資料表及主鍵!A:A)","v":"公告"},{"$f":"_xlfn.XLOOKUP(D190,資料表及主鍵!C:C,資料表及主鍵!B:B)","v":"公告資料主檔"},"news.kind","news","kind","int",null,"是","公告分類 *","查詢:公告分類"]
[{"$f":"_xlfn.XLOOKUP(D191,資料表及主鍵!C:C,資料表及主鍵!A:A)","v":"公告"},{"$f":"_xlfn.XLOOKUP(D191,資料表及主鍵!C:C,資料表及主鍵!B:B)","v":"公告資料主檔"},"news.status","news","status","nvarchar",2,"是","狀態 *","顯示, 隱藏"]
[{"$f":"_xlfn.XLOOKUP(D192,資料表及主鍵!C:C,資料表及主鍵!A:A)","v":"公告"},{"$f":"_xlfn.XLOOKUP(D192,資料表及主鍵!C:C,資料表及主鍵!B:B)","v":"公告資料主檔"},"news.selltime1","news","selltime1","datetime",null,"是","上架期間-起"]
[{"$f":"_xlfn.XLOOKUP(D193,資料表及主鍵!C:C,資料表及主鍵!A:A)","v":"公告"},{"$f":"_xlfn.XLOOKUP(D193,資料表及主鍵!C:C,資料表及主鍵!B:B)","v":"公告資料主檔"},"news.selltime2","news","selltime2","datetime",null,"是","上架期間-止"]
[{"$f":"_xlfn.XLOOKUP(D194,資料表及主鍵!C:C,資料表及主鍵!A:A)","v":"公告"},{"$f":"_xlfn.XLOOKUP(D194,資料表及主鍵!C:C,資料表及主鍵!B:B)","v":"公告資料主檔"},"news.uptime","news","uptime","datetime",null,"是","發佈日 *"]
[{"$f":"_xlfn.XLOOKUP(D195,資料表及主鍵!C:C,資料表及主鍵!A:A)","v":"公告"},{"$f":"_xlfn.XLOOKUP(D195,資料表及主鍵!C:C,資料表及主鍵!B:B)","v":"公告資料主檔"},"news.topping","news","topping","nvarchar",2,"是","置頂","是, 否"]
[{"$f":"_xlfn.XLOOKUP(D196,資料表及主鍵!C:C,資料表及主鍵!A:A)","v":"公告"},{"$f":"_xlfn.XLOOKUP(D196,資料表及主鍵!C:C,資料表及主鍵!B:B)","v":"公告資料主檔"},"news.demo","news","demo","nvarchar","MAX","是","備註","(多行文字)","文章內容的摘要或備註"]
[{"$f":"_xlfn.XLOOKUP(D197,資料表及主鍵!C:C,資料表及主鍵!A:A)","v":"公告"},{"$f":"_xlfn.XLOOKUP(D197,資料表及主鍵!C:C,資料表及主鍵!B:B)","v":"公告資料主檔"},"news.word","news","word","nvarchar","MAX","是","內容 *","(HTML編輯器)","主要內文"]
[{"$f":"_xlfn.XLOOKUP(D198,資料表及主鍵!C:C,資料表及主鍵!A:A)","v":"公告"},{"$f":"_xlfn.XLOOKUP(D198,資料表及主鍵!C:C,資料表及主鍵!B:B)","v":"公告資料主檔"},"news.reg_time","news","reg_time","datetime",null,"是","登錄時間"]
[{"$f":"_xlfn.XLOOKUP(D199,資料表及主鍵!C:C,資料表及主鍵!A:A)","v":"公告"},{"$f":"_xlfn.XLOOKUP(D199,資料表及主鍵!C:C,資料表及主鍵!B:B)","v":"公告資料主檔"},"news.range","news","range","int",null,"是","-"]
[{"$f":"_xlfn.XLOOKUP(D200,資料表及主鍵!C:C,資料表及主鍵!A:A)","v":"公告"},{"$f":"_xlfn.XLOOKUP(D200,資料表及主鍵!C:C,資料表及主鍵!B:B)","v":"公告資料主檔"},"news.author","news","author","int",null,"是","作者"]
[{"$f":"_xlfn.XLOOKUP(D201,資料表及主鍵!C:C,資料表及主鍵!A:A)","v":"公告"},{"$f":"_xlfn.XLOOKUP(D201,資料表及主鍵!C:C,資料表及主鍵!B:B)","v":"公告資料主檔"},"news.activity_num","news","activity_num","int",null,"是","相關活動","查詢:相關活動"]
[{"$f":"_xlfn.XLOOKUP(D202,資料表及主鍵!C:C,資料表及主鍵!A:A)","v":"活動"},{"$f":"_xlfn.XLOOKUP(D202,資料表及主鍵!C:C,資料表及主鍵!B:B)","v":"活動分類-相關品項"},"activity_kind_detail.num","activity_kind_detail","num","int",null,"否","自動編號"]
[{"$f":"_xlfn.XLOOKUP(D203,資料表及主鍵!C:C,資料表及主鍵!A:A)","v":"活動"},{"$f":"_xlfn.XLOOKUP(D203,資料表及主鍵!C:C,資料表及主鍵!B:B)","v":"活動分類-相關品項"},"activity_kind_detail.activity_kind_num","activity_kind_detail","activity_kind_num","int",null,"否","相關活動分類","主檔/明細關聯:活動詳細分類"]
[{"$f":"_xlfn.XLOOKUP(D204,資料表及主鍵!C:C,資料表及主鍵!A:A)","v":"活動"},{"$f":"_xlfn.XLOOKUP(D204,資料表及主鍵!C:C,資料表及主鍵!B:B)","v":"活動分類-相關品項"},"activity_kind_detail.actItem_num","activity_kind_detail","actItem_num","int",null,"否","相關品項","查詢:活動品項"]
[{"$f":"_xlfn.XLOOKUP(D205,資料表及主鍵!C:C,資料表及主鍵!A:A)","v":"活動"},{"$f":"_xlfn.XLOOKUP(D205,資料表及主鍵!C:C,資料表及主鍵!B:B)","v":"活動分類-相關品項"},"activity_kind_detail.price","activity_kind_detail","price","real",null,"是","預設金額"]
[{"$f":"_xlfn.XLOOKUP(D206,資料表及主鍵!C:C,資料表及主鍵!A:A)","v":"活動"},{"$f":"_xlfn.XLOOKUP(D206,資料表及主鍵!C:C,資料表及主鍵!B:B)","v":"活動分類-相關品項"},"activity_kind_detail.qty","activity_kind_detail","qty","int",null,"是","數量"]
[{"$f":"_xlfn.XLOOKUP(D207,資料表及主鍵!C:C,資料表及主鍵!A:A)","v":"活動"},{"$f":"_xlfn.XLOOKUP(D207,資料表及主鍵!C:C,資料表及主鍵!B:B)","v":"活動分類-相關品項"},"activity_kind_detail.reg_time","activity_kind_detail","reg_time","datetime",null,"是","建立日期"]
[{"$f":"_xlfn.XLOOKUP(D208,資料表及主鍵!C:C,資料表及主鍵!A:A)","v":"帳務"},{"$f":"_xlfn.XLOOKUP(D208,資料表及主鍵!C:C,資料表及主鍵!B:B)","v":"收支項目維護"},"accounting_kind.num","accounting_kind","num","int",null,"否","自動編號"]
[{"$f":"_xlfn.XLOOKUP(D209,資料表及主鍵!C:C,資料表及主鍵!A:A)","v":"帳務"},{"$f":"_xlfn.XLOOKUP(D209,資料表及主鍵!C:C,資料表及主鍵!B:B)","v":"收支項目維護"},"accounting_kind.kind","accounting_kind","kind","nvarchar",200,"是","分類名稱 *"]
[{"$f":"_xlfn.XLOOKUP(D210,資料表及主鍵!C:C,資料表及主鍵!A:A)","v":"帳務"},{"$f":"_xlfn.XLOOKUP(D210,資料表及主鍵!C:C,資料表及主鍵!B:B)","v":"收支項目維護"},"accounting_kind.root","accounting_kind","root","int",null,"是","上層編號"]
[{"$f":"_xlfn.XLOOKUP(D211,資料表及主鍵!C:C,資料表及主鍵!A:A)","v":"帳務"},{"$f":"_xlfn.XLOOKUP(D211,資料表及主鍵!C:C,資料表及主鍵!B:B)","v":"收支項目維護"},"accounting_kind.range","accounting_kind","range","int",null,"是","順序",null,"N"]
[{"$f":"_xlfn.XLOOKUP(D212,資料表及主鍵!C:C,資料表及主鍵!A:A)","v":"帳務"},{"$f":"_xlfn.XLOOKUP(D212,資料表及主鍵!C:C,資料表及主鍵!B:B)","v":"收支項目維護"},"accounting_kind.demo","accounting_kind","demo","nvarchar","MAX","是","備註"]
[{"$f":"_xlfn.XLOOKUP(D213,資料表及主鍵!C:C,資料表及主鍵!A:A)","v":"帳務"},{"$f":"_xlfn.XLOOKUP(D213,資料表及主鍵!C:C,資料表及主鍵!B:B)","v":"收支項目維護"},"accounting_kind.title","accounting_kind","title","nvarchar",60,"是","會計科目編號"]
[{"$f":"_xlfn.XLOOKUP(D214,資料表及主鍵!C:C,資料表及主鍵!A:A)","v":"帳務"},{"$f":"_xlfn.XLOOKUP(D214,資料表及主鍵!C:C,資料表及主鍵!B:B)","v":"收支帳戶維護"},"accounting_kind2.num","accounting_kind2","num","int",null,"否","自動編號"]
[{"$f":"_xlfn.XLOOKUP(D215,資料表及主鍵!C:C,資料表及主鍵!A:A)","v":"帳務"},{"$f":"_xlfn.XLOOKUP(D215,資料表及主鍵!C:C,資料表及主鍵!B:B)","v":"收支帳戶維護"},"accounting_kind2.kind","accounting_kind2","kind","nvarchar",200,"是","分類名稱 *"]
[{"$f":"_xlfn.XLOOKUP(D216,資料表及主鍵!C:C,資料表及主鍵!A:A)","v":"帳務"},{"$f":"_xlfn.XLOOKUP(D216,資料表及主鍵!C:C,資料表及主鍵!B:B)","v":"收支帳戶維護"},"accounting_kind2.record_payment","accounting_kind2","record_payment","nvarchar",2,"是","報名收款帳戶"]
[{"$f":"_xlfn.XLOOKUP(D217,資料表及主鍵!C:C,資料表及主鍵!A:A)","v":"帳務"},{"$f":"_xlfn.XLOOKUP(D217,資料表及主鍵!C:C,資料表及主鍵!B:B)","v":"收支帳戶維護"},"accounting_kind2.root","accounting_kind2","root","int",null,"是","-"]
[{"$f":"_xlfn.XLOOKUP(D218,資料表及主鍵!C:C,資料表及主鍵!A:A)","v":"帳務"},{"$f":"_xlfn.XLOOKUP(D218,資料表及主鍵!C:C,資料表及主鍵!B:B)","v":"收支帳戶維護"},"accounting_kind2.range","accounting_kind2","range","int",null,"是","-"]
[{"$f":"_xlfn.XLOOKUP(D219,資料表及主鍵!C:C,資料表及主鍵!A:A)","v":"帳務"},{"$f":"_xlfn.XLOOKUP(D219,資料表及主鍵!C:C,資料表及主鍵!B:B)","v":"收支帳戶維護"},"accounting_kind2.demo","accounting_kind2","demo","nvarchar","MAX","是","備註"]
[{"$f":"_xlfn.XLOOKUP(D220,資料表及主鍵!C:C,資料表及主鍵!A:A)","v":"帳務"},{"$f":"_xlfn.XLOOKUP(D220,資料表及主鍵!C:C,資料表及主鍵!B:B)","v":"收支帳戶維護"},"accounting_kind2.title","accounting_kind2","title","nvarchar",60,"是","會計科目編號"]
[{"$f":"_xlfn.XLOOKUP(D221,資料表及主鍵!C:C,資料表及主鍵!A:A)","v":"帳務"},{"$f":"_xlfn.XLOOKUP(D221,資料表及主鍵!C:C,資料表及主鍵!B:B)","v":"收支帳戶維護"},"accounting_kind2.bank_name","accounting_kind2","bank_name","nvarchar",60,"是","分行名稱"]
[{"$f":"_xlfn.XLOOKUP(D222,資料表及主鍵!C:C,資料表及主鍵!A:A)","v":"帳務"},{"$f":"_xlfn.XLOOKUP(D222,資料表及主鍵!C:C,資料表及主鍵!B:B)","v":"收支帳戶維護"},"accounting_kind2.bank_code","accounting_kind2","bank_code","nvarchar",60,"是","戶名"]
[{"$f":"_xlfn.XLOOKUP(D223,資料表及主鍵!C:C,資料表及主鍵!A:A)","v":"帳務"},{"$f":"_xlfn.XLOOKUP(D223,資料表及主鍵!C:C,資料表及主鍵!B:B)","v":"收支帳戶維護"},"accounting_kind2.bank_id","accounting_kind2","bank_id","nvarchar",60,"是","帳號"]
[{"$f":"_xlfn.XLOOKUP(D224,資料表及主鍵!C:C,資料表及主鍵!A:A)","v":"人事"},{"$f":"_xlfn.XLOOKUP(D224,資料表及主鍵!C:C,資料表及主鍵!B:B)","v":"人員主檔"},"member.num","member","num","int",null,"否","自動編號"]
[{"$f":"_xlfn.XLOOKUP(D225,資料表及主鍵!C:C,資料表及主鍵!A:A)","v":"人事"},{"$f":"_xlfn.XLOOKUP(D225,資料表及主鍵!C:C,資料表及主鍵!B:B)","v":"人員主檔"},"member.f_num","member","f_num","int",null,"是","信眾編號","查詢:信眾"]
[{"$f":"_xlfn.XLOOKUP(D226,資料表及主鍵!C:C,資料表及主鍵!A:A)","v":"人事"},{"$f":"_xlfn.XLOOKUP(D226,資料表及主鍵!C:C,資料表及主鍵!B:B)","v":"人員主檔"},"member.m_number","member","m_number","nvarchar",40,"是","人員編號 *"]
[{"$f":"_xlfn.XLOOKUP(D227,資料表及主鍵!C:C,資料表及主鍵!A:A)","v":"人事"},{"$f":"_xlfn.XLOOKUP(D227,資料表及主鍵!C:C,資料表及主鍵!B:B)","v":"人員主檔"},"member.u_name","member","u_name","nvarchar",40,"是","人員姓名 *"]
[{"$f":"_xlfn.XLOOKUP(D228,資料表及主鍵!C:C,資料表及主鍵!A:A)","v":"人事"},{"$f":"_xlfn.XLOOKUP(D228,資料表及主鍵!C:C,資料表及主鍵!B:B)","v":"人員主檔"},"member.sex","member","sex","nvarchar",4,"是","性別","男/女"]
[{"$f":"_xlfn.XLOOKUP(D229,資料表及主鍵!C:C,資料表及主鍵!A:A)","v":"人事"},{"$f":"_xlfn.XLOOKUP(D229,資料表及主鍵!C:C,資料表及主鍵!B:B)","v":"人員主檔"},"member.id_code","member","id_code","nvarchar","MAX","是","身分證字號"]
[{"$f":"_xlfn.XLOOKUP(D230,資料表及主鍵!C:C,資料表及主鍵!A:A)","v":"人事"},{"$f":"_xlfn.XLOOKUP(D230,資料表及主鍵!C:C,資料表及主鍵!B:B)","v":"人員主檔"},"member.birthday","member","birthday","datetime",null,"是","生日"]
[{"$f":"_xlfn.XLOOKUP(D231,資料表及主鍵!C:C,資料表及主鍵!A:A)","v":"人事"},{"$f":"_xlfn.XLOOKUP(D231,資料表及主鍵!C:C,資料表及主鍵!B:B)","v":"人員主檔"},"member.blood","member","blood","nvarchar",4,"是","血型","A型/B型/AB型/O型"]
[{"$f":"_xlfn.XLOOKUP(D232,資料表及主鍵!C:C,資料表及主鍵!A:A)","v":"人事"},{"$f":"_xlfn.XLOOKUP(D232,資料表及主鍵!C:C,資料表及主鍵!B:B)","v":"人員主檔"},"member.educational","member","educational","nvarchar",100,"是","最高學歷"]
[{"$f":"_xlfn.XLOOKUP(D233,資料表及主鍵!C:C,資料表及主鍵!A:A)","v":"人事"},{"$f":"_xlfn.XLOOKUP(D233,資料表及主鍵!C:C,資料表及主鍵!B:B)","v":"人員主檔"},"member.refugedate","member","refugedate","datetime",null,"是","皈依日期"]
[{"$f":"_xlfn.XLOOKUP(D234,資料表及主鍵!C:C,資料表及主鍵!A:A)","v":"人事"},{"$f":"_xlfn.XLOOKUP(D234,資料表及主鍵!C:C,資料表及主鍵!B:B)","v":"人員主檔"},"member.refuge_name","member","refuge_name","nvarchar",40,"是","皈依法名"]
[{"$f":"_xlfn.XLOOKUP(D235,資料表及主鍵!C:C,資料表及主鍵!A:A)","v":"人事"},{"$f":"_xlfn.XLOOKUP(D235,資料表及主鍵!C:C,資料表及主鍵!B:B)","v":"人員主檔"},"member.refuge_area","member","refuge_area","nvarchar",100,"是","皈依道場"]
[{"$f":"_xlfn.XLOOKUP(D236,資料表及主鍵!C:C,資料表及主鍵!A:A)","v":"人事"},{"$f":"_xlfn.XLOOKUP(D236,資料表及主鍵!C:C,資料表及主鍵!B:B)","v":"人員主檔"},"member.demo","member","demo","nvarchar","MAX","是","備註"]
[{"$f":"_xlfn.XLOOKUP(D237,資料表及主鍵!C:C,資料表及主鍵!A:A)","v":"人事"},{"$f":"_xlfn.XLOOKUP(D237,資料表及主鍵!C:C,資料表及主鍵!B:B)","v":"人員主檔"},"member.admin_num","member","admin_num","int",null,"是","系統帳號"]
[{"$f":"_xlfn.XLOOKUP(D238,資料表及主鍵!C:C,資料表及主鍵!A:A)","v":"人事"},{"$f":"_xlfn.XLOOKUP(D238,資料表及主鍵!C:C,資料表及主鍵!B:B)","v":"人員主檔"},"member.takedate","member","takedate","datetime",null,"是","到職日期"]
[{"$f":"_xlfn.XLOOKUP(D239,資料表及主鍵!C:C,資料表及主鍵!A:A)","v":"人事"},{"$f":"_xlfn.XLOOKUP(D239,資料表及主鍵!C:C,資料表及主鍵!B:B)","v":"人員主檔"},"member.leavedate","member","leavedate","datetime",null,"是","離職日期"]
[{"$f":"_xlfn.XLOOKUP(D240,資料表及主鍵!C:C,資料表及主鍵!A:A)","v":"人事"},{"$f":"_xlfn.XLOOKUP(D240,資料表及主鍵!C:C,資料表及主鍵!B:B)","v":"人員主檔"},"member.group_kind","member","group_kind","int",null,"是","組別","查詢:組別"]
[{"$f":"_xlfn.XLOOKUP(D241,資料表及主鍵!C:C,資料表及主鍵!A:A)","v":"人事"},{"$f":"_xlfn.XLOOKUP(D241,資料表及主鍵!C:C,資料表及主鍵!B:B)","v":"人員主檔"},"member.title_kind","member","title_kind","int",null,"是","職稱","查詢:職稱"]
[{"$f":"_xlfn.XLOOKUP(D242,資料表及主鍵!C:C,資料表及主鍵!A:A)","v":"人事"},{"$f":"_xlfn.XLOOKUP(D242,資料表及主鍵!C:C,資料表及主鍵!B:B)","v":"人員主檔"},"member.salary","member","salary","real",null,"是","薪資"]
[{"$f":"_xlfn.XLOOKUP(D243,資料表及主鍵!C:C,資料表及主鍵!A:A)","v":"人事"},{"$f":"_xlfn.XLOOKUP(D243,資料表及主鍵!C:C,資料表及主鍵!B:B)","v":"人員主檔"},"member.phone","member","phone","nvarchar","MAX","是","聯絡電話"]
[{"$f":"_xlfn.XLOOKUP(D244,資料表及主鍵!C:C,資料表及主鍵!A:A)","v":"人事"},{"$f":"_xlfn.XLOOKUP(D244,資料表及主鍵!C:C,資料表及主鍵!B:B)","v":"人員主檔"},"member.com_email","member","com_email","nvarchar",400,"是","公司電子信箱"]
[{"$f":"_xlfn.XLOOKUP(D245,資料表及主鍵!C:C,資料表及主鍵!A:A)","v":"人事"},{"$f":"_xlfn.XLOOKUP(D245,資料表及主鍵!C:C,資料表及主鍵!B:B)","v":"人員主檔"},"member.email","member","email","nvarchar",400,"是","個人電子信箱"]
[{"$f":"_xlfn.XLOOKUP(D246,資料表及主鍵!C:C,資料表及主鍵!A:A)","v":"人事"},{"$f":"_xlfn.XLOOKUP(D246,資料表及主鍵!C:C,資料表及主鍵!B:B)","v":"人員主檔"},"member.contact","member","contact","nvarchar",200,"是","其他聯絡方式"]
[{"$f":"_xlfn.XLOOKUP(D247,資料表及主鍵!C:C,資料表及主鍵!A:A)","v":"人事"},{"$f":"_xlfn.XLOOKUP(D247,資料表及主鍵!C:C,資料表及主鍵!B:B)","v":"人員主檔"},"member.address1","member","address1","nvarchar",400,"是","戶籍地址"]
[{"$f":"_xlfn.XLOOKUP(D248,資料表及主鍵!C:C,資料表及主鍵!A:A)","v":"人事"},{"$f":"_xlfn.XLOOKUP(D248,資料表及主鍵!C:C,資料表及主鍵!B:B)","v":"人員主檔"},"member.address2","member","address2","nvarchar",400,"是","居住地址"]
[{"$f":"_xlfn.XLOOKUP(D249,資料表及主鍵!C:C,資料表及主鍵!A:A)","v":"人事"},{"$f":"_xlfn.XLOOKUP(D249,資料表及主鍵!C:C,資料表及主鍵!B:B)","v":"人員主檔"},"member.reg_time","member","reg_time","datetime",null,"是","建檔日期"]
[{"$f":"_xlfn.XLOOKUP(D250,資料表及主鍵!C:C,資料表及主鍵!A:A)","v":"人事"},{"$f":"_xlfn.XLOOKUP(D250,資料表及主鍵!C:C,資料表及主鍵!B:B)","v":"人員主檔"},"member.pic1","member","pic1","nvarchar",100,"是","相片圖檔"]
[{"$f":"_xlfn.XLOOKUP(D251,資料表及主鍵!C:C,資料表及主鍵!A:A)","v":"專案"},{"$f":"_xlfn.XLOOKUP(D251,資料表及主鍵!C:C,資料表及主鍵!B:B)","v":"專案類別管理"},"project_kind.num","project_kind","num","int",null,"否","自動編號"]
[{"$f":"_xlfn.XLOOKUP(D252,資料表及主鍵!C:C,資料表及主鍵!A:A)","v":"專案"},{"$f":"_xlfn.XLOOKUP(D252,資料表及主鍵!C:C,資料表及主鍵!B:B)","v":"專案類別管理"},"project_kind.kind","project_kind","kind","nvarchar",200,"是","分類名稱 *"]
[{"$f":"_xlfn.XLOOKUP(D253,資料表及主鍵!C:C,資料表及主鍵!A:A)","v":"專案"},{"$f":"_xlfn.XLOOKUP(D253,資料表及主鍵!C:C,資料表及主鍵!B:B)","v":"專案類別管理"},"project_kind.root","project_kind","root","int",null,"是","上層編號"]
[{"$f":"_xlfn.XLOOKUP(D254,資料表及主鍵!C:C,資料表及主鍵!A:A)","v":"專案"},{"$f":"_xlfn.XLOOKUP(D254,資料表及主鍵!C:C,資料表及主鍵!B:B)","v":"專案類別管理"},"project_kind.range","project_kind","range","int",null,"是","-"]
[{"$f":"_xlfn.XLOOKUP(D255,資料表及主鍵!C:C,資料表及主鍵!A:A)","v":"專案"},{"$f":"_xlfn.XLOOKUP(D255,資料表及主鍵!C:C,資料表及主鍵!B:B)","v":"專案類別管理"},"project_kind.demo","project_kind","demo","nvarchar","MAX","是","備註"]
[{"$f":"_xlfn.XLOOKUP(D256,資料表及主鍵!C:C,資料表及主鍵!A:A)","v":"專案"},{"$f":"_xlfn.XLOOKUP(D256,資料表及主鍵!C:C,資料表及主鍵!B:B)","v":"專案管理"},"project.num","project","num","int",null,"否","自動編號"]
[{"$f":"_xlfn.XLOOKUP(D257,資料表及主鍵!C:C,資料表及主鍵!A:A)","v":"專案"},{"$f":"_xlfn.XLOOKUP(D257,資料表及主鍵!C:C,資料表及主鍵!B:B)","v":"專案管理"},"project.subject","project","subject","nvarchar",100,"是","名稱 *"]
[{"$f":"_xlfn.XLOOKUP(D258,資料表及主鍵!C:C,資料表及主鍵!A:A)","v":"專案"},{"$f":"_xlfn.XLOOKUP(D258,資料表及主鍵!C:C,資料表及主鍵!B:B)","v":"專案管理"},"project.kind","project","kind","int",null,"是","類別 *","查詢:類別"]
[{"$f":"_xlfn.XLOOKUP(D259,資料表及主鍵!C:C,資料表及主鍵!A:A)","v":"專案"},{"$f":"_xlfn.XLOOKUP(D259,資料表及主鍵!C:C,資料表及主鍵!B:B)","v":"專案管理"},"project.actItem_num","project","actItem_num","int",null,"是","品項 *","查詢:品項"]
[{"$f":"_xlfn.XLOOKUP(D260,資料表及主鍵!C:C,資料表及主鍵!A:A)","v":"專案"},{"$f":"_xlfn.XLOOKUP(D260,資料表及主鍵!C:C,資料表及主鍵!B:B)","v":"專案管理"},"project.demo","project","demo","nvarchar","MAX","是","備註"]
[{"$f":"_xlfn.XLOOKUP(D261,資料表及主鍵!C:C,資料表及主鍵!A:A)","v":"專案"},{"$f":"_xlfn.XLOOKUP(D261,資料表及主鍵!C:C,資料表及主鍵!B:B)","v":"專案管理"},"project.reg_time","project","reg_time","datetime",null,"是","登錄時間"]
[{"$f":"_xlfn.XLOOKUP(D262,資料表及主鍵!C:C,資料表及主鍵!A:A)","v":"人事"},{"$f":"_xlfn.XLOOKUP(D262,資料表及主鍵!C:C,資料表及主鍵!B:B)","v":"人員組別管理"},"member_group.num","member_group","num","int",null,"否","自動編號"]
[{"$f":"_xlfn.XLOOKUP(D263,資料表及主鍵!C:C,資料表及主鍵!A:A)","v":"人事"},{"$f":"_xlfn.XLOOKUP(D263,資料表及主鍵!C:C,資料表及主鍵!B:B)","v":"人員組別管理"},"member_group.kind","member_group","kind","nvarchar",200,"是","名稱 *"]
[{"$f":"_xlfn.XLOOKUP(D264,資料表及主鍵!C:C,資料表及主鍵!A:A)","v":"人事"},{"$f":"_xlfn.XLOOKUP(D264,資料表及主鍵!C:C,資料表及主鍵!B:B)","v":"人員組別管理"},"member_group.starttime","member_group","starttime","time",null,"是","上班時間 *"]
[{"$f":"_xlfn.XLOOKUP(D265,資料表及主鍵!C:C,資料表及主鍵!A:A)","v":"人事"},{"$f":"_xlfn.XLOOKUP(D265,資料表及主鍵!C:C,資料表及主鍵!B:B)","v":"人員組別管理"},"member_group.offtime","member_group","offtime","time",null,"是","下班時間 *"]
[{"$f":"_xlfn.XLOOKUP(D266,資料表及主鍵!C:C,資料表及主鍵!A:A)","v":"人事"},{"$f":"_xlfn.XLOOKUP(D266,資料表及主鍵!C:C,資料表及主鍵!B:B)","v":"人員組別管理"},"member_group.resttime","member_group","resttime","int",null,"是","休息時數",null,"(改為分鐘數)"]
[{"$f":"_xlfn.XLOOKUP(D267,資料表及主鍵!C:C,資料表及主鍵!A:A)","v":"人事"},{"$f":"_xlfn.XLOOKUP(D267,資料表及主鍵!C:C,資料表及主鍵!B:B)","v":"人員組別管理"},"member_group.root","member_group","root","int",null,"是","上層編號"]
[{"$f":"_xlfn.XLOOKUP(D268,資料表及主鍵!C:C,資料表及主鍵!A:A)","v":"人事"},{"$f":"_xlfn.XLOOKUP(D268,資料表及主鍵!C:C,資料表及主鍵!B:B)","v":"人員組別管理"},"member_group.range","member_group","range","int",null,"是","-"]
[{"$f":"_xlfn.XLOOKUP(D269,資料表及主鍵!C:C,資料表及主鍵!A:A)","v":"人事"},{"$f":"_xlfn.XLOOKUP(D269,資料表及主鍵!C:C,資料表及主鍵!B:B)","v":"人員組別管理"},"member_group.demo","member_group","demo","nvarchar","MAX","是","備註"]
[{"$f":"_xlfn.XLOOKUP(D270,資料表及主鍵!C:C,資料表及主鍵!A:A)","v":"專案"},{"$f":"_xlfn.XLOOKUP(D270,資料表及主鍵!C:C,資料表及主鍵!B:B)","v":"專案管理-活動資料"},"project_sub.num","project_sub","num","int",null,"否","自動編號"]
[{"$f":"_xlfn.XLOOKUP(D271,資料表及主鍵!C:C,資料表及主鍵!A:A)","v":"專案"},{"$f":"_xlfn.XLOOKUP(D271,資料表及主鍵!C:C,資料表及主鍵!B:B)","v":"專案管理-活動資料"},"project_sub.subject","project_sub","subject","nvarchar",100,"是","標題 *"]
[{"$f":"_xlfn.XLOOKUP(D272,資料表及主鍵!C:C,資料表及主鍵!A:A)","v":"專案"},{"$f":"_xlfn.XLOOKUP(D272,資料表及主鍵!C:C,資料表及主鍵!B:B)","v":"專案管理-活動資料"},"project_sub.uptime","project_sub","uptime","datetime",null,"是","日期 *"]
[{"$f":"_xlfn.XLOOKUP(D273,資料表及主鍵!C:C,資料表及主鍵!A:A)","v":"專案"},{"$f":"_xlfn.XLOOKUP(D273,資料表及主鍵!C:C,資料表及主鍵!B:B)","v":"專案管理-活動資料"},"project_sub.reg_time","project_sub","reg_time","datetime",null,"是","登錄時間"]
[{"$f":"_xlfn.XLOOKUP(D274,資料表及主鍵!C:C,資料表及主鍵!A:A)","v":"專案"},{"$f":"_xlfn.XLOOKUP(D274,資料表及主鍵!C:C,資料表及主鍵!B:B)","v":"專案管理-活動資料"},"project_sub.word","project_sub","word","nvarchar","MAX","是","內容 *","(HTML編輯器)"]
[{"$f":"_xlfn.XLOOKUP(D275,資料表及主鍵!C:C,資料表及主鍵!A:A)","v":"專案"},{"$f":"_xlfn.XLOOKUP(D275,資料表及主鍵!C:C,資料表及主鍵!B:B)","v":"專案管理-活動資料"},"project_sub.pic1","project_sub","pic1","nvarchar",100,"是","照片上傳"]
[{"$f":"_xlfn.XLOOKUP(D276,資料表及主鍵!C:C,資料表及主鍵!A:A)","v":"專案"},{"$f":"_xlfn.XLOOKUP(D276,資料表及主鍵!C:C,資料表及主鍵!B:B)","v":"專案管理-活動資料"},"project_sub.pro_id","project_sub","pro_id","int",null,"是","相關專案","主檔/明細關聯: 專案管理"]
[{"$f":"_xlfn.XLOOKUP(D277,資料表及主鍵!C:C,資料表及主鍵!A:A)","v":"公告"},{"$f":"_xlfn.XLOOKUP(D277,資料表及主鍵!C:C,資料表及主鍵!B:B)","v":"公告資料-附件檔"},"news_files.num","news_files","num","nvarchar",28,"否","自動編號"]
[{"$f":"_xlfn.XLOOKUP(D278,資料表及主鍵!C:C,資料表及主鍵!A:A)","v":"公告"},{"$f":"_xlfn.XLOOKUP(D278,資料表及主鍵!C:C,資料表及主鍵!B:B)","v":"公告資料-附件檔"},"news_files.news_id","news_files","news_id","int",null,"否","相關公告","主檔/明細關聯:公告資料主檔"]
[{"$f":"_xlfn.XLOOKUP(D279,資料表及主鍵!C:C,資料表及主鍵!A:A)","v":"公告"},{"$f":"_xlfn.XLOOKUP(D279,資料表及主鍵!C:C,資料表及主鍵!B:B)","v":"公告資料-附件檔"},"news_files.pic1","news_files","pic1","nvarchar",100,"是","圖檔/檔名"]
[{"$f":"_xlfn.XLOOKUP(D280,資料表及主鍵!C:C,資料表及主鍵!A:A)","v":"公告"},{"$f":"_xlfn.XLOOKUP(D280,資料表及主鍵!C:C,資料表及主鍵!B:B)","v":"公告資料-附件檔"},"news_files.reg_time","news_files","reg_time","datetime",null,"是","登錄時間"]
[{"$f":"_xlfn.XLOOKUP(D281,資料表及主鍵!C:C,資料表及主鍵!A:A)","v":"公告"},{"$f":"_xlfn.XLOOKUP(D281,資料表及主鍵!C:C,資料表及主鍵!B:B)","v":"公告資料-附件檔"},"news_files.pic_name","news_files","pic_name","nvarchar",300,"是","原始圖檔/檔名"]
[{"$f":"_xlfn.XLOOKUP(D282,資料表及主鍵!C:C,資料表及主鍵!A:A)","v":"公告"},{"$f":"_xlfn.XLOOKUP(D282,資料表及主鍵!C:C,資料表及主鍵!B:B)","v":"公告資料-附件檔"},"news_files.pic_type","news_files","pic_type","nvarchar",20,"是","檔案型態"]
[{"$f":"_xlfn.XLOOKUP(D283,資料表及主鍵!C:C,資料表及主鍵!A:A)","v":"基本資料"},{"$f":"_xlfn.XLOOKUP(D283,資料表及主鍵!C:C,資料表及主鍵!B:B)","v":"品項分類管理"},"actItem_kind.num","actItem_kind","num","int",null,"否","自動編號"]
[{"$f":"_xlfn.XLOOKUP(D284,資料表及主鍵!C:C,資料表及主鍵!A:A)","v":"基本資料"},{"$f":"_xlfn.XLOOKUP(D284,資料表及主鍵!C:C,資料表及主鍵!B:B)","v":"品項分類管理"},"actItem_kind.kind","actItem_kind","kind","nvarchar",200,"是","分類名稱 *"]
[{"$f":"_xlfn.XLOOKUP(D285,資料表及主鍵!C:C,資料表及主鍵!A:A)","v":"基本資料"},{"$f":"_xlfn.XLOOKUP(D285,資料表及主鍵!C:C,資料表及主鍵!B:B)","v":"品項分類管理"},"actItem_kind.root","actItem_kind","root","int",null,"是","上層編號"]
[{"$f":"_xlfn.XLOOKUP(D286,資料表及主鍵!C:C,資料表及主鍵!A:A)","v":"基本資料"},{"$f":"_xlfn.XLOOKUP(D286,資料表及主鍵!C:C,資料表及主鍵!B:B)","v":"品項分類管理"},"actItem_kind.range","actItem_kind","range","int",null,"是","-"]
[{"$f":"_xlfn.XLOOKUP(D287,資料表及主鍵!C:C,資料表及主鍵!A:A)","v":"基本資料"},{"$f":"_xlfn.XLOOKUP(D287,資料表及主鍵!C:C,資料表及主鍵!B:B)","v":"品項分類管理"},"actItem_kind.demo","actItem_kind","demo","nvarchar","MAX","是","備註"]
[{"$f":"_xlfn.XLOOKUP(D288,資料表及主鍵!C:C,資料表及主鍵!A:A)","v":"基本資料"},{"$f":"_xlfn.XLOOKUP(D288,資料表及主鍵!C:C,資料表及主鍵!B:B)","v":"品項分類管理"},"actItem_kind.status","actItem_kind","status","nvarchar",2,"是","狀態","Y, N"]
[{"$f":"_xlfn.XLOOKUP(D289,資料表及主鍵!C:C,資料表及主鍵!A:A)","v":"基本資料"},{"$f":"_xlfn.XLOOKUP(D289,資料表及主鍵!C:C,資料表及主鍵!B:B)","v":"品項管理主檔"},"actItem.num","actItem","num","int",null,"否","自動編號"]
[{"$f":"_xlfn.XLOOKUP(D290,資料表及主鍵!C:C,資料表及主鍵!A:A)","v":"基本資料"},{"$f":"_xlfn.XLOOKUP(D290,資料表及主鍵!C:C,資料表及主鍵!B:B)","v":"品項管理主檔"},"actItem.subject","actItem","subject","nvarchar",200,"是","項目名稱 *"]
[{"$f":"_xlfn.XLOOKUP(D291,資料表及主鍵!C:C,資料表及主鍵!A:A)","v":"基本資料"},{"$f":"_xlfn.XLOOKUP(D291,資料表及主鍵!C:C,資料表及主鍵!B:B)","v":"品項管理主檔"},"actItem.kind","actItem","kind","int",null,"是","項目分類 *","查詢:項目分類"]
[{"$f":"_xlfn.XLOOKUP(D292,資料表及主鍵!C:C,資料表及主鍵!A:A)","v":"基本資料"},{"$f":"_xlfn.XLOOKUP(D292,資料表及主鍵!C:C,資料表及主鍵!B:B)","v":"品項管理主檔"},"actItem.price","actItem","price","real",null,"是","預設金額"]
[{"$f":"_xlfn.XLOOKUP(D293,資料表及主鍵!C:C,資料表及主鍵!A:A)","v":"基本資料"},{"$f":"_xlfn.XLOOKUP(D293,資料表及主鍵!C:C,資料表及主鍵!B:B)","v":"品項管理主檔"},"actItem.status","actItem","status","nvarchar",2,"是","狀態 *"]
[{"$f":"_xlfn.XLOOKUP(D294,資料表及主鍵!C:C,資料表及主鍵!A:A)","v":"基本資料"},{"$f":"_xlfn.XLOOKUP(D294,資料表及主鍵!C:C,資料表及主鍵!B:B)","v":"品項管理主檔"},"actItem.demo","actItem","demo","nvarchar","MAX","是","備註"]
[{"$f":"_xlfn.XLOOKUP(D295,資料表及主鍵!C:C,資料表及主鍵!A:A)","v":"基本資料"},{"$f":"_xlfn.XLOOKUP(D295,資料表及主鍵!C:C,資料表及主鍵!B:B)","v":"品項管理主檔"},"actItem.extend","actItem","extend","nvarchar",2,"是","應續約","(勾選)"]
[{"$f":"_xlfn.XLOOKUP(D296,資料表及主鍵!C:C,資料表及主鍵!A:A)","v":"基本資料"},{"$f":"_xlfn.XLOOKUP(D296,資料表及主鍵!C:C,資料表及主鍵!B:B)","v":"品項管理主檔"},"actItem.cycle","actItem","cycle","int",null,"是","收費週期 *",null,"應續約時, 記載月數"]
[{"$f":"_xlfn.XLOOKUP(D297,資料表及主鍵!C:C,資料表及主鍵!A:A)","v":"基本資料"},{"$f":"_xlfn.XLOOKUP(D297,資料表及主鍵!C:C,資料表及主鍵!B:B)","v":"品項管理主檔"},"actItem.category","actItem","category","int",null,"是","項目類別 *","報名項目, 掛單項目, 備品項目, 贊助項目"]
[{"$f":"_xlfn.XLOOKUP(D298,資料表及主鍵!C:C,資料表及主鍵!A:A)","v":"基本資料"},{"$f":"_xlfn.XLOOKUP(D298,資料表及主鍵!C:C,資料表及主鍵!B:B)","v":"品項管理主檔"},"actItem.customize_data","actItem","customize_data","nvarchar","MAX","是","自定義欄位預設值",null,"報表套印的自訂變數"]
[{"$f":"_xlfn.XLOOKUP(D299,資料表及主鍵!C:C,資料表及主鍵!A:A)","v":"信眾"},{"$f":"_xlfn.XLOOKUP(D299,資料表及主鍵!C:C,資料表及主鍵!B:B)","v":"信眾資料"},"followers.num","followers","num","int",null,"否","自動編號"]
[{"$f":"_xlfn.XLOOKUP(D300,資料表及主鍵!C:C,資料表及主鍵!A:A)","v":"信眾"},{"$f":"_xlfn.XLOOKUP(D300,資料表及主鍵!C:C,資料表及主鍵!B:B)","v":"信眾資料"},"followers.f_number","followers","f_number","nvarchar",40,"是","信眾編號 *"]
[{"$f":"_xlfn.XLOOKUP(D301,資料表及主鍵!C:C,資料表及主鍵!A:A)","v":"信眾"},{"$f":"_xlfn.XLOOKUP(D301,資料表及主鍵!C:C,資料表及主鍵!B:B)","v":"信眾資料"},"followers.u_name","followers","u_name","nvarchar",40,"是","信眾姓名 *"]
[{"$f":"_xlfn.XLOOKUP(D302,資料表及主鍵!C:C,資料表及主鍵!A:A)","v":"信眾"},{"$f":"_xlfn.XLOOKUP(D302,資料表及主鍵!C:C,資料表及主鍵!B:B)","v":"信眾資料"},"followers.sex","followers","sex","nvarchar",4,"是","性別 *","男眾/女眾"]
[{"$f":"_xlfn.XLOOKUP(D303,資料表及主鍵!C:C,資料表及主鍵!A:A)","v":"信眾"},{"$f":"_xlfn.XLOOKUP(D303,資料表及主鍵!C:C,資料表及主鍵!B:B)","v":"信眾資料"},"followers.identity_type","followers","identity_type","int",null,"是","身分別 *","個人/法人/往生菩薩/出家眾"]
[{"$f":"_xlfn.XLOOKUP(D304,資料表及主鍵!C:C,資料表及主鍵!A:A)","v":"信眾"},{"$f":"_xlfn.XLOOKUP(D304,資料表及主鍵!C:C,資料表及主鍵!B:B)","v":"信眾資料"},"followers.birthday","followers","birthday","datetime",null,"是","生日"]
[{"$f":"_xlfn.XLOOKUP(D305,資料表及主鍵!C:C,資料表及主鍵!A:A)","v":"信眾"},{"$f":"_xlfn.XLOOKUP(D305,資料表及主鍵!C:C,資料表及主鍵!B:B)","v":"信眾資料"},"followers.phone","followers","phone","nvarchar","MAX","是","聯絡電話"]
[{"$f":"_xlfn.XLOOKUP(D306,資料表及主鍵!C:C,資料表及主鍵!A:A)","v":"信眾"},{"$f":"_xlfn.XLOOKUP(D306,資料表及主鍵!C:C,資料表及主鍵!B:B)","v":"信眾資料"},"followers.email","followers","email","nvarchar",400,"是","電子信箱"]
[{"$f":"_xlfn.XLOOKUP(D307,資料表及主鍵!C:C,資料表及主鍵!A:A)","v":"信眾"},{"$f":"_xlfn.XLOOKUP(D307,資料表及主鍵!C:C,資料表及主鍵!B:B)","v":"信眾資料"},"followers.refugedate","followers","refugedate","datetime",null,"是","皈依日期"]
[{"$f":"_xlfn.XLOOKUP(D308,資料表及主鍵!C:C,資料表及主鍵!A:A)","v":"信眾"},{"$f":"_xlfn.XLOOKUP(D308,資料表及主鍵!C:C,資料表及主鍵!B:B)","v":"信眾資料"},"followers.refuge_name","followers","refuge_name","nvarchar",40,"是","皈依法名"]
[{"$f":"_xlfn.XLOOKUP(D309,資料表及主鍵!C:C,資料表及主鍵!A:A)","v":"信眾"},{"$f":"_xlfn.XLOOKUP(D309,資料表及主鍵!C:C,資料表及主鍵!B:B)","v":"信眾資料"},"followers.address","followers","address","nvarchar",400,"是","收件地址"]
[{"$f":"_xlfn.XLOOKUP(D310,資料表及主鍵!C:C,資料表及主鍵!A:A)","v":"信眾"},{"$f":"_xlfn.XLOOKUP(D310,資料表及主鍵!C:C,資料表及主鍵!B:B)","v":"信眾資料"},"followers.demo","followers","demo","nvarchar","MAX","是","備註"]
[{"$f":"_xlfn.XLOOKUP(D311,資料表及主鍵!C:C,資料表及主鍵!A:A)","v":"信眾"},{"$f":"_xlfn.XLOOKUP(D311,資料表及主鍵!C:C,資料表及主鍵!B:B)","v":"信眾資料"},"followers.leader","followers","leader","int",null,"是","家長"]
[{"$f":"_xlfn.XLOOKUP(D312,資料表及主鍵!C:C,資料表及主鍵!A:A)","v":"信眾"},{"$f":"_xlfn.XLOOKUP(D312,資料表及主鍵!C:C,資料表及主鍵!B:B)","v":"信眾資料"},"followers.socialid1","followers","socialid1","nvarchar",100,"是","社群帳號1"]
[{"$f":"_xlfn.XLOOKUP(D313,資料表及主鍵!C:C,資料表及主鍵!A:A)","v":"信眾"},{"$f":"_xlfn.XLOOKUP(D313,資料表及主鍵!C:C,資料表及主鍵!B:B)","v":"信眾資料"},"followers.socialid2","followers","socialid2","nvarchar",100,"是","社群帳號2"]
[{"$f":"_xlfn.XLOOKUP(D314,資料表及主鍵!C:C,資料表及主鍵!A:A)","v":"信眾"},{"$f":"_xlfn.XLOOKUP(D314,資料表及主鍵!C:C,資料表及主鍵!B:B)","v":"信眾資料"},"followers.tab","followers","tab","nvarchar","MAX","是","自訂標籤",null,"可自定義多組關鍵字"]
[{"$f":"_xlfn.XLOOKUP(D315,資料表及主鍵!C:C,資料表及主鍵!A:A)","v":"信眾"},{"$f":"_xlfn.XLOOKUP(D315,資料表及主鍵!C:C,資料表及主鍵!B:B)","v":"信眾資料"},"followers.contactor","followers","contactor","nvarchar",40,"是","緊急連絡人"]
[{"$f":"_xlfn.XLOOKUP(D316,資料表及主鍵!C:C,資料表及主鍵!A:A)","v":"信眾"},{"$f":"_xlfn.XLOOKUP(D316,資料表及主鍵!C:C,資料表及主鍵!B:B)","v":"信眾資料"},"followers.contactor_phone","followers","contactor_phone","nvarchar","MAX","是","緊急連絡人電話"]
[{"$f":"_xlfn.XLOOKUP(D317,資料表及主鍵!C:C,資料表及主鍵!A:A)","v":"信眾"},{"$f":"_xlfn.XLOOKUP(D317,資料表及主鍵!C:C,資料表及主鍵!B:B)","v":"信眾資料"},"followers.blood","followers","blood","nvarchar",4,"是","血型","A/B/AB/O","問題: Rh陰性/陽性?"]
[{"$f":"_xlfn.XLOOKUP(D318,資料表及主鍵!C:C,資料表及主鍵!A:A)","v":"信眾"},{"$f":"_xlfn.XLOOKUP(D318,資料表及主鍵!C:C,資料表及主鍵!B:B)","v":"信眾資料"},"followers.customize_data","followers","customize_data","nvarchar","MAX","是","自定義欄位預設值",null,"套印報表的自訂變數值"]
[{"$f":"_xlfn.XLOOKUP(D319,資料表及主鍵!C:C,資料表及主鍵!A:A)","v":"信眾"},{"$f":"_xlfn.XLOOKUP(D319,資料表及主鍵!C:C,資料表及主鍵!B:B)","v":"信眾資料"},"followers.introducer","followers","introducer","nvarchar",40,"是","介紹人"]
[{"$f":"_xlfn.XLOOKUP(D320,資料表及主鍵!C:C,資料表及主鍵!A:A)","v":"信眾"},{"$f":"_xlfn.XLOOKUP(D320,資料表及主鍵!C:C,資料表及主鍵!B:B)","v":"信眾資料"},"followers.refuge_area","followers","refuge_area","nvarchar",50,"是","皈依道場"]
[{"$f":"_xlfn.XLOOKUP(D321,資料表及主鍵!C:C,資料表及主鍵!A:A)","v":"信眾"},{"$f":"_xlfn.XLOOKUP(D321,資料表及主鍵!C:C,資料表及主鍵!B:B)","v":"信眾資料"},"followers.admin_log","followers","admin_log","nvarchar",50,"是","(新欄位)"]
[{"$f":"_xlfn.XLOOKUP(D322,資料表及主鍵!C:C,資料表及主鍵!A:A)","v":"信眾"},{"$f":"_xlfn.XLOOKUP(D322,資料表及主鍵!C:C,資料表及主鍵!B:B)","v":"信眾資料"},"followers.cellphone","followers","cellphone","nvarchar","MAX","是","(新欄位)"]
[{"$f":"_xlfn.XLOOKUP(D323,資料表及主鍵!C:C,資料表及主鍵!A:A)","v":"信眾"},{"$f":"_xlfn.XLOOKUP(D323,資料表及主鍵!C:C,資料表及主鍵!B:B)","v":"信眾資料"},"followers.id_code","followers","id_code","nvarchar","MAX","是","(新欄位)"]
[{"$f":"_xlfn.XLOOKUP(D324,資料表及主鍵!C:C,資料表及主鍵!A:A)","v":"信眾"},{"$f":"_xlfn.XLOOKUP(D324,資料表及主鍵!C:C,資料表及主鍵!B:B)","v":"信眾資料"},"followers.passport","followers","passport","nvarchar","MAX","是","(新欄位)"]
[{"$f":"_xlfn.XLOOKUP(D325,資料表及主鍵!C:C,資料表及主鍵!A:A)","v":"信眾"},{"$f":"_xlfn.XLOOKUP(D325,資料表及主鍵!C:C,資料表及主鍵!B:B)","v":"信眾資料"},"followers.reg_time","followers","reg_time","datetime",null,"是","(新欄位)"]
[{"$f":"_xlfn.XLOOKUP(D326,資料表及主鍵!C:C,資料表及主鍵!A:A)","v":"信眾"},{"$f":"_xlfn.XLOOKUP(D326,資料表及主鍵!C:C,資料表及主鍵!B:B)","v":"信眾資料"},"followers.join_date","followers","join_date","datetime",null,"是","加入日期"]
[{"$f":"_xlfn.XLOOKUP(D327,資料表及主鍵!C:C,資料表及主鍵!A:A)","v":"信眾"},{"$f":"_xlfn.XLOOKUP(D327,資料表及主鍵!C:C,資料表及主鍵!B:B)","v":"信眾資料"},"followers.country","followers","country","nvarchar",10,"是","國家編號","FK_followers_country"]
[{"$f":"_xlfn.XLOOKUP(D328,資料表及主鍵!C:C,資料表及主鍵!A:A)","v":"信眾"},{"$f":"_xlfn.XLOOKUP(D328,資料表及主鍵!C:C,資料表及主鍵!B:B)","v":"信眾資料"},"followers.appellation_id","followers","appellation_id","int",null,"是","稱謂","FK_followers_appellation"]
[{"$f":"_xlfn.XLOOKUP(D329,資料表及主鍵!C:C,資料表及主鍵!A:A)","v":"信眾"},{"$f":"_xlfn.XLOOKUP(D329,資料表及主鍵!C:C,資料表及主鍵!B:B)","v":"信眾資料"},{"$f":"D329&\".\"&E329","v":"followers.follower_hash"},"followers","follower_hash","nvarchar",100,"是","SHA(電話+身份證號)"]
[{"$f":"_xlfn.XLOOKUP(D330,資料表及主鍵!C:C,資料表及主鍵!A:A)","v":"選項"},{"$f":"_xlfn.XLOOKUP(D330,資料表及主鍵!C:C,資料表及主鍵!B:B)","v":"後台設定檔"},"company.num","company","num","int",null,"否","自動編號"]
[{"$f":"_xlfn.XLOOKUP(D331,資料表及主鍵!C:C,資料表及主鍵!A:A)","v":"選項"},{"$f":"_xlfn.XLOOKUP(D331,資料表及主鍵!C:C,資料表及主鍵!B:B)","v":"後台設定檔"},"company.com_name","company","com_name","nvarchar",40,"是","公司名稱 *"]
[{"$f":"_xlfn.XLOOKUP(D332,資料表及主鍵!C:C,資料表及主鍵!A:A)","v":"選項"},{"$f":"_xlfn.XLOOKUP(D332,資料表及主鍵!C:C,資料表及主鍵!B:B)","v":"後台設定檔"},"company.com_mail","company","com_mail","nvarchar",400,"是","公司信箱"]
[{"$f":"_xlfn.XLOOKUP(D333,資料表及主鍵!C:C,資料表及主鍵!A:A)","v":"選項"},{"$f":"_xlfn.XLOOKUP(D333,資料表及主鍵!C:C,資料表及主鍵!B:B)","v":"後台設定檔"},"company.bcc_mail","company","bcc_mail","nvarchar","MAX","是","公司信箱BCC"]
[{"$f":"_xlfn.XLOOKUP(D334,資料表及主鍵!C:C,資料表及主鍵!A:A)","v":"選項"},{"$f":"_xlfn.XLOOKUP(D334,資料表及主鍵!C:C,資料表及主鍵!B:B)","v":"後台設定檔"},"company.pic_url","company","pic_url","nvarchar",400,"是","目前網址 *"]
[{"$f":"_xlfn.XLOOKUP(D335,資料表及主鍵!C:C,資料表及主鍵!A:A)","v":"選項"},{"$f":"_xlfn.XLOOKUP(D335,資料表及主鍵!C:C,資料表及主鍵!B:B)","v":"後台設定檔"},"company.menu","company","menu","bit",null,"是","-"]
[{"$f":"_xlfn.XLOOKUP(D336,資料表及主鍵!C:C,資料表及主鍵!A:A)","v":"選項"},{"$f":"_xlfn.XLOOKUP(D336,資料表及主鍵!C:C,資料表及主鍵!B:B)","v":"後台設定檔"},"company.log_class","company","log_class","bit",null,"是","-"]
[{"$f":"_xlfn.XLOOKUP(D337,資料表及主鍵!C:C,資料表及主鍵!A:A)","v":"選項"},{"$f":"_xlfn.XLOOKUP(D337,資料表及主鍵!C:C,資料表及主鍵!B:B)","v":"後台設定檔"},"company.log_menu","company","log_menu","nvarchar",40,"是","-"]
[{"$f":"_xlfn.XLOOKUP(D338,資料表及主鍵!C:C,資料表及主鍵!A:A)","v":"選項"},{"$f":"_xlfn.XLOOKUP(D338,資料表及主鍵!C:C,資料表及主鍵!B:B)","v":"後台設定檔"},"company.last_order_no","company","last_order_no","nvarchar",40,"是","-"]
[{"$f":"_xlfn.XLOOKUP(D339,資料表及主鍵!C:C,資料表及主鍵!A:A)","v":"選項"},{"$f":"_xlfn.XLOOKUP(D339,資料表及主鍵!C:C,資料表及主鍵!B:B)","v":"後台設定檔"},"company.adwidth","company","adwidth","nvarchar",20,"是","-"]
[{"$f":"_xlfn.XLOOKUP(D340,資料表及主鍵!C:C,資料表及主鍵!A:A)","v":"選項"},{"$f":"_xlfn.XLOOKUP(D340,資料表及主鍵!C:C,資料表及主鍵!B:B)","v":"後台設定檔"},"company.wrp_news","company","wrp_news","nvarchar",2,"是","-"]
[{"$f":"_xlfn.XLOOKUP(D341,資料表及主鍵!C:C,資料表及主鍵!A:A)","v":"選項"},{"$f":"_xlfn.XLOOKUP(D341,資料表及主鍵!C:C,資料表及主鍵!B:B)","v":"後台設定檔"},"company.wrp_bar","company","wrp_bar","nvarchar",2,"是","-"]
[{"$f":"_xlfn.XLOOKUP(D342,資料表及主鍵!C:C,資料表及主鍵!A:A)","v":"選項"},{"$f":"_xlfn.XLOOKUP(D342,資料表及主鍵!C:C,資料表及主鍵!B:B)","v":"後台設定檔"},"company.smtp_url","company","smtp_url","nvarchar",100,"是","SMTP 主機位址"]
[{"$f":"_xlfn.XLOOKUP(D343,資料表及主鍵!C:C,資料表及主鍵!A:A)","v":"選項"},{"$f":"_xlfn.XLOOKUP(D343,資料表及主鍵!C:C,資料表及主鍵!B:B)","v":"後台設定檔"},"company.smtp_port","company","smtp_port","nvarchar",20,"是","SMTP Port"]
[{"$f":"_xlfn.XLOOKUP(D344,資料表及主鍵!C:C,資料表及主鍵!A:A)","v":"選項"},{"$f":"_xlfn.XLOOKUP(D344,資料表及主鍵!C:C,資料表及主鍵!B:B)","v":"後台設定檔"},"company.smtp_ssl","company","smtp_ssl","nvarchar",2,"是","SMTP SSL設定","啟用/未啟用"]
[{"$f":"_xlfn.XLOOKUP(D345,資料表及主鍵!C:C,資料表及主鍵!A:A)","v":"選項"},{"$f":"_xlfn.XLOOKUP(D345,資料表及主鍵!C:C,資料表及主鍵!B:B)","v":"後台設定檔"},"company.smtp_user","company","smtp_user","nvarchar",100,"是","SMTP 帳號"]
[{"$f":"_xlfn.XLOOKUP(D346,資料表及主鍵!C:C,資料表及主鍵!A:A)","v":"選項"},{"$f":"_xlfn.XLOOKUP(D346,資料表及主鍵!C:C,資料表及主鍵!B:B)","v":"後台設定檔"},"company.smtp_password","company","smtp_password","nvarchar","MAX","是","SMTP 密碼"]
[{"$f":"_xlfn.XLOOKUP(D347,資料表及主鍵!C:C,資料表及主鍵!A:A)","v":"選項"},{"$f":"_xlfn.XLOOKUP(D347,資料表及主鍵!C:C,資料表及主鍵!B:B)","v":"後台設定檔"},"company.smtp_def","company","smtp_def","nvarchar",2,"是","使用預設驗證","不設定 / 是 / 否"]
[{"$f":"_xlfn.XLOOKUP(D348,資料表及主鍵!C:C,資料表及主鍵!A:A)","v":"選項"},{"$f":"_xlfn.XLOOKUP(D348,資料表及主鍵!C:C,資料表及主鍵!B:B)","v":"後台設定檔"},"company.use_sender","company","use_sender","nvarchar",2,"是","用此帳號作為寄件者","(勾選)"]
[{"$f":"_xlfn.XLOOKUP(D349,資料表及主鍵!C:C,資料表及主鍵!A:A)","v":"選項"},{"$f":"_xlfn.XLOOKUP(D349,資料表及主鍵!C:C,資料表及主鍵!B:B)","v":"後台設定檔"},"company.bed_order_no","company","bed_order_no","nvarchar",40,"是","-"]
[{"$f":"_xlfn.XLOOKUP(D350,資料表及主鍵!C:C,資料表及主鍵!A:A)","v":"活動"},{"$f":"_xlfn.XLOOKUP(D350,資料表及主鍵!C:C,資料表及主鍵!B:B)","v":"活動主類型"},"activity_category_kind.num","activity_category_kind","num","int",null,"否","自動編號"]
[{"$f":"_xlfn.XLOOKUP(D351,資料表及主鍵!C:C,資料表及主鍵!A:A)","v":"活動"},{"$f":"_xlfn.XLOOKUP(D351,資料表及主鍵!C:C,資料表及主鍵!B:B)","v":"活動主類型"},"activity_category_kind.kind","activity_category_kind","kind","nvarchar",200,"是","類型名稱"]
[{"$f":"_xlfn.XLOOKUP(D352,資料表及主鍵!C:C,資料表及主鍵!A:A)","v":"活動"},{"$f":"_xlfn.XLOOKUP(D352,資料表及主鍵!C:C,資料表及主鍵!B:B)","v":"活動主類型"},"activity_category_kind.root","activity_category_kind","root","int",null,"是","-"]
[{"$f":"_xlfn.XLOOKUP(D353,資料表及主鍵!C:C,資料表及主鍵!A:A)","v":"活動"},{"$f":"_xlfn.XLOOKUP(D353,資料表及主鍵!C:C,資料表及主鍵!B:B)","v":"活動主類型"},"activity_category_kind.range","activity_category_kind","range","int",null,"是","-"]
[{"$f":"_xlfn.XLOOKUP(D354,資料表及主鍵!C:C,資料表及主鍵!A:A)","v":"活動"},{"$f":"_xlfn.XLOOKUP(D354,資料表及主鍵!C:C,資料表及主鍵!B:B)","v":"活動詳細分類"},"activity_kind.num","activity_kind","num","int",null,"否","自動編號"]
[{"$f":"_xlfn.XLOOKUP(D355,資料表及主鍵!C:C,資料表及主鍵!A:A)","v":"活動"},{"$f":"_xlfn.XLOOKUP(D355,資料表及主鍵!C:C,資料表及主鍵!B:B)","v":"活動詳細分類"},"activity_kind.kind","activity_kind","kind","nvarchar",200,"是","分類名稱 *"]
[{"$f":"_xlfn.XLOOKUP(D356,資料表及主鍵!C:C,資料表及主鍵!A:A)","v":"活動"},{"$f":"_xlfn.XLOOKUP(D356,資料表及主鍵!C:C,資料表及主鍵!B:B)","v":"活動詳細分類"},"activity_kind.root","activity_kind","root","int",null,"是","上層編號"]
[{"$f":"_xlfn.XLOOKUP(D357,資料表及主鍵!C:C,資料表及主鍵!A:A)","v":"活動"},{"$f":"_xlfn.XLOOKUP(D357,資料表及主鍵!C:C,資料表及主鍵!B:B)","v":"活動詳細分類"},"activity_kind.range","activity_kind","range","int",null,"是","-"]
[{"$f":"_xlfn.XLOOKUP(D358,資料表及主鍵!C:C,資料表及主鍵!A:A)","v":"活動"},{"$f":"_xlfn.XLOOKUP(D358,資料表及主鍵!C:C,資料表及主鍵!B:B)","v":"活動詳細分類"},"activity_kind.demo","activity_kind","demo","nvarchar","MAX","是","備註"]
[{"$f":"_xlfn.XLOOKUP(D359,資料表及主鍵!C:C,資料表及主鍵!A:A)","v":"活動"},{"$f":"_xlfn.XLOOKUP(D359,資料表及主鍵!C:C,資料表及主鍵!B:B)","v":"活動詳細分類"},"activity_kind.calendar","activity_kind","calendar","nvarchar",4,"是","預設起始日期-曆","國曆/農曆"]
[{"$f":"_xlfn.XLOOKUP(D360,資料表及主鍵!C:C,資料表及主鍵!A:A)","v":"活動"},{"$f":"_xlfn.XLOOKUP(D360,資料表及主鍵!C:C,資料表及主鍵!B:B)","v":"活動詳細分類"},"activity_kind.month","activity_kind","month","int",null,"是","預設起始日期-月"]
[{"$f":"_xlfn.XLOOKUP(D361,資料表及主鍵!C:C,資料表及主鍵!A:A)","v":"活動"},{"$f":"_xlfn.XLOOKUP(D361,資料表及主鍵!C:C,資料表及主鍵!B:B)","v":"活動詳細分類"},"activity_kind.day","activity_kind","day","int",null,"是","預設起始日期-日"]
[{"$f":"_xlfn.XLOOKUP(D362,資料表及主鍵!C:C,資料表及主鍵!A:A)","v":"庫存"},{"$f":"_xlfn.XLOOKUP(D362,資料表及主鍵!C:C,資料表及主鍵!B:B)","v":"庫存管理主檔"},"stock.num","stock","num","int",null,"否","自動編號"]
[{"$f":"_xlfn.XLOOKUP(D363,資料表及主鍵!C:C,資料表及主鍵!A:A)","v":"庫存"},{"$f":"_xlfn.XLOOKUP(D363,資料表及主鍵!C:C,資料表及主鍵!B:B)","v":"庫存管理主檔"},"stock.uptime","stock","uptime","datetime",null,"是","日期 *"]
[{"$f":"_xlfn.XLOOKUP(D364,資料表及主鍵!C:C,資料表及主鍵!A:A)","v":"庫存"},{"$f":"_xlfn.XLOOKUP(D364,資料表及主鍵!C:C,資料表及主鍵!B:B)","v":"庫存管理主檔"},"stock.category","stock","category","int",null,"是","進出類型 *","庫存增加(+) / 庫存減少(-) / 租借(-) / 租借歸還(+)"]
[{"$f":"_xlfn.XLOOKUP(D365,資料表及主鍵!C:C,資料表及主鍵!A:A)","v":"庫存"},{"$f":"_xlfn.XLOOKUP(D365,資料表及主鍵!C:C,資料表及主鍵!B:B)","v":"庫存管理主檔"},"stock.kind","stock","kind","int",null,"是","進出倉庫 *","查詢:倉庫資料主檔"]
[{"$f":"_xlfn.XLOOKUP(D366,資料表及主鍵!C:C,資料表及主鍵!A:A)","v":"庫存"},{"$f":"_xlfn.XLOOKUP(D366,資料表及主鍵!C:C,資料表及主鍵!B:B)","v":"庫存管理主檔"},"stock.activity_num","stock","activity_num","int",null,"是","相關活動","查詢:相關活動"]
[{"$f":"_xlfn.XLOOKUP(D367,資料表及主鍵!C:C,資料表及主鍵!A:A)","v":"庫存"},{"$f":"_xlfn.XLOOKUP(D367,資料表及主鍵!C:C,資料表及主鍵!B:B)","v":"庫存管理主檔"},"stock.actItem_num","stock","actItem_num","int",null,"是","品項 *","查詢:品項"]
[{"$f":"_xlfn.XLOOKUP(D368,資料表及主鍵!C:C,資料表及主鍵!A:A)","v":"庫存"},{"$f":"_xlfn.XLOOKUP(D368,資料表及主鍵!C:C,資料表及主鍵!B:B)","v":"庫存管理主檔"},"stock.qty","stock","qty","int",null,"是","數量 *"]
[{"$f":"_xlfn.XLOOKUP(D369,資料表及主鍵!C:C,資料表及主鍵!A:A)","v":"庫存"},{"$f":"_xlfn.XLOOKUP(D369,資料表及主鍵!C:C,資料表及主鍵!B:B)","v":"庫存管理主檔"},"stock.price","stock","price","real",null,"是","進貨單價",null,"(限: 庫存增加 狀態)"]
[{"$f":"_xlfn.XLOOKUP(D370,資料表及主鍵!C:C,資料表及主鍵!A:A)","v":"庫存"},{"$f":"_xlfn.XLOOKUP(D370,資料表及主鍵!C:C,資料表及主鍵!B:B)","v":"庫存管理主檔"},"stock.demo","stock","demo","nvarchar","MAX","是","備註"]
[{"$f":"_xlfn.XLOOKUP(D371,資料表及主鍵!C:C,資料表及主鍵!A:A)","v":"庫存"},{"$f":"_xlfn.XLOOKUP(D371,資料表及主鍵!C:C,資料表及主鍵!B:B)","v":"庫存管理主檔"},"stock.reg_time","stock","reg_time","datetime",null,"是","登錄時間"]
[{"$f":"_xlfn.XLOOKUP(D372,資料表及主鍵!C:C,資料表及主鍵!A:A)","v":"庫存"},{"$f":"_xlfn.XLOOKUP(D372,資料表及主鍵!C:C,資料表及主鍵!B:B)","v":"庫存管理主檔"},"stock.mem_num","stock","mem_num","int",null,"是","內部負責人 *","查詢:人事"]
[{"$f":"_xlfn.XLOOKUP(D373,資料表及主鍵!C:C,資料表及主鍵!A:A)","v":"庫存"},{"$f":"_xlfn.XLOOKUP(D373,資料表及主鍵!C:C,資料表及主鍵!B:B)","v":"庫存管理主檔"},"stock.debtor","stock","debtor","nvarchar",40,"是","外部借出人",null,"外借對像"]
[{"$f":"_xlfn.XLOOKUP(D374,資料表及主鍵!C:C,資料表及主鍵!A:A)","v":"庫存"},{"$f":"_xlfn.XLOOKUP(D374,資料表及主鍵!C:C,資料表及主鍵!B:B)","v":"庫存管理主檔"},"stock.balances","stock","balances","int",null,"是","(新欄位)"]
[{"$f":"_xlfn.XLOOKUP(D375,資料表及主鍵!C:C,資料表及主鍵!A:A)","v":"庫存"},{"$f":"_xlfn.XLOOKUP(D375,資料表及主鍵!C:C,資料表及主鍵!B:B)","v":"庫存管理主檔"},"stock.final_stock","stock","final_stock","int",null,"是","(新欄位)"]
[{"$f":"_xlfn.XLOOKUP(D376,資料表及主鍵!C:C,資料表及主鍵!A:A)","v":"庫存"},{"$f":"_xlfn.XLOOKUP(D376,資料表及主鍵!C:C,資料表及主鍵!B:B)","v":"庫存管理主檔"},"stock.reason","stock","reason","int",null,"是","(新欄位)"]
[{"$f":"_xlfn.XLOOKUP(D377,資料表及主鍵!C:C,資料表及主鍵!A:A)","v":"庫存"},{"$f":"_xlfn.XLOOKUP(D377,資料表及主鍵!C:C,資料表及主鍵!B:B)","v":"庫存管理主檔"},"stock.rent_stock","stock","rent_stock","int",null,"是","借出"]
[{"$f":"_xlfn.XLOOKUP(D378,資料表及主鍵!C:C,資料表及主鍵!A:A)","v":"庫存"},{"$f":"_xlfn.XLOOKUP(D378,資料表及主鍵!C:C,資料表及主鍵!B:B)","v":"庫存管理主檔"},"stock.supplier","stock","supplier","int",null,"是","(新欄位)"]
[{"$f":"_xlfn.XLOOKUP(D379,資料表及主鍵!C:C,資料表及主鍵!A:A)","v":"庫存"},{"$f":"_xlfn.XLOOKUP(D379,資料表及主鍵!C:C,資料表及主鍵!B:B)","v":"庫存異動原因"},"stock_reason.category","stock_reason","category","int",null,"是","進出類型 *","庫存增加(+)/庫存減少(-)/租借(-)/租借歸還(+)"]
[{"$f":"_xlfn.XLOOKUP(D380,資料表及主鍵!C:C,資料表及主鍵!A:A)","v":"庫存"},{"$f":"_xlfn.XLOOKUP(D380,資料表及主鍵!C:C,資料表及主鍵!B:B)","v":"庫存異動原因"},"stock_reason.kind","stock_reason","kind","nvarchar",100,"是","異動原因 *"]
[{"$f":"_xlfn.XLOOKUP(D381,資料表及主鍵!C:C,資料表及主鍵!A:A)","v":"庫存"},{"$f":"_xlfn.XLOOKUP(D381,資料表及主鍵!C:C,資料表及主鍵!B:B)","v":"庫存異動原因"},"stock_reason.num","stock_reason","num","int",null,"否","自動編號"]
[{"$f":"_xlfn.XLOOKUP(D382,資料表及主鍵!C:C,資料表及主鍵!A:A)","v":"庫存"},{"$f":"_xlfn.XLOOKUP(D382,資料表及主鍵!C:C,資料表及主鍵!B:B)","v":"庫存異動原因"},"stock_reason.range","stock_reason","range","int",null,"是","-"]
[{"$f":"_xlfn.XLOOKUP(D383,資料表及主鍵!C:C,資料表及主鍵!A:A)","v":"庫存"},{"$f":"_xlfn.XLOOKUP(D383,資料表及主鍵!C:C,資料表及主鍵!B:B)","v":"庫存異動原因"},"stock_reason.root","stock_reason","root","int",null,"是","上層編號"]
[{"$f":"_xlfn.XLOOKUP(D384,資料表及主鍵!C:C,資料表及主鍵!A:A)","v":"庫存"},{"$f":"_xlfn.XLOOKUP(D384,資料表及主鍵!C:C,資料表及主鍵!B:B)","v":"(新3)供應商主檔"},"supplier.address","supplier","address","nvarchar",200,"是","地址"]
[{"$f":"_xlfn.XLOOKUP(D385,資料表及主鍵!C:C,資料表及主鍵!A:A)","v":"庫存"},{"$f":"_xlfn.XLOOKUP(D385,資料表及主鍵!C:C,資料表及主鍵!B:B)","v":"(新3)供應商主檔"},"supplier.admin_log","supplier","admin_log","nvarchar",50,"是","(新欄位)"]
[{"$f":"_xlfn.XLOOKUP(D386,資料表及主鍵!C:C,資料表及主鍵!A:A)","v":"庫存"},{"$f":"_xlfn.XLOOKUP(D386,資料表及主鍵!C:C,資料表及主鍵!B:B)","v":"(新3)供應商主檔"},"supplier.c_num","supplier","c_num","nvarchar",8,"是","(新欄位)"]
[{"$f":"_xlfn.XLOOKUP(D387,資料表及主鍵!C:C,資料表及主鍵!A:A)","v":"庫存"},{"$f":"_xlfn.XLOOKUP(D387,資料表及主鍵!C:C,資料表及主鍵!B:B)","v":"(新3)供應商主檔"},"supplier.demo","supplier","demo","nvarchar","MAX","是","(新欄位)"]
[{"$f":"_xlfn.XLOOKUP(D388,資料表及主鍵!C:C,資料表及主鍵!A:A)","v":"庫存"},{"$f":"_xlfn.XLOOKUP(D388,資料表及主鍵!C:C,資料表及主鍵!B:B)","v":"(新3)供應商主檔"},"supplier.email","supplier","email","nvarchar",200,"是","電子郵件"]
[{"$f":"_xlfn.XLOOKUP(D389,資料表及主鍵!C:C,資料表及主鍵!A:A)","v":"庫存"},{"$f":"_xlfn.XLOOKUP(D389,資料表及主鍵!C:C,資料表及主鍵!B:B)","v":"(新3)供應商主檔"},"supplier.fax","supplier","fax","nvarchar","MAX","是","傳真"]
[{"$f":"_xlfn.XLOOKUP(D390,資料表及主鍵!C:C,資料表及主鍵!A:A)","v":"庫存"},{"$f":"_xlfn.XLOOKUP(D390,資料表及主鍵!C:C,資料表及主鍵!B:B)","v":"(新3)供應商主檔"},"supplier.kind","supplier","kind","int",null,"是","(新欄位)"]
[{"$f":"_xlfn.XLOOKUP(D391,資料表及主鍵!C:C,資料表及主鍵!A:A)","v":"庫存"},{"$f":"_xlfn.XLOOKUP(D391,資料表及主鍵!C:C,資料表及主鍵!B:B)","v":"(新3)供應商主檔"},"supplier.num","supplier","num","int",null,"否","(新欄位)"]
[{"$f":"_xlfn.XLOOKUP(D392,資料表及主鍵!C:C,資料表及主鍵!A:A)","v":"庫存"},{"$f":"_xlfn.XLOOKUP(D392,資料表及主鍵!C:C,資料表及主鍵!B:B)","v":"(新3)供應商主檔"},"supplier.phone1","supplier","phone1","nvarchar","MAX","是","電話1"]
[{"$f":"_xlfn.XLOOKUP(D393,資料表及主鍵!C:C,資料表及主鍵!A:A)","v":"庫存"},{"$f":"_xlfn.XLOOKUP(D393,資料表及主鍵!C:C,資料表及主鍵!B:B)","v":"(新3)供應商主檔"},"supplier.phone2","supplier","phone2","nvarchar","MAX","是","電話2"]
[{"$f":"_xlfn.XLOOKUP(D394,資料表及主鍵!C:C,資料表及主鍵!A:A)","v":"庫存"},{"$f":"_xlfn.XLOOKUP(D394,資料表及主鍵!C:C,資料表及主鍵!B:B)","v":"(新3)供應商主檔"},"supplier.pic1","supplier","pic1","nvarchar",50,"是","(新欄位)"]
[{"$f":"_xlfn.XLOOKUP(D395,資料表及主鍵!C:C,資料表及主鍵!A:A)","v":"庫存"},{"$f":"_xlfn.XLOOKUP(D395,資料表及主鍵!C:C,資料表及主鍵!B:B)","v":"(新3)供應商主檔"},"supplier.reg_time","supplier","reg_time","datetime",null,"是","(新欄位)"]
[{"$f":"_xlfn.XLOOKUP(D396,資料表及主鍵!C:C,資料表及主鍵!A:A)","v":"庫存"},{"$f":"_xlfn.XLOOKUP(D396,資料表及主鍵!C:C,資料表及主鍵!B:B)","v":"(新3)供應商主檔"},"supplier.s_number","supplier","s_number","nvarchar",20,"是","(新欄位)"]
[{"$f":"_xlfn.XLOOKUP(D397,資料表及主鍵!C:C,資料表及主鍵!A:A)","v":"庫存"},{"$f":"_xlfn.XLOOKUP(D397,資料表及主鍵!C:C,資料表及主鍵!B:B)","v":"(新3)供應商主檔"},"supplier.u_name","supplier","u_name","nvarchar",20,"是","(新欄位)"]
[{"$f":"_xlfn.XLOOKUP(D398,資料表及主鍵!C:C,資料表及主鍵!A:A)","v":"庫存"},{"$f":"_xlfn.XLOOKUP(D398,資料表及主鍵!C:C,資料表及主鍵!B:B)","v":"(新3)供應商主檔"},"supplier.url","supplier","url","nvarchar","MAX","是","(新欄位)"]
[{"$f":"_xlfn.XLOOKUP(D399,資料表及主鍵!C:C,資料表及主鍵!A:A)","v":"庫存"},{"$f":"_xlfn.XLOOKUP(D399,資料表及主鍵!C:C,資料表及主鍵!B:B)","v":"供應商類型"},"supplier_kind.demo","supplier_kind","demo","nvarchar","MAX","是","備註"]
[{"$f":"_xlfn.XLOOKUP(D400,資料表及主鍵!C:C,資料表及主鍵!A:A)","v":"庫存"},{"$f":"_xlfn.XLOOKUP(D400,資料表及主鍵!C:C,資料表及主鍵!B:B)","v":"供應商類型"},"supplier_kind.kind","supplier_kind","kind","nvarchar",100,"是","分類名稱 *"]
[{"$f":"_xlfn.XLOOKUP(D401,資料表及主鍵!C:C,資料表及主鍵!A:A)","v":"庫存"},{"$f":"_xlfn.XLOOKUP(D401,資料表及主鍵!C:C,資料表及主鍵!B:B)","v":"供應商類型"},"supplier_kind.num","supplier_kind","num","int",null,"否","自動編號"]
[{"$f":"_xlfn.XLOOKUP(D402,資料表及主鍵!C:C,資料表及主鍵!A:A)","v":"庫存"},{"$f":"_xlfn.XLOOKUP(D402,資料表及主鍵!C:C,資料表及主鍵!B:B)","v":"供應商類型"},"supplier_kind.range","supplier_kind","range","int",null,"是","-"]
[{"$f":"_xlfn.XLOOKUP(D403,資料表及主鍵!C:C,資料表及主鍵!A:A)","v":"庫存"},{"$f":"_xlfn.XLOOKUP(D403,資料表及主鍵!C:C,資料表及主鍵!B:B)","v":"供應商類型"},"supplier_kind.root","supplier_kind","root","int",null,"是","上層編號"]
[{"$f":"_xlfn.XLOOKUP(D404,資料表及主鍵!C:C,資料表及主鍵!A:A)","v":"活動"},{"$f":"_xlfn.XLOOKUP(D404,資料表及主鍵!C:C,資料表及主鍵!B:B)","v":"活動主檔"},"activity.num","activity","num","int",null,"否","自動編號"]
[{"$f":"_xlfn.XLOOKUP(D405,資料表及主鍵!C:C,資料表及主鍵!A:A)","v":"活動"},{"$f":"_xlfn.XLOOKUP(D405,資料表及主鍵!C:C,資料表及主鍵!B:B)","v":"活動主檔"},"activity.kind","activity","kind","int",null,"是","活動類型 *"]
[{"$f":"_xlfn.XLOOKUP(D406,資料表及主鍵!C:C,資料表及主鍵!A:A)","v":"活動"},{"$f":"_xlfn.XLOOKUP(D406,資料表及主鍵!C:C,資料表及主鍵!B:B)","v":"活動主檔"},"activity.subject","activity","subject","nvarchar",200,"是","活動名稱 *"]
[{"$f":"_xlfn.XLOOKUP(D407,資料表及主鍵!C:C,資料表及主鍵!A:A)","v":"活動"},{"$f":"_xlfn.XLOOKUP(D407,資料表及主鍵!C:C,資料表及主鍵!B:B)","v":"活動主檔"},"activity.address","activity","address","nvarchar",400,"是","活動地點"]
[{"$f":"_xlfn.XLOOKUP(D408,資料表及主鍵!C:C,資料表及主鍵!A:A)","v":"活動"},{"$f":"_xlfn.XLOOKUP(D408,資料表及主鍵!C:C,資料表及主鍵!B:B)","v":"活動主檔"},"activity.startDate_solar","activity","startDate_solar","datetime",null,"是","開始日期（西元）"]
[{"$f":"_xlfn.XLOOKUP(D409,資料表及主鍵!C:C,資料表及主鍵!A:A)","v":"活動"},{"$f":"_xlfn.XLOOKUP(D409,資料表及主鍵!C:C,資料表及主鍵!B:B)","v":"活動主檔"},"activity.endDate_solar","activity","endDate_solar","datetime",null,"是","結束日期（西元）"]
[{"$f":"_xlfn.XLOOKUP(D410,資料表及主鍵!C:C,資料表及主鍵!A:A)","v":"活動"},{"$f":"_xlfn.XLOOKUP(D410,資料表及主鍵!C:C,資料表及主鍵!B:B)","v":"活動主檔"},"activity.hall","activity","hall","nvarchar",100,"是","大殿"]
[{"$f":"_xlfn.XLOOKUP(D411,資料表及主鍵!C:C,資料表及主鍵!A:A)","v":"活動"},{"$f":"_xlfn.XLOOKUP(D411,資料表及主鍵!C:C,資料表及主鍵!B:B)","v":"活動主檔"},"activity.start_sexagenary","activity","start_sexagenary","nvarchar",4,"是","開始歲次 "]
[{"$f":"_xlfn.XLOOKUP(D412,資料表及主鍵!C:C,資料表及主鍵!A:A)","v":"活動"},{"$f":"_xlfn.XLOOKUP(D412,資料表及主鍵!C:C,資料表及主鍵!B:B)","v":"活動主檔"},"activity.end_sexagenary","activity","end_sexagenary","nvarchar",4,"是","結束歲次 "]
[{"$f":"_xlfn.XLOOKUP(D413,資料表及主鍵!C:C,資料表及主鍵!A:A)","v":"活動"},{"$f":"_xlfn.XLOOKUP(D413,資料表及主鍵!C:C,資料表及主鍵!B:B)","v":"活動主檔"},"activity.monk","activity","monk","nvarchar",100,"是","主修沙門 "]
[{"$f":"_xlfn.XLOOKUP(D414,資料表及主鍵!C:C,資料表及主鍵!A:A)","v":"活動"},{"$f":"_xlfn.XLOOKUP(D414,資料表及主鍵!C:C,資料表及主鍵!B:B)","v":"活動主檔"},"activity.startDate_lunar","activity","startDate_lunar","datetime",null,"是","開始日期（農曆）"]
[{"$f":"_xlfn.XLOOKUP(D415,資料表及主鍵!C:C,資料表及主鍵!A:A)","v":"活動"},{"$f":"_xlfn.XLOOKUP(D415,資料表及主鍵!C:C,資料表及主鍵!B:B)","v":"活動主檔"},"activity.endDate_lunar","activity","endDate_lunar","datetime",null,"是","結束日期（農曆）"]
[{"$f":"_xlfn.XLOOKUP(D416,資料表及主鍵!C:C,資料表及主鍵!A:A)","v":"活動"},{"$f":"_xlfn.XLOOKUP(D416,資料表及主鍵!C:C,資料表及主鍵!B:B)","v":"活動主檔"},"activity.dueDate","activity","dueDate","datetime",null,"是","報名截止日 *"]
[{"$f":"_xlfn.XLOOKUP(D417,資料表及主鍵!C:C,資料表及主鍵!A:A)","v":"活動"},{"$f":"_xlfn.XLOOKUP(D417,資料表及主鍵!C:C,資料表及主鍵!B:B)","v":"活動主檔"},"activity.demo","activity","demo","nvarchar","MAX","是","備註"]
[{"$f":"_xlfn.XLOOKUP(D418,資料表及主鍵!C:C,資料表及主鍵!A:A)","v":"活動"},{"$f":"_xlfn.XLOOKUP(D418,資料表及主鍵!C:C,資料表及主鍵!B:B)","v":"活動主檔"},"activity.reg_time","activity","reg_time","datetime",null,"是","建立日期"]
[{"$f":"_xlfn.XLOOKUP(D419,資料表及主鍵!C:C,資料表及主鍵!A:A)","v":"活動"},{"$f":"_xlfn.XLOOKUP(D419,資料表及主鍵!C:C,資料表及主鍵!B:B)","v":"活動主檔"},"activity.customize_data","activity","customize_data","nvarchar","MAX","是","自定義欄位預設值",null,"報表套印自訂變數"]
[{"$f":"_xlfn.XLOOKUP(D420,資料表及主鍵!C:C,資料表及主鍵!A:A)","v":"活動"},{"$f":"_xlfn.XLOOKUP(D420,資料表及主鍵!C:C,資料表及主鍵!B:B)","v":"活動主檔"},"activity.category_kind","activity","category_kind","int",null,"是","活動類型 *","查詢:活動類型"]
[{"$f":"_xlfn.XLOOKUP(D421,資料表及主鍵!C:C,資料表及主鍵!A:A)","v":"選項"},{"$f":"_xlfn.XLOOKUP(D421,資料表及主鍵!C:C,資料表及主鍵!B:B)","v":"選項設定檔"},"item.num","item","num","int",null,"否","自動編號"]
[{"$f":"_xlfn.XLOOKUP(D422,資料表及主鍵!C:C,資料表及主鍵!A:A)","v":"選項"},{"$f":"_xlfn.XLOOKUP(D422,資料表及主鍵!C:C,資料表及主鍵!B:B)","v":"選項設定檔"},"item.title","item","title","nvarchar",100,"是","選項標題"]
[{"$f":"_xlfn.XLOOKUP(D423,資料表及主鍵!C:C,資料表及主鍵!A:A)","v":"選項"},{"$f":"_xlfn.XLOOKUP(D423,資料表及主鍵!C:C,資料表及主鍵!B:B)","v":"選項設定檔"},"item.url","item","url","nvarchar",200,"是","選項網址"]
[{"$f":"_xlfn.XLOOKUP(D424,資料表及主鍵!C:C,資料表及主鍵!A:A)","v":"選項"},{"$f":"_xlfn.XLOOKUP(D424,資料表及主鍵!C:C,資料表及主鍵!B:B)","v":"選項設定檔"},{"$f":"D424&\".\"&E424","v":"item.target"},"item","target","nvarchar",4,"是","-"]
[{"$f":"_xlfn.XLOOKUP(D425,資料表及主鍵!C:C,資料表及主鍵!A:A)","v":"選項"},{"$f":"_xlfn.XLOOKUP(D425,資料表及主鍵!C:C,資料表及主鍵!B:B)","v":"選項設定檔"},"item.price","item","price","nvarchar",20,"是","-"]
[{"$f":"_xlfn.XLOOKUP(D426,資料表及主鍵!C:C,資料表及主鍵!A:A)","v":"選項"},{"$f":"_xlfn.XLOOKUP(D426,資料表及主鍵!C:C,資料表及主鍵!B:B)","v":"選項設定檔"},"item.demo","item","demo","nvarchar",510,"是","選項簡單說明"]
[{"$f":"_xlfn.XLOOKUP(D427,資料表及主鍵!C:C,資料表及主鍵!A:A)","v":"選項"},{"$f":"_xlfn.XLOOKUP(D427,資料表及主鍵!C:C,資料表及主鍵!B:B)","v":"選項設定檔"},"item.other","item","other","nvarchar",510,"是","-"]
[{"$f":"_xlfn.XLOOKUP(D428,資料表及主鍵!C:C,資料表及主鍵!A:A)","v":"選項"},{"$f":"_xlfn.XLOOKUP(D428,資料表及主鍵!C:C,資料表及主鍵!B:B)","v":"選項設定檔"},"item.root","item","root","int",null,"是","上層編號"]
[{"$f":"_xlfn.XLOOKUP(D429,資料表及主鍵!C:C,資料表及主鍵!A:A)","v":"選項"},{"$f":"_xlfn.XLOOKUP(D429,資料表及主鍵!C:C,資料表及主鍵!B:B)","v":"選項設定檔"},"item.range","item","range","int",null,"是","-"]
[{"$f":"_xlfn.XLOOKUP(D430,資料表及主鍵!C:C,資料表及主鍵!A:A)","v":"選項"},{"$f":"_xlfn.XLOOKUP(D430,資料表及主鍵!C:C,資料表及主鍵!B:B)","v":"選項設定檔"},"item.other_url","item","other_url","nvarchar",510,"是","相關網址"]
[{"$f":"_xlfn.XLOOKUP(D431,資料表及主鍵!C:C,資料表及主鍵!A:A)","v":"選項"},{"$f":"_xlfn.XLOOKUP(D431,資料表及主鍵!C:C,資料表及主鍵!B:B)","v":"選項設定檔"},"item.s_id","item","s_id","nvarchar",20,"是","-"]
[{"$f":"_xlfn.XLOOKUP(D432,資料表及主鍵!C:C,資料表及主鍵!A:A)","v":"公告"},{"$f":"_xlfn.XLOOKUP(D432,資料表及主鍵!C:C,資料表及主鍵!B:B)","v":"公告分類"},"news_kind.num","news_kind","num","int",null,"否","自動編號"]
[{"$f":"_xlfn.XLOOKUP(D433,資料表及主鍵!C:C,資料表及主鍵!A:A)","v":"公告"},{"$f":"_xlfn.XLOOKUP(D433,資料表及主鍵!C:C,資料表及主鍵!B:B)","v":"公告分類"},"news_kind.kind","news_kind","kind","nvarchar",200,"是","分類名稱 *"]
[{"$f":"_xlfn.XLOOKUP(D434,資料表及主鍵!C:C,資料表及主鍵!A:A)","v":"公告"},{"$f":"_xlfn.XLOOKUP(D434,資料表及主鍵!C:C,資料表及主鍵!B:B)","v":"公告分類"},"news_kind.root","news_kind","root","int",null,"是","上層編號"]
[{"$f":"_xlfn.XLOOKUP(D435,資料表及主鍵!C:C,資料表及主鍵!A:A)","v":"公告"},{"$f":"_xlfn.XLOOKUP(D435,資料表及主鍵!C:C,資料表及主鍵!B:B)","v":"公告分類"},"news_kind.range","news_kind","range","int",null,"是","-"]
[{"$f":"_xlfn.XLOOKUP(D436,資料表及主鍵!C:C,資料表及主鍵!A:A)","v":"公告"},{"$f":"_xlfn.XLOOKUP(D436,資料表及主鍵!C:C,資料表及主鍵!B:B)","v":"公告分類"},"news_kind.demo","news_kind","demo","nvarchar","MAX","是","分類說明"]
[{"$f":"_xlfn.XLOOKUP(D437,資料表及主鍵!C:C,資料表及主鍵!A:A)","v":"公告"},{"$f":"_xlfn.XLOOKUP(D437,資料表及主鍵!C:C,資料表及主鍵!B:B)","v":"公告分類"},"news_kind.status","news_kind","status","nvarchar",2,"是","狀態 *","啟用/停用"]
[{"$f":"_xlfn.XLOOKUP(D438,資料表及主鍵!C:C,資料表及主鍵!A:A)","v":"基本資料"},{"$f":"_xlfn.XLOOKUP(D438,資料表及主鍵!C:C,資料表及主鍵!B:B)","v":"品項層級檔"},"act_bom.num","act_bom","num","int",null,"否","自動編號"]
[{"$f":"_xlfn.XLOOKUP(D439,資料表及主鍵!C:C,資料表及主鍵!A:A)","v":"基本資料"},{"$f":"_xlfn.XLOOKUP(D439,資料表及主鍵!C:C,資料表及主鍵!B:B)","v":"品項層級檔"},"act_bom.package_num","act_bom","package_num","int",null,"是","組合編號","FK_act_bom_act_bom"]
[{"$f":"_xlfn.XLOOKUP(D440,資料表及主鍵!C:C,資料表及主鍵!A:A)","v":"基本資料"},{"$f":"_xlfn.XLOOKUP(D440,資料表及主鍵!C:C,資料表及主鍵!B:B)","v":"品項層級檔"},"act_bom.item_num","act_bom","item_num","int",null,"是","品項編號","FK_act_bom_actItem1"]
[{"$f":"_xlfn.XLOOKUP(D441,資料表及主鍵!C:C,資料表及主鍵!A:A)","v":"基本資料"},{"$f":"_xlfn.XLOOKUP(D441,資料表及主鍵!C:C,資料表及主鍵!B:B)","v":"品項層級檔"},"act_bom.item_type","act_bom","item_type","int",null,"是","(未用到)"]
[{"$f":"_xlfn.XLOOKUP(D442,資料表及主鍵!C:C,資料表及主鍵!A:A)","v":"基本資料"},{"$f":"_xlfn.XLOOKUP(D442,資料表及主鍵!C:C,資料表及主鍵!B:B)","v":"品項層級檔"},"act_bom.group_name","act_bom","group_name","nvarchar",200,"是","(未用到)"]
[{"$f":"_xlfn.XLOOKUP(D443,資料表及主鍵!C:C,資料表及主鍵!A:A)","v":"基本資料"},{"$f":"_xlfn.XLOOKUP(D443,資料表及主鍵!C:C,資料表及主鍵!B:B)","v":"品項層級檔"},"act_bom.optional","act_bom","optional","bit",null,"是","(未用到)"]
[{"$f":"_xlfn.XLOOKUP(D444,資料表及主鍵!C:C,資料表及主鍵!A:A)","v":"基本資料"},{"$f":"_xlfn.XLOOKUP(D444,資料表及主鍵!C:C,資料表及主鍵!B:B)","v":"品項層級檔"},"act_bom.qty","act_bom","qty","int",null,"是","數量"]
[{"$f":"_xlfn.XLOOKUP(D445,資料表及主鍵!C:C,資料表及主鍵!A:A)","v":"基本資料"},{"$f":"_xlfn.XLOOKUP(D445,資料表及主鍵!C:C,資料表及主鍵!B:B)","v":"品項層級檔"},"act_bom.memo","act_bom","memo","nvarchar","MAX","是","備註"]
[{"$f":"_xlfn.XLOOKUP(D446,資料表及主鍵!C:C,資料表及主鍵!A:A)","v":"信眾"},{"$f":"_xlfn.XLOOKUP(D446,資料表及主鍵!C:C,資料表及主鍵!B:B)","v":"稱謂資料檔"},"appellation.num","appellation","num","int",null,"否","自動編號"]
[{"$f":"_xlfn.XLOOKUP(D447,資料表及主鍵!C:C,資料表及主鍵!A:A)","v":"信眾"},{"$f":"_xlfn.XLOOKUP(D447,資料表及主鍵!C:C,資料表及主鍵!B:B)","v":"稱謂資料檔"},"appellation.title","appellation","title","nvarchar",20,"是","稱謂"]
[{"$f":"_xlfn.XLOOKUP(D448,資料表及主鍵!C:C,資料表及主鍵!A:A)","v":"基本資料"},{"$f":"_xlfn.XLOOKUP(D448,資料表及主鍵!C:C,資料表及主鍵!B:B)","v":"國家資料檔"},"country.ID","country","ID","nvarchar",10,"否","國家編號"]
[{"$f":"_xlfn.XLOOKUP(D449,資料表及主鍵!C:C,資料表及主鍵!A:A)","v":"基本資料"},{"$f":"_xlfn.XLOOKUP(D449,資料表及主鍵!C:C,資料表及主鍵!B:B)","v":"國家資料檔"},"country.ID2","country","ID2","nvarchar",10,"是","國碼2"]
[{"$f":"_xlfn.XLOOKUP(D450,資料表及主鍵!C:C,資料表及主鍵!A:A)","v":"基本資料"},{"$f":"_xlfn.XLOOKUP(D450,資料表及主鍵!C:C,資料表及主鍵!B:B)","v":"國家資料檔"},"country.ID3","country","ID3","nvarchar",10,"是","國碼3"]
[{"$f":"_xlfn.XLOOKUP(D451,資料表及主鍵!C:C,資料表及主鍵!A:A)","v":"基本資料"},{"$f":"_xlfn.XLOOKUP(D451,資料表及主鍵!C:C,資料表及主鍵!B:B)","v":"國家資料檔"},"country.range","country","range","int",null,"是","排序"]
[{"$f":"_xlfn.XLOOKUP(D452,資料表及主鍵!C:C,資料表及主鍵!A:A)","v":"基本資料"},{"$f":"_xlfn.XLOOKUP(D452,資料表及主鍵!C:C,資料表及主鍵!B:B)","v":"國家資料檔"},"country.name_en","country","name_en","nvarchar",200,"是","英文國名"]
[{"$f":"_xlfn.XLOOKUP(D453,資料表及主鍵!C:C,資料表及主鍵!A:A)","v":"基本資料"},{"$f":"_xlfn.XLOOKUP(D453,資料表及主鍵!C:C,資料表及主鍵!B:B)","v":"國家資料檔"},"country.name_zh","country","name_zh","nvarchar",60,"是","中文國名"]
[{"$f":"_xlfn.XLOOKUP(D454,資料表及主鍵!C:C,資料表及主鍵!A:A)","v":"信眾"},{"$f":"_xlfn.XLOOKUP(D454,資料表及主鍵!C:C,資料表及主鍵!B:B)","v":"信眾牌位檔"},"followers_tablet.num","followers_tablet","num","int",null,"否","自動編號"]
[{"$f":"_xlfn.XLOOKUP(D455,資料表及主鍵!C:C,資料表及主鍵!A:A)","v":"信眾"},{"$f":"_xlfn.XLOOKUP(D455,資料表及主鍵!C:C,資料表及主鍵!B:B)","v":"信眾牌位檔"},"followers_tablet.f_num","followers_tablet","f_num","int",null,"是","信眾編號","FK_followers_tablet_followers"]
[{"$f":"_xlfn.XLOOKUP(D456,資料表及主鍵!C:C,資料表及主鍵!A:A)","v":"信眾"},{"$f":"_xlfn.XLOOKUP(D456,資料表及主鍵!C:C,資料表及主鍵!B:B)","v":"信眾牌位檔"},"followers_tablet.type","followers_tablet","type","nvarchar",200,"是","標題類型"]
[{"$f":"_xlfn.XLOOKUP(D457,資料表及主鍵!C:C,資料表及主鍵!A:A)","v":"信眾"},{"$f":"_xlfn.XLOOKUP(D457,資料表及主鍵!C:C,資料表及主鍵!B:B)","v":"信眾牌位檔"},"followers_tablet.title","followers_tablet","title","nvarchar","MAX","是","標題"]

{"sheet":"工作表2","index":4,"n_rows":457,"n_cols":9,"rows_kept":457}
[null,null,"資料表名稱","欄位名稱","資料型態","最大長度","可為空值"]
["CHK","Table.Column","TableName","ColumnName","DataType","Size","IsNullable","ForeignKeyName","ReferencedTableName"]
[{"$f":"_xludf.XLOOKUP(B3,資料欄位列表!C:C,資料欄位列表!C:C,\"\")","v":{"$error":"#NAME?"}},{"$f":"C3&\".\"&D3","v":"accounting.num"},"accounting","num","int",null,"否"]
[{"$f":"_xludf.XLOOKUP(B4,資料欄位列表!C:C,資料欄位列表!C:C,\"\")","v":{"$error":"#NAME?"}},"accounting.uptime","accounting","uptime","datetime",null,"是"]
[{"$f":"_xludf.XLOOKUP(B5,資料欄位列表!C:C,資料欄位列表!C:C,\"\")","v":{"$error":"#NAME?"}},"accounting.category","accounting","category","int",null,"是"]
[{"$f":"_xludf.XLOOKUP(B6,資料欄位列表!C:C,資料欄位列表!C:C,\"\")","v":{"$error":"#NAME?"}},"accounting.kind","accounting","kind","int",null,"是","FK_accounting_accounting_kind","accounting_kind"]
[{"$f":"_xludf.XLOOKUP(B7,資料欄位列表!C:C,資料欄位列表!C:C,\"\")","v":{"$error":"#NAME?"}},"accounting.kind2","accounting","kind2","int",null,"是","FK_accounting_accounting_kind2","accounting_kind2"]
[{"$f":"_xludf.XLOOKUP(B8,資料欄位列表!C:C,資料欄位列表!C:C,\"\")","v":{"$error":"#NAME?"}},"accounting.price","accounting","price","real",null,"是"]
[{"$f":"_xludf.XLOOKUP(B9,資料欄位列表!C:C,資料欄位列表!C:C,\"\")","v":{"$error":"#NAME?"}},"accounting.tax","accounting","tax","real",null,"是"]
[{"$f":"_xludf.XLOOKUP(B10,資料欄位列表!C:C,資料欄位列表!C:C,\"\")","v":{"$error":"#NAME?"}},"accounting.demo","accounting","demo","nvarchar","MAX","是"]
[{"$f":"_xludf.XLOOKUP(B11,資料欄位列表!C:C,資料欄位列表!C:C,\"\")","v":{"$error":"#NAME?"}},"accounting.mem_num","accounting","mem_num","int",null,"是","FK_accounting_member","member"]
[{"$f":"_xludf.XLOOKUP(B12,資料欄位列表!C:C,資料欄位列表!C:C,\"\")","v":{"$error":"#NAME?"}},"accounting.debtor","accounting","debtor","nvarchar",40,"是"]
[{"$f":"_xludf.XLOOKUP(B13,資料欄位列表!C:C,資料欄位列表!C:C,\"\")","v":{"$error":"#NAME?"}},"accounting.activity_num","accounting","activity_num","int",null,"是","FK_accounting_activity","activity"]
[{"$f":"_xludf.XLOOKUP(B14,資料欄位列表!C:C,資料欄位列表!C:C,\"\")","v":{"$error":"#NAME?"}},"accounting.excerpt","accounting","excerpt","nvarchar","MAX","是"]
["*","accounting.reg_time","accounting","reg_time","datetime",null,"是"]
[{"$f":"_xludf.XLOOKUP(B16,資料欄位列表!C:C,資料欄位列表!C:C,\"\")","v":{"$error":"#NAME?"}},"accounting_files.num","accounting_files","num","int",null,"否"]
[{"$f":"_xludf.XLOOKUP(B17,資料欄位列表!C:C,資料欄位列表!C:C,\"\")","v":{"$error":"#NAME?"}},"accounting_files.accounting_num","accounting_files","accounting_num","int",null,"是","FK_accounting_files_accounting","accounting"]
[{"$f":"_xludf.XLOOKUP(B18,資料欄位列表!C:C,資料欄位列表!C:C,\"\")","v":{"$error":"#NAME?"}},"accounting_files.reg_time","accounting_files","reg_time","datetime",null,"是"]
[{"$f":"_xludf.XLOOKUP(B19,資料欄位列表!C:C,資料欄位列表!C:C,\"\")","v":{"$error":"#NAME?"}},"accounting_files.pic1","accounting_files","pic1","nvarchar",100,"是"]
[{"$f":"_xludf.XLOOKUP(B20,資料欄位列表!C:C,資料欄位列表!C:C,\"\")","v":{"$error":"#NAME?"}},"accounting_files.pic1_name","accounting_files","pic1_name","nvarchar",300,"是"]
[{"$f":"_xludf.XLOOKUP(B21,資料欄位列表!C:C,資料欄位列表!C:C,\"\")","v":{"$error":"#NAME?"}},"accounting_kind.num","accounting_kind","num","int",null,"否"]
[{"$f":"_xludf.XLOOKUP(B22,資料欄位列表!C:C,資料欄位列表!C:C,\"\")","v":{"$error":"#NAME?"}},"accounting_kind.kind","accounting_kind","kind","nvarchar",200,"是"]
[{"$f":"_xludf.XLOOKUP(B23,資料欄位列表!C:C,資料欄位列表!C:C,\"\")","v":{"$error":"#NAME?"}},"accounting_kind.root","accounting_kind","root","int",null,"是"]
[{"$f":"_xludf.XLOOKUP(B24,資料欄位列表!C:C,資料欄位列表!C:C,\"\")","v":{"$error":"#NAME?"}},"accounting_kind.range","accounting_kind","range","int",null,"是"]
[{"$f":"_xludf.XLOOKUP(B25,資料欄位列表!C:C,資料欄位列表!C:C,\"\")","v":{"$error":"#NAME?"}},"accounting_kind.demo","accounting_kind","demo","nvarchar","MAX","是"]
[{"$f":"_xludf.XLOOKUP(B26,資料欄位列表!C:C,資料欄位列表!C:C,\"\")","v":{"$error":"#NAME?"}},"accounting_kind.title","accounting_kind","title","nvarchar",60,"是"]
[{"$f":"_xludf.XLOOKUP(B27,資料欄位列表!C:C,資料欄位列表!C:C,\"\")","v":{"$error":"#NAME?"}},"accounting_kind2.num","accounting_kind2","num","int",null,"否"]
[{"$f":"_xludf.XLOOKUP(B28,資料欄位列表!C:C,資料欄位列表!C:C,\"\")","v":{"$error":"#NAME?"}},"accounting_kind2.kind","accounting_kind2","kind","nvarchar",200,"是"]
[{"$f":"_xludf.XLOOKUP(B29,資料欄位列表!C:C,資料欄位列表!C:C,\"\")","v":{"$error":"#NAME?"}},"accounting_kind2.root","accounting_kind2","root","int",null,"是"]
[{"$f":"_xludf.XLOOKUP(B30,資料欄位列表!C:C,資料欄位列表!C:C,\"\")","v":{"$error":"#NAME?"}},"accounting_kind2.range","accounting_kind2","range","int",null,"是"]
[{"$f":"_xludf.XLOOKUP(B31,資料欄位列表!C:C,資料欄位列表!C:C,\"\")","v":{"$error":"#NAME?"}},"accounting_kind2.demo","accounting_kind2","demo","nvarchar","MAX","是"]
[{"$f":"_xludf.XLOOKUP(B32,資料欄位列表!C:C,資料欄位列表!C:C,\"\")","v":{"$error":"#NAME?"}},"accounting_kind2.title","accounting_kind2","title","nvarchar",60,"是"]
[{"$f":"_xludf.XLOOKUP(B33,資料欄位列表!C:C,資料欄位列表!C:C,\"\")","v":{"$error":"#NAME?"}},"accounting_kind2.bank_name","accounting_kind2","bank_name","nvarchar",60,"是"]
[{"$f":"_xludf.XLOOKUP(B34,資料欄位列表!C:C,資料欄位列表!C:C,\"\")","v":{"$error":"#NAME?"}},"accounting_kind2.bank_code","accounting_kind2","bank_code","nvarchar",60,"是"]
[{"$f":"_xludf.XLOOKUP(B35,資料欄位列表!C:C,資料欄位列表!C:C,\"\")","v":{"$error":"#NAME?"}},"accounting_kind2.bank_id","accounting_kind2","bank_id","nvarchar",60,"是"]
["*","accounting_kind2.record_payment","accounting_kind2","record_payment","nvarchar",2,"是"]
[{"$f":"_xludf.XLOOKUP(B37,資料欄位列表!C:C,資料欄位列表!C:C,\"\")","v":{"$error":"#NAME?"}},"act_bom.num","act_bom","num","int",null,"否"]
[{"$f":"_xludf.XLOOKUP(B38,資料欄位列表!C:C,資料欄位列表!C:C,\"\")","v":{"$error":"#NAME?"}},"act_bom.package_num","act_bom","package_num","int",null,"是","FK_act_bom_act_bom","act_bom"]
[{"$f":"_xludf.XLOOKUP(B39,資料欄位列表!C:C,資料欄位列表!C:C,\"\")","v":{"$error":"#NAME?"}},"act_bom.item_num","act_bom","item_num","int",null,"是","FK_act_bom_actItem1","actItem"]
[{"$f":"_xludf.XLOOKUP(B40,資料欄位列表!C:C,資料欄位列表!C:C,\"\")","v":{"$error":"#NAME?"}},"act_bom.item_type","act_bom","item_type","int",null,"是"]
[{"$f":"_xludf.XLOOKUP(B41,資料欄位列表!C:C,資料欄位列表!C:C,\"\")","v":{"$error":"#NAME?"}},"act_bom.group_name","act_bom","group_name","nvarchar",200,"是"]
[{"$f":"_xludf.XLOOKUP(B42,資料欄位列表!C:C,資料欄位列表!C:C,\"\")","v":{"$error":"#NAME?"}},"act_bom.optional","act_bom","optional","bit",null,"是"]
[{"$f":"_xludf.XLOOKUP(B43,資料欄位列表!C:C,資料欄位列表!C:C,\"\")","v":{"$error":"#NAME?"}},"act_bom.qty","act_bom","qty","int",null,"是"]
[{"$f":"_xludf.XLOOKUP(B44,資料欄位列表!C:C,資料欄位列表!C:C,\"\")","v":{"$error":"#NAME?"}},"act_bom.memo","act_bom","memo","nvarchar","MAX","是"]
[{"$f":"_xludf.XLOOKUP(B45,資料欄位列表!C:C,資料欄位列表!C:C,\"\")","v":{"$error":"#NAME?"}},"actItem.num","actItem","num","int",null,"否"]
[{"$f":"_xludf.XLOOKUP(B46,資料欄位列表!C:C,資料欄位列表!C:C,\"\")","v":{"$error":"#NAME?"}},"actItem.partno","actItem","partno","nvarchar",200,"是"]
[{"$f":"_xludf.XLOOKUP(B47,資料欄位列表!C:C,資料欄位列表!C:C,\"\")","v":{"$error":"#NAME?"}},"actItem.subject","actItem","subject","nvarchar",200,"是"]
[{"$f":"_xludf.XLOOKUP(B48,資料欄位列表!C:C,資料欄位列表!C:C,\"\")","v":{"$error":"#NAME?"}},"actItem.kind","actItem","kind","int",null,"是","FK_actItem_actItem_kind","actItem_kind"]
[{"$f":"_xludf.XLOOKUP(B49,資料欄位列表!C:C,資料欄位列表!C:C,\"\")","v":{"$error":"#NAME?"}},"actItem.price","actItem","price","real",null,"是"]
[{"$f":"_xludf.XLOOKUP(B50,資料欄位列表!C:C,資料欄位列表!C:C,\"\")","v":{"$error":"#NAME?"}},"actItem.status","actItem","status","nvarchar",2,"是"]
[{"$f":"_xludf.XLOOKUP(B51,資料欄位列表!C:C,資料欄位列表!C:C,\"\")","v":{"$error":"#NAME?"}},"actItem.demo","actItem","demo","nvarchar","MAX","是"]
[{"$f":"_xludf.XLOOKUP(B52,資料欄位列表!C:C,資料欄位列表!C:C,\"\")","v":{"$error":"#NAME?"}},"actItem.extend","actItem","extend","nvarchar",2,"是"]
[{"$f":"_xludf.XLOOKUP(B53,資料欄位列表!C:C,資料欄位列表!C:C,\"\")","v":{"$error":"#NAME?"}},"actItem.cycle","actItem","cycle","int",null,"是"]
[{"$f":"_xludf.XLOOKUP(B54,資料欄位列表!C:C,資料欄位列表!C:C,\"\")","v":{"$error":"#NAME?"}},"actItem.category","actItem","category","int",null,"是"]
[{"$f":"_xludf.XLOOKUP(B55,資料欄位列表!C:C,資料欄位列表!C:C,\"\")","v":{"$error":"#NAME?"}},"actItem.customize_data","actItem","customize_data","nvarchar","MAX","是"]
[{"$f":"_xludf.XLOOKUP(B56,資料欄位列表!C:C,資料欄位列表!C:C,\"\")","v":{"$error":"#NAME?"}},"actItem.reg_time","actItem","reg_time","datetime",null,"是"]
[{"$f":"_xludf.XLOOKUP(B57,資料欄位列表!C:C,資料欄位列表!C:C,\"\")","v":{"$error":"#NAME?"}},"actItem_files.num","actItem_files","num","int",null,"否"]
[{"$f":"_xludf.XLOOKUP(B58,資料欄位列表!C:C,資料欄位列表!C:C,\"\")","v":{"$error":"#NAME?"}},"actItem_files.actItem_num","actItem_files","actItem_num","int",null,"否","FK_actItem_files_actItem","actItem"]
[{"$f":"_xludf.XLOOKUP(B59,資料欄位列表!C:C,資料欄位列表!C:C,\"\")","v":{"$error":"#NAME?"}},"actItem_files.files_num","actItem_files","files_num","int",null,"否","FK_actItem_files_files","files"]
[{"$f":"_xludf.XLOOKUP(B60,資料欄位列表!C:C,資料欄位列表!C:C,\"\")","v":{"$error":"#NAME?"}},"actItem_files.reg_time","actItem_files","reg_time","datetime",null,"是"]
[{"$f":"_xludf.XLOOKUP(B61,資料欄位列表!C:C,資料欄位列表!C:C,\"\")","v":{"$error":"#NAME?"}},"actItem_kind.num","actItem_kind","num","int",null,"否"]
[{"$f":"_xludf.XLOOKUP(B62,資料欄位列表!C:C,資料欄位列表!C:C,\"\")","v":{"$error":"#NAME?"}},"actItem_kind.kind","actItem_kind","kind","nvarchar",200,"是"]
[{"$f":"_xludf.XLOOKUP(B63,資料欄位列表!C:C,資料欄位列表!C:C,\"\")","v":{"$error":"#NAME?"}},"actItem_kind.root","actItem_kind","root","int",null,"是"]
[{"$f":"_xludf.XLOOKUP(B64,資料欄位列表!C:C,資料欄位列表!C:C,\"\")","v":{"$error":"#NAME?"}},"actItem_kind.range","actItem_kind","range","int",null,"是"]
[{"$f":"_xludf.XLOOKUP(B65,資料欄位列表!C:C,資料欄位列表!C:C,\"\")","v":{"$error":"#NAME?"}},"actItem_kind.demo","actItem_kind","demo","nvarchar","MAX","是"]
[{"$f":"_xludf.XLOOKUP(B66,資料欄位列表!C:C,資料欄位列表!C:C,\"\")","v":{"$error":"#NAME?"}},"actItem_kind.status","actItem_kind","status","nvarchar",2,"是"]
[{"$f":"_xludf.XLOOKUP(B67,資料欄位列表!C:C,資料欄位列表!C:C,\"\")","v":{"$error":"#NAME?"}},"activity.num","activity","num","int",null,"否"]
[{"$f":"_xludf.XLOOKUP(B68,資料欄位列表!C:C,資料欄位列表!C:C,\"\")","v":{"$error":"#NAME?"}},"activity.kind","activity","kind","int",null,"是","FK_activity_activity_kind","activity_kind"]
[{"$f":"_xludf.XLOOKUP(B69,資料欄位列表!C:C,資料欄位列表!C:C,\"\")","v":{"$error":"#NAME?"}},"activity.subject","activity","subject","nvarchar",200,"是"]
[{"$f":"_xludf.XLOOKUP(B70,資料欄位列表!C:C,資料欄位列表!C:C,\"\")","v":{"$error":"#NAME?"}},"activity.address","activity","address","nvarchar",400,"是"]
[{"$f":"_xludf.XLOOKUP(B71,資料欄位列表!C:C,資料欄位列表!C:C,\"\")","v":{"$error":"#NAME?"}},"activity.startDate_solar","activity","startDate_solar","datetime",null,"是"]
[{"$f":"_xludf.XLOOKUP(B72,資料欄位列表!C:C,資料欄位列表!C:C,\"\")","v":{"$error":"#NAME?"}},"activity.endDate_solar","activity","endDate_solar","datetime",null,"是"]
[{"$f":"_xludf.XLOOKUP(B73,資料欄位列表!C:C,資料欄位列表!C:C,\"\")","v":{"$error":"#NAME?"}},"activity.hall","activity","hall","nvarchar",100,"是"]
[{"$f":"_xludf.XLOOKUP(B74,資料欄位列表!C:C,資料欄位列表!C:C,\"\")","v":{"$error":"#NAME?"}},"activity.start_sexagenary","activity","start_sexagenary","nvarchar",4,"是"]
[{"$f":"_xludf.XLOOKUP(B75,資料欄位列表!C:C,資料欄位列表!C:C,\"\")","v":{"$error":"#NAME?"}},"activity.end_sexagenary","activity","end_sexagenary","nvarchar",4,"是"]
[{"$f":"_xludf.XLOOKUP(B76,資料欄位列表!C:C,資料欄位列表!C:C,\"\")","v":{"$error":"#NAME?"}},"activity.monk","activity","monk","nvarchar",100,"是"]
[{"$f":"_xludf.XLOOKUP(B77,資料欄位列表!C:C,資料欄位列表!C:C,\"\")","v":{"$error":"#NAME?"}},"activity.startDate_lunar","activity","startDate_lunar","datetime",null,"是"]
[{"$f":"_xludf.XLOOKUP(B78,資料欄位列表!C:C,資料欄位列表!C:C,\"\")","v":{"$error":"#NAME?"}},"activity.endDate_lunar","activity","endDate_lunar","datetime",null,"是"]
[{"$f":"_xludf.XLOOKUP(B79,資料欄位列表!C:C,資料欄位列表!C:C,\"\")","v":{"$error":"#NAME?"}},"activity.dueDate","activity","dueDate","datetime",null,"是"]
[{"$f":"_xludf.XLOOKUP(B80,資料欄位列表!C:C,資料欄位列表!C:C,\"\")","v":{"$error":"#NAME?"}},"activity.demo","activity","demo","nvarchar","MAX","是"]
[{"$f":"_xludf.XLOOKUP(B81,資料欄位列表!C:C,資料欄位列表!C:C,\"\")","v":{"$error":"#NAME?"}},"activity.reg_time","activity","reg_time","datetime",null,"是"]
[{"$f":"_xludf.XLOOKUP(B82,資料欄位列表!C:C,資料欄位列表!C:C,\"\")","v":{"$error":"#NAME?"}},"activity.customize_data","activity","customize_data","nvarchar","MAX","是"]
[{"$f":"_xludf.XLOOKUP(B83,資料欄位列表!C:C,資料欄位列表!C:C,\"\")","v":{"$error":"#NAME?"}},"activity.category_kind","activity","category_kind","int",null,"是","FK_activity_activity_category_kind","activity_category_kind"]
[{"$f":"_xludf.XLOOKUP(B84,資料欄位列表!C:C,資料欄位列表!C:C,\"\")","v":{"$error":"#NAME?"}},"activity_category_kind.num","activity_category_kind","num","int",null,"否"]
[{"$f":"_xludf.XLOOKUP(B85,資料欄位列表!C:C,資料欄位列表!C:C,\"\")","v":{"$error":"#NAME?"}},"activity_category_kind.kind","activity_category_kind","kind","nvarchar",200,"是"]
[{"$f":"_xludf.XLOOKUP(B86,資料欄位列表!C:C,資料欄位列表!C:C,\"\")","v":{"$error":"#NAME?"}},"activity_category_kind.root","activity_category_kind","root","int",null,"是"]
[{"$f":"_xludf.XLOOKUP(B87,資料欄位列表!C:C,資料欄位列表!C:C,\"\")","v":{"$error":"#NAME?"}},"activity_category_kind.range","activity_category_kind","range","int",null,"是"]
[{"$f":"_xludf.XLOOKUP(B88,資料欄位列表!C:C,資料欄位列表!C:C,\"\")","v":{"$error":"#NAME?"}},"activity_check.num","activity_check","num","int",null,"否"]
[{"$f":"_xludf.XLOOKUP(B89,資料欄位列表!C:C,資料欄位列表!C:C,\"\")","v":{"$error":"#NAME?"}},"activity_check.f_num","activity_check","f_num","int",null,"是","FK_activity_check_followers","followers"]
[{"$f":"_xludf.XLOOKUP(B90,資料欄位列表!C:C,資料欄位列表!C:C,\"\")","v":{"$error":"#NAME?"}},"activity_check.activity_num","activity_check","activity_num","int",null,"是","FK_activity_check_activity","activity"]
[{"$f":"_xludf.XLOOKUP(B91,資料欄位列表!C:C,資料欄位列表!C:C,\"\")","v":{"$error":"#NAME?"}},"activity_check.reg_time","activity_check","reg_time","datetime",null,"是"]
[{"$f":"_xludf.XLOOKUP(B92,資料欄位列表!C:C,資料欄位列表!C:C,\"\")","v":{"$error":"#NAME?"}},"activity_check.status","activity_check","status","int",null,"是"]
[{"$f":"_xludf.XLOOKUP(B93,資料欄位列表!C:C,資料欄位列表!C:C,\"\")","v":{"$error":"#NAME?"}},"activity_check.qty","activity_check","qty","int",null,"是"]
[{"$f":"_xludf.XLOOKUP(B94,資料欄位列表!C:C,資料欄位列表!C:C,\"\")","v":{"$error":"#NAME?"}},"activity_kind.num","activity_kind","num","int",null,"否"]
[{"$f":"_xludf.XLOOKUP(B95,資料欄位列表!C:C,資料欄位列表!C:C,\"\")","v":{"$error":"#NAME?"}},"activity_kind.kind","activity_kind","kind","nvarchar",200,"是"]
[{"$f":"_xludf.XLOOKUP(B96,資料欄位列表!C:C,資料欄位列表!C:C,\"\")","v":{"$error":"#NAME?"}},"activity_kind.root","activity_kind","root","int",null,"是"]
[{"$f":"_xludf.XLOOKUP(B97,資料欄位列表!C:C,資料欄位列表!C:C,\"\")","v":{"$error":"#NAME?"}},"activity_kind.range","activity_kind","range","int",null,"是"]
[{"$f":"_xludf.XLOOKUP(B98,資料欄位列表!C:C,資料欄位列表!C:C,\"\")","v":{"$error":"#NAME?"}},"activity_kind.demo","activity_kind","demo","nvarchar","MAX","是"]
[{"$f":"_xludf.XLOOKUP(B99,資料欄位列表!C:C,資料欄位列表!C:C,\"\")","v":{"$error":"#NAME?"}},"activity_kind.calendar","activity_kind","calendar","nvarchar",4,"是"]
[{"$f":"_xludf.XLOOKUP(B100,資料欄位列表!C:C,資料欄位列表!C:C,\"\")","v":{"$error":"#NAME?"}},"activity_kind.month","activity_kind","month","int",null,"是"]
[{"$f":"_xludf.XLOOKUP(B101,資料欄位列表!C:C,資料欄位列表!C:C,\"\")","v":{"$error":"#NAME?"}},"activity_kind.day","activity_kind","day","int",null,"是"]
[{"$f":"_xludf.XLOOKUP(B102,資料欄位列表!C:C,資料欄位列表!C:C,\"\")","v":{"$error":"#NAME?"}},"activity_kind_detail.num","activity_kind_detail","num","int",null,"否"]
[{"$f":"_xludf.XLOOKUP(B103,資料欄位列表!C:C,資料欄位列表!C:C,\"\")","v":{"$error":"#NAME?"}},"activity_kind_detail.activity_kind_num","activity_kind_detail","activity_kind_num","int",null,"否","FK_activity_kind_detail_activity_kind","activity_kind"]
[{"$f":"_xludf.XLOOKUP(B104,資料欄位列表!C:C,資料欄位列表!C:C,\"\")","v":{"$error":"#NAME?"}},"activity_kind_detail.actItem_num","activity_kind_detail","actItem_num","int",null,"否","FK_activity_kind_detail_actItem","actItem"]
[{"$f":"_xludf.XLOOKUP(B105,資料欄位列表!C:C,資料欄位列表!C:C,\"\")","v":{"$error":"#NAME?"}},"activity_kind_detail.price","activity_kind_detail","price","real",null,"是"]
[{"$f":"_xludf.XLOOKUP(B106,資料欄位列表!C:C,資料欄位列表!C:C,\"\")","v":{"$error":"#NAME?"}},"activity_kind_detail.qty","activity_kind_detail","qty","int",null,"是"]
[{"$f":"_xludf.XLOOKUP(B107,資料欄位列表!C:C,資料欄位列表!C:C,\"\")","v":{"$error":"#NAME?"}},"activity_kind_detail.reg_time","activity_kind_detail","reg_time","datetime",null,"是"]
[{"$f":"_xludf.XLOOKUP(B108,資料欄位列表!C:C,資料欄位列表!C:C,\"\")","v":{"$error":"#NAME?"}},"activity_relating.num","activity_relating","num","int",null,"否"]
[{"$f":"_xludf.XLOOKUP(B109,資料欄位列表!C:C,資料欄位列表!C:C,\"\")","v":{"$error":"#NAME?"}},"activity_relating.activity_num","activity_relating","activity_num","int",null,"否","FK_activity_relating_activity","activity"]
[{"$f":"_xludf.XLOOKUP(B110,資料欄位列表!C:C,資料欄位列表!C:C,\"\")","v":{"$error":"#NAME?"}},"activity_relating.actItem_num","activity_relating","actItem_num","int",null,"否","FK_activity_relating_actItem","actItem"]
[{"$f":"_xludf.XLOOKUP(B111,資料欄位列表!C:C,資料欄位列表!C:C,\"\")","v":{"$error":"#NAME?"}},"activity_relating.price","activity_relating","price","real",null,"是"]
[{"$f":"_xludf.XLOOKUP(B112,資料欄位列表!C:C,資料欄位列表!C:C,\"\")","v":{"$error":"#NAME?"}},"activity_relating.qty","activity_relating","qty","int",null,"是"]
[{"$f":"_xludf.XLOOKUP(B113,資料欄位列表!C:C,資料欄位列表!C:C,\"\")","v":{"$error":"#NAME?"}},"activity_relating.reg_time","activity_relating","reg_time","datetime",null,"是"]
[{"$f":"_xludf.XLOOKUP(B114,資料欄位列表!C:C,資料欄位列表!C:C,\"\")","v":{"$error":"#NAME?"}},"activity_spares.num","activity_spares","num","int",null,"否"]
[{"$f":"_xludf.XLOOKUP(B115,資料欄位列表!C:C,資料欄位列表!C:C,\"\")","v":{"$error":"#NAME?"}},"activity_spares.activity_num","activity_spares","activity_num","int",null,"否","FK_activity_spares_activity","activity"]
[{"$f":"_xludf.XLOOKUP(B116,資料欄位列表!C:C,資料欄位列表!C:C,\"\")","v":{"$error":"#NAME?"}},"activity_spares.actItem_num","activity_spares","actItem_num","int",null,"否","FK_activity_spares_actItem","actItem"]
[{"$f":"_xludf.XLOOKUP(B117,資料欄位列表!C:C,資料欄位列表!C:C,\"\")","v":{"$error":"#NAME?"}},"activity_spares.qty1","activity_spares","qty1","int",null,"是"]
[{"$f":"_xludf.XLOOKUP(B118,資料欄位列表!C:C,資料欄位列表!C:C,\"\")","v":{"$error":"#NAME?"}},"activity_spares.qty2","activity_spares","qty2","int",null,"是"]
[{"$f":"_xludf.XLOOKUP(B119,資料欄位列表!C:C,資料欄位列表!C:C,\"\")","v":{"$error":"#NAME?"}},"activity_spares.demo","activity_spares","demo","nvarchar","MAX","是"]
[{"$f":"_xludf.XLOOKUP(B120,資料欄位列表!C:C,資料欄位列表!C:C,\"\")","v":{"$error":"#NAME?"}},"activity_spares.reg_time","activity_spares","reg_time","datetime",null,"是"]
[{"$f":"_xludf.XLOOKUP(B121,資料欄位列表!C:C,資料欄位列表!C:C,\"\")","v":{"$error":"#NAME?"}},"admin.num","admin","num","int",null,"否"]
[{"$f":"_xludf.XLOOKUP(B122,資料欄位列表!C:C,資料欄位列表!C:C,\"\")","v":{"$error":"#NAME?"}},"admin.u_id","admin","u_id","nvarchar",100,"是"]
[{"$f":"_xludf.XLOOKUP(B123,資料欄位列表!C:C,資料欄位列表!C:C,\"\")","v":{"$error":"#NAME?"}},"admin.u_password","admin","u_password","nvarchar","MAX","是"]
[{"$f":"_xludf.XLOOKUP(B124,資料欄位列表!C:C,資料欄位列表!C:C,\"\")","v":{"$error":"#NAME?"}},"admin.u_name","admin","u_name","nvarchar",100,"是"]
[{"$f":"_xludf.XLOOKUP(B125,資料欄位列表!C:C,資料欄位列表!C:C,\"\")","v":{"$error":"#NAME?"}},"admin.sex","admin","sex","nvarchar",4,"是"]
[{"$f":"_xludf.XLOOKUP(B126,資料欄位列表!C:C,資料欄位列表!C:C,\"\")","v":{"$error":"#NAME?"}},"admin.kind","admin","kind","nvarchar",20,"是"]
[{"$f":"_xludf.XLOOKUP(B127,資料欄位列表!C:C,資料欄位列表!C:C,\"\")","v":{"$error":"#NAME?"}},"admin.phone1","admin","phone1","nvarchar",100,"是"]
[{"$f":"_xludf.XLOOKUP(B128,資料欄位列表!C:C,資料欄位列表!C:C,\"\")","v":{"$error":"#NAME?"}},"admin.phone2","admin","phone2","nvarchar",100,"是"]
[{"$f":"_xludf.XLOOKUP(B129,資料欄位列表!C:C,資料欄位列表!C:C,\"\")","v":{"$error":"#NAME?"}},"admin.birthday","admin","birthday","datetime",null,"是"]
[{"$f":"_xludf.XLOOKUP(B130,資料欄位列表!C:C,資料欄位列表!C:C,\"\")","v":{"$error":"#NAME?"}},"admin.email","admin","email","nvarchar",400,"是"]
[{"$f":"_xludf.XLOOKUP(B131,資料欄位列表!C:C,資料欄位列表!C:C,\"\")","v":{"$error":"#NAME?"}},"admin.city","admin","city","nvarchar",20,"是"]
[{"$f":"_xludf.XLOOKUP(B132,資料欄位列表!C:C,資料欄位列表!C:C,\"\")","v":{"$error":"#NAME?"}},"admin.area","admin","area","nvarchar",100,"是"]
[{"$f":"_xludf.XLOOKUP(B133,資料欄位列表!C:C,資料欄位列表!C:C,\"\")","v":{"$error":"#NAME?"}},"admin.address","admin","address","nvarchar",510,"是"]
[{"$f":"_xludf.XLOOKUP(B134,資料欄位列表!C:C,資料欄位列表!C:C,\"\")","v":{"$error":"#NAME?"}},"admin.uid","admin","uid","nvarchar",40,"是"]
[{"$f":"_xludf.XLOOKUP(B135,資料欄位列表!C:C,資料欄位列表!C:C,\"\")","v":{"$error":"#NAME?"}},"admin.demo","admin","demo","nvarchar","MAX","是"]
[{"$f":"_xludf.XLOOKUP(B136,資料欄位列表!C:C,資料欄位列表!C:C,\"\")","v":{"$error":"#NAME?"}},"admin.power","admin","power","nvarchar",6,"是","FK_admin_admin_group","admin_group"]
[{"$f":"_xludf.XLOOKUP(B137,資料欄位列表!C:C,資料欄位列表!C:C,\"\")","v":{"$error":"#NAME?"}},"admin.online","admin","online","bit",null,"否"]
[{"$f":"_xludf.XLOOKUP(B138,資料欄位列表!C:C,資料欄位列表!C:C,\"\")","v":{"$error":"#NAME?"}},"admin.reg_time","admin","reg_time","datetime",null,"是"]
[{"$f":"_xludf.XLOOKUP(B139,資料欄位列表!C:C,資料欄位列表!C:C,\"\")","v":{"$error":"#NAME?"}},"admin.login_time","admin","login_time","datetime",null,"是"]
[{"$f":"_xludf.XLOOKUP(B140,資料欄位列表!C:C,資料欄位列表!C:C,\"\")","v":{"$error":"#NAME?"}},"admin.login_ip","admin","login_ip","nvarchar",100,"是"]
[{"$f":"_xludf.XLOOKUP(B141,資料欄位列表!C:C,資料欄位列表!C:C,\"\")","v":{"$error":"#NAME?"}},"admin.login_code","admin","login_code","nvarchar",20,"是"]
[{"$f":"_xludf.XLOOKUP(B142,資料欄位列表!C:C,資料欄位列表!C:C,\"\")","v":{"$error":"#NAME?"}},"admin.adwidth","admin","adwidth","nvarchar",20,"是"]
[{"$f":"_xludf.XLOOKUP(B143,資料欄位列表!C:C,資料欄位列表!C:C,\"\")","v":{"$error":"#NAME?"}},"admin.wrp_news","admin","wrp_news","nvarchar",2,"是"]
[{"$f":"_xludf.XLOOKUP(B144,資料欄位列表!C:C,資料欄位列表!C:C,\"\")","v":{"$error":"#NAME?"}},"admin.wrp_bar","admin","wrp_bar","nvarchar",2,"是"]
[{"$f":"_xludf.XLOOKUP(B145,資料欄位列表!C:C,資料欄位列表!C:C,\"\")","v":{"$error":"#NAME?"}},"admin.gauth_key","admin","gauth_key","nvarchar","MAX","是"]
[{"$f":"_xludf.XLOOKUP(B146,資料欄位列表!C:C,資料欄位列表!C:C,\"\")","v":{"$error":"#NAME?"}},"admin.gauth_enabled","admin","gauth_enabled","bit",null,"是"]
[{"$f":"_xludf.XLOOKUP(B147,資料欄位列表!C:C,資料欄位列表!C:C,\"\")","v":{"$error":"#NAME?"}},"admin_group.g_name","admin_group","g_name","nvarchar",6,"否"]
[{"$f":"_xludf.XLOOKUP(B148,資料欄位列表!C:C,資料欄位列表!C:C,\"\")","v":{"$error":"#NAME?"}},"admin_group.items","admin_group","items","nvarchar",510,"是"]
[{"$f":"_xludf.XLOOKUP(B149,資料欄位列表!C:C,資料欄位列表!C:C,\"\")","v":{"$error":"#NAME?"}},"admin_group.demo","admin_group","demo","nvarchar",200,"是"]
[{"$f":"_xludf.XLOOKUP(B150,資料欄位列表!C:C,資料欄位列表!C:C,\"\")","v":{"$error":"#NAME?"}},"admin_log.num","admin_log","num","int",null,"否"]
[{"$f":"_xludf.XLOOKUP(B151,資料欄位列表!C:C,資料欄位列表!C:C,\"\")","v":{"$error":"#NAME?"}},"admin_log.u_id","admin_log","u_id","nvarchar",100,"是"]
[{"$f":"_xludf.XLOOKUP(B152,資料欄位列表!C:C,資料欄位列表!C:C,\"\")","v":{"$error":"#NAME?"}},"admin_log.login_time","admin_log","login_time","datetime",null,"是"]
[{"$f":"_xludf.XLOOKUP(B153,資料欄位列表!C:C,資料欄位列表!C:C,\"\")","v":{"$error":"#NAME?"}},"admin_log.login_ip","admin_log","login_ip","nvarchar",100,"是"]
[{"$f":"_xludf.XLOOKUP(B154,資料欄位列表!C:C,資料欄位列表!C:C,\"\")","v":{"$error":"#NAME?"}},"admin_log.status","admin_log","status","int",null,"是"]
[{"$f":"_xludf.XLOOKUP(B155,資料欄位列表!C:C,資料欄位列表!C:C,\"\")","v":{"$error":"#NAME?"}},"admin_log.agent","admin_log","agent","nvarchar",10,"是"]
[{"$f":"_xludf.XLOOKUP(B156,資料欄位列表!C:C,資料欄位列表!C:C,\"\")","v":{"$error":"#NAME?"}},"admin_log.word","admin_log","word","nvarchar","MAX","是"]
[{"$f":"_xludf.XLOOKUP(B157,資料欄位列表!C:C,資料欄位列表!C:C,\"\")","v":{"$error":"#NAME?"}},"admin_log.systems","admin_log","systems","int",null,"是"]
[{"$f":"_xludf.XLOOKUP(B158,資料欄位列表!C:C,資料欄位列表!C:C,\"\")","v":{"$error":"#NAME?"}},"appellation.num","appellation","num","int",null,"否"]
[{"$f":"_xludf.XLOOKUP(B159,資料欄位列表!C:C,資料欄位列表!C:C,\"\")","v":{"$error":"#NAME?"}},"appellation.title","appellation","title","nvarchar",20,"是"]
[{"$f":"_xludf.XLOOKUP(B160,資料欄位列表!C:C,資料欄位列表!C:C,\"\")","v":{"$error":"#NAME?"}},"bed_kind.num","bed_kind","num","int",null,"否"]
[{"$f":"_xludf.XLOOKUP(B161,資料欄位列表!C:C,資料欄位列表!C:C,\"\")","v":{"$error":"#NAME?"}},"bed_kind.kind","bed_kind","kind","nvarchar",200,"是"]
[{"$f":"_xludf.XLOOKUP(B162,資料欄位列表!C:C,資料欄位列表!C:C,\"\")","v":{"$error":"#NAME?"}},"bed_kind.root","bed_kind","root","int",null,"是"]
[{"$f":"_xludf.XLOOKUP(B163,資料欄位列表!C:C,資料欄位列表!C:C,\"\")","v":{"$error":"#NAME?"}},"bed_kind.range","bed_kind","range","int",null,"是"]
[{"$f":"_xludf.XLOOKUP(B164,資料欄位列表!C:C,資料欄位列表!C:C,\"\")","v":{"$error":"#NAME?"}},"bed_kind.demo","bed_kind","demo","nvarchar","MAX","是"]
[{"$f":"_xludf.XLOOKUP(B165,資料欄位列表!C:C,資料欄位列表!C:C,\"\")","v":{"$error":"#NAME?"}},"bed_kind.sex","bed_kind","sex","nvarchar",4,"是"]
[{"$f":"_xludf.XLOOKUP(B166,資料欄位列表!C:C,資料欄位列表!C:C,\"\")","v":{"$error":"#NAME?"}},"bed_kind_detail.num","bed_kind_detail","num","int",null,"否"]
[{"$f":"_xludf.XLOOKUP(B167,資料欄位列表!C:C,資料欄位列表!C:C,\"\")","v":{"$error":"#NAME?"}},"bed_kind_detail.bed_kind_id","bed_kind_detail","bed_kind_id","int",null,"是","FK_bed_kind_detail_bed_kind","bed_kind"]
[{"$f":"_xludf.XLOOKUP(B168,資料欄位列表!C:C,資料欄位列表!C:C,\"\")","v":{"$error":"#NAME?"}},"bed_kind_detail.bed_name","bed_kind_detail","bed_name","nvarchar",100,"是"]
[{"$f":"_xludf.XLOOKUP(B169,資料欄位列表!C:C,資料欄位列表!C:C,\"\")","v":{"$error":"#NAME?"}},"bed_kind_detail.bed_type","bed_kind_detail","bed_type","int",null,"是"]
[{"$f":"_xludf.XLOOKUP(B170,資料欄位列表!C:C,資料欄位列表!C:C,\"\")","v":{"$error":"#NAME?"}},"bed_kind_detail.demo","bed_kind_detail","demo","nvarchar","MAX","是"]
[{"$f":"_xludf.XLOOKUP(B171,資料欄位列表!C:C,資料欄位列表!C:C,\"\")","v":{"$error":"#NAME?"}},"bed_order.bed_order_no","bed_order","bed_order_no","nvarchar",40,"否"]
[{"$f":"_xludf.XLOOKUP(B172,資料欄位列表!C:C,資料欄位列表!C:C,\"\")","v":{"$error":"#NAME?"}},"bed_order.order_no","bed_order","order_no","nvarchar",40,"是","FK_bed_order_pro_order","pro_order"]
[{"$f":"_xludf.XLOOKUP(B173,資料欄位列表!C:C,資料欄位列表!C:C,\"\")","v":{"$error":"#NAME?"}},"bed_order.o_detail_id","bed_order","o_detail_id","int",null,"是","FK_bed_order_pro_order_detail","pro_order_detail"]
[{"$f":"_xludf.XLOOKUP(B174,資料欄位列表!C:C,資料欄位列表!C:C,\"\")","v":{"$error":"#NAME?"}},"bed_order.start_date","bed_order","start_date","datetime",null,"是"]
[{"$f":"_xludf.XLOOKUP(B175,資料欄位列表!C:C,資料欄位列表!C:C,\"\")","v":{"$error":"#NAME?"}},"bed_order.end_date","bed_order","end_date","datetime",null,"是"]
[{"$f":"_xludf.XLOOKUP(B176,資料欄位列表!C:C,資料欄位列表!C:C,\"\")","v":{"$error":"#NAME?"}},"bed_order.phone","bed_order","phone","nvarchar","MAX","是"]
[{"$f":"_xludf.XLOOKUP(B177,資料欄位列表!C:C,資料欄位列表!C:C,\"\")","v":{"$error":"#NAME?"}},"bed_order.keyin1","bed_order","keyin1","nvarchar",4,"是"]
[{"$f":"_xludf.XLOOKUP(B178,資料欄位列表!C:C,資料欄位列表!C:C,\"\")","v":{"$error":"#NAME?"}},"bed_order.demo","bed_order","demo","nvarchar","MAX","是"]
[{"$f":"_xludf.XLOOKUP(B179,資料欄位列表!C:C,資料欄位列表!C:C,\"\")","v":{"$error":"#NAME?"}},"bed_order.reg_time","bed_order","reg_time","datetime",null,"是"]
[{"$f":"_xludf.XLOOKUP(B180,資料欄位列表!C:C,資料欄位列表!C:C,\"\")","v":{"$error":"#NAME?"}},"bed_order_detail.num","bed_order_detail","num","int",null,"否"]
[{"$f":"_xludf.XLOOKUP(B181,資料欄位列表!C:C,資料欄位列表!C:C,\"\")","v":{"$error":"#NAME?"}},"bed_order_detail.bed_order_no","bed_order_detail","bed_order_no","nvarchar",40,"是","FK_bed_order_detail_bed_order","bed_order"]
[{"$f":"_xludf.XLOOKUP(B182,資料欄位列表!C:C,資料欄位列表!C:C,\"\")","v":{"$error":"#NAME?"}},"bed_order_detail.checkIn_date","bed_order_detail","checkIn_date","datetime",null,"是"]
[{"$f":"_xludf.XLOOKUP(B183,資料欄位列表!C:C,資料欄位列表!C:C,\"\")","v":{"$error":"#NAME?"}},"bed_order_detail.bed_kind1","bed_order_detail","bed_kind1","int",null,"是","FK_bed_order_detail_bed_kind","bed_kind"]
[{"$f":"_xludf.XLOOKUP(B184,資料欄位列表!C:C,資料欄位列表!C:C,\"\")","v":{"$error":"#NAME?"}},"bed_order_detail.bed_kind2","bed_order_detail","bed_kind2","int",null,"是","FK_bed_order_detail_bed_kind1","bed_kind"]
[{"$f":"_xludf.XLOOKUP(B185,資料欄位列表!C:C,資料欄位列表!C:C,\"\")","v":{"$error":"#NAME?"}},"bed_order_detail.bed_kind_detail_id","bed_order_detail","bed_kind_detail_id","int",null,"是","FK_bed_order_detail_bed_kind_detail","bed_kind_detail"]
[{"$f":"_xludf.XLOOKUP(B186,資料欄位列表!C:C,資料欄位列表!C:C,\"\")","v":{"$error":"#NAME?"}},"bed_order_detail.license","bed_order_detail","license","nvarchar",20,"是"]
[{"$f":"_xludf.XLOOKUP(B187,資料欄位列表!C:C,資料欄位列表!C:C,\"\")","v":{"$error":"#NAME?"}},"company.num","company","num","int",null,"否"]
[{"$f":"_xludf.XLOOKUP(B188,資料欄位列表!C:C,資料欄位列表!C:C,\"\")","v":{"$error":"#NAME?"}},"company.com_name","company","com_name","nvarchar",40,"是"]
[{"$f":"_xludf.XLOOKUP(B189,資料欄位列表!C:C,資料欄位列表!C:C,\"\")","v":{"$error":"#NAME?"}},"company.com_mail","company","com_mail","nvarchar",400,"是"]
[{"$f":"_xludf.XLOOKUP(B190,資料欄位列表!C:C,資料欄位列表!C:C,\"\")","v":{"$error":"#NAME?"}},"company.bcc_mail","company","bcc_mail","nvarchar","MAX","是"]
[{"$f":"_xludf.XLOOKUP(B191,資料欄位列表!C:C,資料欄位列表!C:C,\"\")","v":{"$error":"#NAME?"}},"company.pic_url","company","pic_url","nvarchar",400,"是"]
[{"$f":"_xludf.XLOOKUP(B192,資料欄位列表!C:C,資料欄位列表!C:C,\"\")","v":{"$error":"#NAME?"}},"company.menu","company","menu","bit",null,"是"]
[{"$f":"_xludf.XLOOKUP(B193,資料欄位列表!C:C,資料欄位列表!C:C,\"\")","v":{"$error":"#NAME?"}},"company.log_class","company","log_class","bit",null,"是"]
[{"$f":"_xludf.XLOOKUP(B194,資料欄位列表!C:C,資料欄位列表!C:C,\"\")","v":{"$error":"#NAME?"}},"company.log_menu","company","log_menu","nvarchar",40,"是"]
[{"$f":"_xludf.XLOOKUP(B195,資料欄位列表!C:C,資料欄位列表!C:C,\"\")","v":{"$error":"#NAME?"}},"company.last_order_no","company","last_order_no","nvarchar",40,"是"]
[{"$f":"_xludf.XLOOKUP(B196,資料欄位列表!C:C,資料欄位列表!C:C,\"\")","v":{"$error":"#NAME?"}},"company.adwidth","company","adwidth","nvarchar",20,"是"]
[{"$f":"_xludf.XLOOKUP(B197,資料欄位列表!C:C,資料欄位列表!C:C,\"\")","v":{"$error":"#NAME?"}},"company.wrp_news","company","wrp_news","nvarchar",2,"是"]
[{"$f":"_xludf.XLOOKUP(B198,資料欄位列表!C:C,資料欄位列表!C:C,\"\")","v":{"$error":"#NAME?"}},"company.wrp_bar","company","wrp_bar","nvarchar",2,"是"]
[{"$f":"_xludf.XLOOKUP(B199,資料欄位列表!C:C,資料欄位列表!C:C,\"\")","v":{"$error":"#NAME?"}},"company.smtp_url","company","smtp_url","nvarchar",100,"是"]
[{"$f":"_xludf.XLOOKUP(B200,資料欄位列表!C:C,資料欄位列表!C:C,\"\")","v":{"$error":"#NAME?"}},"company.smtp_port","company","smtp_port","nvarchar",20,"是"]
[{"$f":"_xludf.XLOOKUP(B201,資料欄位列表!C:C,資料欄位列表!C:C,\"\")","v":{"$error":"#NAME?"}},"company.smtp_ssl","company","smtp_ssl","nvarchar",2,"是"]
[{"$f":"_xludf.XLOOKUP(B202,資料欄位列表!C:C,資料欄位列表!C:C,\"\")","v":{"$error":"#NAME?"}},"company.smtp_user","company","smtp_user","nvarchar",100,"是"]
[{"$f":"_xludf.XLOOKUP(B203,資料欄位列表!C:C,資料欄位列表!C:C,\"\")","v":{"$error":"#NAME?"}},"company.smtp_password","company","smtp_password","nvarchar","MAX","是"]
[{"$f":"_xludf.XLOOKUP(B204,資料欄位列表!C:C,資料欄位列表!C:C,\"\")","v":{"$error":"#NAME?"}},"company.smtp_def","company","smtp_def","nvarchar",2,"是"]
[{"$f":"_xludf.XLOOKUP(B205,資料欄位列表!C:C,資料欄位列表!C:C,\"\")","v":{"$error":"#NAME?"}},"company.use_sender","company","use_sender","nvarchar",2,"是"]
[{"$f":"_xludf.XLOOKUP(B206,資料欄位列表!C:C,資料欄位列表!C:C,\"\")","v":{"$error":"#NAME?"}},"company.bed_order_no","company","bed_order_no","nvarchar",40,"是"]
[{"$f":"_xludf.XLOOKUP(B207,資料欄位列表!C:C,資料欄位列表!C:C,\"\")","v":{"$error":"#NAME?"}},"country.ID","country","ID","nvarchar",10,"否"]
[{"$f":"_xludf.XLOOKUP(B208,資料欄位列表!C:C,資料欄位列表!C:C,\"\")","v":{"$error":"#NAME?"}},"country.ID2","country","ID2","nvarchar",10,"是"]
[{"$f":"_xludf.XLOOKUP(B209,資料欄位列表!C:C,資料欄位列表!C:C,\"\")","v":{"$error":"#NAME?"}},"country.ID3","country","ID3","nvarchar",10,"是"]
[{"$f":"_xludf.XLOOKUP(B210,資料欄位列表!C:C,資料欄位列表!C:C,\"\")","v":{"$error":"#NAME?"}},"country.range","country","range","int",null,"是"]
[{"$f":"_xludf.XLOOKUP(B211,資料欄位列表!C:C,資料欄位列表!C:C,\"\")","v":{"$error":"#NAME?"}},"country.name_en","country","name_en","nvarchar",200,"是"]
[{"$f":"_xludf.XLOOKUP(B212,資料欄位列表!C:C,資料欄位列表!C:C,\"\")","v":{"$error":"#NAME?"}},"country.name_zh","country","name_zh","nvarchar",60,"是"]
[{"$f":"_xludf.XLOOKUP(B213,資料欄位列表!C:C,資料欄位列表!C:C,\"\")","v":{"$error":"#NAME?"}},"files.num","files","num","int",null,"否"]
[{"$f":"_xludf.XLOOKUP(B214,資料欄位列表!C:C,資料欄位列表!C:C,\"\")","v":{"$error":"#NAME?"}},"files.subject","files","subject","nvarchar",100,"是"]
[{"$f":"_xludf.XLOOKUP(B215,資料欄位列表!C:C,資料欄位列表!C:C,\"\")","v":{"$error":"#NAME?"}},"files.word","files","word","nvarchar","MAX","是"]
[{"$f":"_xludf.XLOOKUP(B216,資料欄位列表!C:C,資料欄位列表!C:C,\"\")","v":{"$error":"#NAME?"}},"files.reg_time","files","reg_time","datetime",null,"是"]
[{"$f":"_xludf.XLOOKUP(B217,資料欄位列表!C:C,資料欄位列表!C:C,\"\")","v":{"$error":"#NAME?"}},"files.modify_time","files","modify_time","datetime",null,"是"]
[{"$f":"_xludf.XLOOKUP(B218,資料欄位列表!C:C,資料欄位列表!C:C,\"\")","v":{"$error":"#NAME?"}},"files.customize_data","files","customize_data","nvarchar","MAX","是"]
[{"$f":"_xludf.XLOOKUP(B219,資料欄位列表!C:C,資料欄位列表!C:C,\"\")","v":{"$error":"#NAME?"}},"files.paperset","files","paperset","nvarchar",30,"是"]
[{"$f":"_xludf.XLOOKUP(B220,資料欄位列表!C:C,資料欄位列表!C:C,\"\")","v":{"$error":"#NAME?"}},"followers.num","followers","num","int",null,"否"]
[{"$f":"_xludf.XLOOKUP(B221,資料欄位列表!C:C,資料欄位列表!C:C,\"\")","v":{"$error":"#NAME?"}},"followers.f_number","followers","f_number","nvarchar",40,"是"]
[{"$f":"_xludf.XLOOKUP(B222,資料欄位列表!C:C,資料欄位列表!C:C,\"\")","v":{"$error":"#NAME?"}},"followers.u_name","followers","u_name","nvarchar",40,"是"]
[{"$f":"_xludf.XLOOKUP(B223,資料欄位列表!C:C,資料欄位列表!C:C,\"\")","v":{"$error":"#NAME?"}},"followers.sex","followers","sex","nvarchar",4,"是"]
[{"$f":"_xludf.XLOOKUP(B224,資料欄位列表!C:C,資料欄位列表!C:C,\"\")","v":{"$error":"#NAME?"}},"followers.identity_type","followers","identity_type","int",null,"是"]
[{"$f":"_xludf.XLOOKUP(B225,資料欄位列表!C:C,資料欄位列表!C:C,\"\")","v":{"$error":"#NAME?"}},"followers.birthday","followers","birthday","datetime",null,"是"]
[{"$f":"_xludf.XLOOKUP(B226,資料欄位列表!C:C,資料欄位列表!C:C,\"\")","v":{"$error":"#NAME?"}},"followers.phone","followers","phone","nvarchar","MAX","是"]
[{"$f":"_xludf.XLOOKUP(B227,資料欄位列表!C:C,資料欄位列表!C:C,\"\")","v":{"$error":"#NAME?"}},"followers.email","followers","email","nvarchar",400,"是"]
[{"$f":"_xludf.XLOOKUP(B228,資料欄位列表!C:C,資料欄位列表!C:C,\"\")","v":{"$error":"#NAME?"}},"followers.refugedate","followers","refugedate","datetime",null,"是"]
[{"$f":"_xludf.XLOOKUP(B229,資料欄位列表!C:C,資料欄位列表!C:C,\"\")","v":{"$error":"#NAME?"}},"followers.refuge_name","followers","refuge_name","nvarchar",40,"是"]
[{"$f":"_xludf.XLOOKUP(B230,資料欄位列表!C:C,資料欄位列表!C:C,\"\")","v":{"$error":"#NAME?"}},"followers.address","followers","address","nvarchar",400,"是"]
[{"$f":"_xludf.XLOOKUP(B231,資料欄位列表!C:C,資料欄位列表!C:C,\"\")","v":{"$error":"#NAME?"}},"followers.demo","followers","demo","nvarchar","MAX","是"]
[{"$f":"_xludf.XLOOKUP(B232,資料欄位列表!C:C,資料欄位列表!C:C,\"\")","v":{"$error":"#NAME?"}},"followers.leader","followers","leader","int",null,"是","FK_followers_followers","followers"]
[{"$f":"_xludf.XLOOKUP(B233,資料欄位列表!C:C,資料欄位列表!C:C,\"\")","v":{"$error":"#NAME?"}},"followers.socialid1","followers","socialid1","nvarchar",100,"是"]
[{"$f":"_xludf.XLOOKUP(B234,資料欄位列表!C:C,資料欄位列表!C:C,\"\")","v":{"$error":"#NAME?"}},"followers.socialid2","followers","socialid2","nvarchar",100,"是"]
[{"$f":"_xludf.XLOOKUP(B235,資料欄位列表!C:C,資料欄位列表!C:C,\"\")","v":{"$error":"#NAME?"}},"followers.tab","followers","tab","nvarchar","MAX","是"]
[{"$f":"_xludf.XLOOKUP(B236,資料欄位列表!C:C,資料欄位列表!C:C,\"\")","v":{"$error":"#NAME?"}},"followers.contactor","followers","contactor","nvarchar",40,"是"]
[{"$f":"_xludf.XLOOKUP(B237,資料欄位列表!C:C,資料欄位列表!C:C,\"\")","v":{"$error":"#NAME?"}},"followers.contactor_phone","followers","contactor_phone","nvarchar","MAX","是"]
[{"$f":"_xludf.XLOOKUP(B238,資料欄位列表!C:C,資料欄位列表!C:C,\"\")","v":{"$error":"#NAME?"}},"followers.blood","followers","blood","nvarchar",4,"是"]
[{"$f":"_xludf.XLOOKUP(B239,資料欄位列表!C:C,資料欄位列表!C:C,\"\")","v":{"$error":"#NAME?"}},"followers.customize_data","followers","customize_data","nvarchar","MAX","是"]
[{"$f":"_xludf.XLOOKUP(B240,資料欄位列表!C:C,資料欄位列表!C:C,\"\")","v":{"$error":"#NAME?"}},"followers.introducer","followers","introducer","nvarchar",40,"是"]
[{"$f":"_xludf.XLOOKUP(B241,資料欄位列表!C:C,資料欄位列表!C:C,\"\")","v":{"$error":"#NAME?"}},"followers.refuge_area","followers","refuge_area","nvarchar",50,"是"]
[{"$f":"_xludf.XLOOKUP(B242,資料欄位列表!C:C,資料欄位列表!C:C,\"\")","v":{"$error":"#NAME?"}},"followers.id_code","followers","id_code","nvarchar","MAX","是"]
[{"$f":"_xludf.XLOOKUP(B243,資料欄位列表!C:C,資料欄位列表!C:C,\"\")","v":{"$error":"#NAME?"}},"followers.passport","followers","passport","nvarchar","MAX","是"]
[{"$f":"_xludf.XLOOKUP(B244,資料欄位列表!C:C,資料欄位列表!C:C,\"\")","v":{"$error":"#NAME?"}},"followers.cellphone","followers","cellphone","nvarchar","MAX","是"]
[{"$f":"_xludf.XLOOKUP(B245,資料欄位列表!C:C,資料欄位列表!C:C,\"\")","v":{"$error":"#NAME?"}},"followers.reg_time","followers","reg_time","datetime",null,"是"]
[{"$f":"_xludf.XLOOKUP(B246,資料欄位列表!C:C,資料欄位列表!C:C,\"\")","v":{"$error":"#NAME?"}},"followers.admin_log","followers","admin_log","nvarchar",100,"是"]
[{"$f":"_xludf.XLOOKUP(B247,資料欄位列表!C:C,資料欄位列表!C:C,\"\")","v":{"$error":"#NAME?"}},"followers.join_date","followers","join_date","datetime",null,"是"]
[{"$f":"_xludf.XLOOKUP(B248,資料欄位列表!C:C,資料欄位列表!C:C,\"\")","v":{"$error":"#NAME?"}},"followers.country","followers","country","nvarchar",10,"是","FK_followers_country","country"]
[{"$f":"_xludf.XLOOKUP(B249,資料欄位列表!C:C,資料欄位列表!C:C,\"\")","v":{"$error":"#NAME?"}},"followers.appellation_id","followers","appellation_id","int",null,"是","FK_followers_appellation","appellation"]
[{"$f":"_xludf.XLOOKUP(B250,資料欄位列表!C:C,資料欄位列表!C:C,\"\")","v":{"$error":"#NAME?"}},"followers_tablet.num","followers_tablet","num","int",null,"否"]
[{"$f":"_xludf.XLOOKUP(B251,資料欄位列表!C:C,資料欄位列表!C:C,\"\")","v":{"$error":"#NAME?"}},"followers_tablet.f_num","followers_tablet","f_num","int",null,"是","FK_followers_tablet_followers","followers"]
[{"$f":"_xludf.XLOOKUP(B252,資料欄位列表!C:C,資料欄位列表!C:C,\"\")","v":{"$error":"#NAME?"}},"followers_tablet.type","followers_tablet","type","nvarchar",200,"是"]
[{"$f":"_xludf.XLOOKUP(B253,資料欄位列表!C:C,資料欄位列表!C:C,\"\")","v":{"$error":"#NAME?"}},"followers_tablet.title","followers_tablet","title","nvarchar","MAX","是"]
[{"$f":"_xludf.XLOOKUP(B254,資料欄位列表!C:C,資料欄位列表!C:C,\"\")","v":{"$error":"#NAME?"}},"item.num","item","num","int",null,"否"]
[{"$f":"_xludf.XLOOKUP(B255,資料欄位列表!C:C,資料欄位列表!C:C,\"\")","v":{"$error":"#NAME?"}},"item.title","item","title","nvarchar",100,"是"]
[{"$f":"_xludf.XLOOKUP(B256,資料欄位列表!C:C,資料欄位列表!C:C,\"\")","v":{"$error":"#NAME?"}},"item.url","item","url","nvarchar",200,"是"]
[{"$f":"_xludf.XLOOKUP(B257,資料欄位列表!C:C,資料欄位列表!C:C,\"\")","v":{"$error":"#NAME?"}},"item.target","item","target","nvarchar",4,"是"]
[{"$f":"_xludf.XLOOKUP(B258,資料欄位列表!C:C,資料欄位列表!C:C,\"\")","v":{"$error":"#NAME?"}},{"$f":"C258&\".\"&D258","v":"item.price"},"item","price","nvarchar",20,"是"]
[{"$f":"_xludf.XLOOKUP(B259,資料欄位列表!C:C,資料欄位列表!C:C,\"\")","v":{"$error":"#NAME?"}},"item.demo","item","demo","nvarchar",510,"是"]
[{"$f":"_xludf.XLOOKUP(B260,資料欄位列表!C:C,資料欄位列表!C:C,\"\")","v":{"$error":"#NAME?"}},"item.other","item","other","nvarchar",510,"是"]
[{"$f":"_xludf.XLOOKUP(B261,資料欄位列表!C:C,資料欄位列表!C:C,\"\")","v":{"$error":"#NAME?"}},"item.root","item","root","int",null,"是"]
[{"$f":"_xludf.XLOOKUP(B262,資料欄位列表!C:C,資料欄位列表!C:C,\"\")","v":{"$error":"#NAME?"}},"item.range","item","range","int",null,"是"]
[{"$f":"_xludf.XLOOKUP(B263,資料欄位列表!C:C,資料欄位列表!C:C,\"\")","v":{"$error":"#NAME?"}},"item.other_url","item","other_url","nvarchar",510,"是"]
[{"$f":"_xludf.XLOOKUP(B264,資料欄位列表!C:C,資料欄位列表!C:C,\"\")","v":{"$error":"#NAME?"}},"item.s_id","item","s_id","nvarchar",20,"是"]
[{"$f":"_xludf.XLOOKUP(B265,資料欄位列表!C:C,資料欄位列表!C:C,\"\")","v":{"$error":"#NAME?"}},"member.num","member","num","int",null,"否"]
[{"$f":"_xludf.XLOOKUP(B266,資料欄位列表!C:C,資料欄位列表!C:C,\"\")","v":{"$error":"#NAME?"}},"member.f_num","member","f_num","int",null,"是","FK_member_followers","followers"]
[{"$f":"_xludf.XLOOKUP(B267,資料欄位列表!C:C,資料欄位列表!C:C,\"\")","v":{"$error":"#NAME?"}},"member.m_number","member","m_number","nvarchar",40,"是"]
[{"$f":"_xludf.XLOOKUP(B268,資料欄位列表!C:C,資料欄位列表!C:C,\"\")","v":{"$error":"#NAME?"}},"member.u_name","member","u_name","nvarchar",40,"是"]
[{"$f":"_xludf.XLOOKUP(B269,資料欄位列表!C:C,資料欄位列表!C:C,\"\")","v":{"$error":"#NAME?"}},"member.sex","member","sex","nvarchar",4,"是"]
[{"$f":"_xludf.XLOOKUP(B270,資料欄位列表!C:C,資料欄位列表!C:C,\"\")","v":{"$error":"#NAME?"}},"member.id_code","member","id_code","nvarchar","MAX","是"]
[{"$f":"_xludf.XLOOKUP(B271,資料欄位列表!C:C,資料欄位列表!C:C,\"\")","v":{"$error":"#NAME?"}},"member.birthday","member","birthday","datetime",null,"是"]
[{"$f":"_xludf.XLOOKUP(B272,資料欄位列表!C:C,資料欄位列表!C:C,\"\")","v":{"$error":"#NAME?"}},"member.blood","member","blood","nvarchar",4,"是"]
[{"$f":"_xludf.XLOOKUP(B273,資料欄位列表!C:C,資料欄位列表!C:C,\"\")","v":{"$error":"#NAME?"}},"member.educational","member","educational","nvarchar",100,"是"]
[{"$f":"_xludf.XLOOKUP(B274,資料欄位列表!C:C,資料欄位列表!C:C,\"\")","v":{"$error":"#NAME?"}},"member.refugedate","member","refugedate","datetime",null,"是"]
[{"$f":"_xludf.XLOOKUP(B275,資料欄位列表!C:C,資料欄位列表!C:C,\"\")","v":{"$error":"#NAME?"}},"member.refuge_name","member","refuge_name","nvarchar",40,"是"]
[{"$f":"_xludf.XLOOKUP(B276,資料欄位列表!C:C,資料欄位列表!C:C,\"\")","v":{"$error":"#NAME?"}},"member.refuge_area","member","refuge_area","nvarchar",100,"是"]
[{"$f":"_xludf.XLOOKUP(B277,資料欄位列表!C:C,資料欄位列表!C:C,\"\")","v":{"$error":"#NAME?"}},"member.demo","member","demo","nvarchar","MAX","是"]
[{"$f":"_xludf.XLOOKUP(B278,資料欄位列表!C:C,資料欄位列表!C:C,\"\")","v":{"$error":"#NAME?"}},"member.admin_num","member","admin_num","int",null,"是","FK_member_admin","admin"]
[{"$f":"_xludf.XLOOKUP(B279,資料欄位列表!C:C,資料欄位列表!C:C,\"\")","v":{"$error":"#NAME?"}},"member.takedate","member","takedate","datetime",null,"是"]
[{"$f":"_xludf.XLOOKUP(B280,資料欄位列表!C:C,資料欄位列表!C:C,\"\")","v":{"$error":"#NAME?"}},"member.leavedate","member","leavedate","datetime",null,"是"]
[{"$f":"_xludf.XLOOKUP(B281,資料欄位列表!C:C,資料欄位列表!C:C,\"\")","v":{"$error":"#NAME?"}},"member.group_kind","member","group_kind","int",null,"是","FK_member_member_group","member_group"]
[{"$f":"_xludf.XLOOKUP(B282,資料欄位列表!C:C,資料欄位列表!C:C,\"\")","v":{"$error":"#NAME?"}},"member.title_kind","member","title_kind","int",null,"是","FK_member_member_title","member_title"]
[{"$f":"_xludf.XLOOKUP(B283,資料欄位列表!C:C,資料欄位列表!C:C,\"\")","v":{"$error":"#NAME?"}},"member.salary","member","salary","real",null,"是"]
[{"$f":"_xludf.XLOOKUP(B284,資料欄位列表!C:C,資料欄位列表!C:C,\"\")","v":{"$error":"#NAME?"}},"member.phone","member","phone","nvarchar","MAX","是"]
[{"$f":"_xludf.XLOOKUP(B285,資料欄位列表!C:C,資料欄位列表!C:C,\"\")","v":{"$error":"#NAME?"}},"member.com_email","member","com_email","nvarchar",400,"是"]
[{"$f":"_xludf.XLOOKUP(B286,資料欄位列表!C:C,資料欄位列表!C:C,\"\")","v":{"$error":"#NAME?"}},"member.email","member","email","nvarchar",400,"是"]
[{"$f":"_xludf.XLOOKUP(B287,資料欄位列表!C:C,資料欄位列表!C:C,\"\")","v":{"$error":"#NAME?"}},"member.contact","member","contact","nvarchar",200,"是"]
[{"$f":"_xludf.XLOOKUP(B288,資料欄位列表!C:C,資料欄位列表!C:C,\"\")","v":{"$error":"#NAME?"}},"member.address1","member","address1","nvarchar",400,"是"]
[{"$f":"_xludf.XLOOKUP(B289,資料欄位列表!C:C,資料欄位列表!C:C,\"\")","v":{"$error":"#NAME?"}},"member.address2","member","address2","nvarchar",400,"是"]
[{"$f":"_xludf.XLOOKUP(B290,資料欄位列表!C:C,資料欄位列表!C:C,\"\")","v":{"$error":"#NAME?"}},"member.reg_time","member","reg_time","datetime",null,"是"]
[{"$f":"_xludf.XLOOKUP(B291,資料欄位列表!C:C,資料欄位列表!C:C,\"\")","v":{"$error":"#NAME?"}},"member.pic1","member","pic1","nvarchar",100,"是"]
[{"$f":"_xludf.XLOOKUP(B292,資料欄位列表!C:C,資料欄位列表!C:C,\"\")","v":{"$error":"#NAME?"}},"member_check.num","member_check","num","int",null,"否"]
[{"$f":"_xludf.XLOOKUP(B293,資料欄位列表!C:C,資料欄位列表!C:C,\"\")","v":{"$error":"#NAME?"}},"member_check.mem_num","member_check","mem_num","int",null,"是","FK_member_check_member","member"]
[{"$f":"_xludf.XLOOKUP(B294,資料欄位列表!C:C,資料欄位列表!C:C,\"\")","v":{"$error":"#NAME?"}},"member_check.check_date","member_check","check_date","date",null,"是"]
[{"$f":"_xludf.XLOOKUP(B295,資料欄位列表!C:C,資料欄位列表!C:C,\"\")","v":{"$error":"#NAME?"}},"member_check.check_time","member_check","check_time","time",null,"是"]
[{"$f":"_xludf.XLOOKUP(B296,資料欄位列表!C:C,資料欄位列表!C:C,\"\")","v":{"$error":"#NAME?"}},"member_check.check_type","member_check","check_type","int",null,"是"]
[{"$f":"_xludf.XLOOKUP(B297,資料欄位列表!C:C,資料欄位列表!C:C,\"\")","v":{"$error":"#NAME?"}},"member_check.demo","member_check","demo","nvarchar","MAX","是"]
[{"$f":"_xludf.XLOOKUP(B298,資料欄位列表!C:C,資料欄位列表!C:C,\"\")","v":{"$error":"#NAME?"}},"member_check.login_type","member_check","login_type","int",null,"是"]
[{"$f":"_xludf.XLOOKUP(B299,資料欄位列表!C:C,資料欄位列表!C:C,\"\")","v":{"$error":"#NAME?"}},"member_check.login_ip","member_check","login_ip","nvarchar",100,"是"]
[{"$f":"_xludf.XLOOKUP(B300,資料欄位列表!C:C,資料欄位列表!C:C,\"\")","v":{"$error":"#NAME?"}},"member_check.hour","member_check","hour","int",null,"是"]
[{"$f":"_xludf.XLOOKUP(B301,資料欄位列表!C:C,資料欄位列表!C:C,\"\")","v":{"$error":"#NAME?"}},"member_group.num","member_group","num","int",null,"否"]
[{"$f":"_xludf.XLOOKUP(B302,資料欄位列表!C:C,資料欄位列表!C:C,\"\")","v":{"$error":"#NAME?"}},"member_group.kind","member_group","kind","nvarchar",200,"是"]
[{"$f":"_xludf.XLOOKUP(B303,資料欄位列表!C:C,資料欄位列表!C:C,\"\")","v":{"$error":"#NAME?"}},"member_group.starttime","member_group","starttime","time",null,"是"]
[{"$f":"_xludf.XLOOKUP(B304,資料欄位列表!C:C,資料欄位列表!C:C,\"\")","v":{"$error":"#NAME?"}},"member_group.offtime","member_group","offtime","time",null,"是"]
[{"$f":"_xludf.XLOOKUP(B305,資料欄位列表!C:C,資料欄位列表!C:C,\"\")","v":{"$error":"#NAME?"}},"member_group.resttime","member_group","resttime","int",null,"是"]
[{"$f":"_xludf.XLOOKUP(B306,資料欄位列表!C:C,資料欄位列表!C:C,\"\")","v":{"$error":"#NAME?"}},"member_group.root","member_group","root","int",null,"是"]
[{"$f":"_xludf.XLOOKUP(B307,資料欄位列表!C:C,資料欄位列表!C:C,\"\")","v":{"$error":"#NAME?"}},"member_group.range","member_group","range","int",null,"是"]
[{"$f":"_xludf.XLOOKUP(B308,資料欄位列表!C:C,資料欄位列表!C:C,\"\")","v":{"$error":"#NAME?"}},"member_group.demo","member_group","demo","nvarchar","MAX","是"]
[{"$f":"_xludf.XLOOKUP(B309,資料欄位列表!C:C,資料欄位列表!C:C,\"\")","v":{"$error":"#NAME?"}},"member_title.num","member_title","num","int",null,"否"]
[{"$f":"_xludf.XLOOKUP(B310,資料欄位列表!C:C,資料欄位列表!C:C,\"\")","v":{"$error":"#NAME?"}},"member_title.kind","member_title","kind","nvarchar",200,"是"]
[{"$f":"_xludf.XLOOKUP(B311,資料欄位列表!C:C,資料欄位列表!C:C,\"\")","v":{"$error":"#NAME?"}},"member_title.root","member_title","root","int",null,"是"]
[{"$f":"_xludf.XLOOKUP(B312,資料欄位列表!C:C,資料欄位列表!C:C,\"\")","v":{"$error":"#NAME?"}},"member_title.range","member_title","range","int",null,"是"]
[{"$f":"_xludf.XLOOKUP(B313,資料欄位列表!C:C,資料欄位列表!C:C,\"\")","v":{"$error":"#NAME?"}},"member_title.demo","member_title","demo","nvarchar","MAX","是"]
[{"$f":"_xludf.XLOOKUP(B314,資料欄位列表!C:C,資料欄位列表!C:C,\"\")","v":{"$error":"#NAME?"}},"member_title.status","member_title","status","nvarchar",2,"是"]
[{"$f":"_xludf.XLOOKUP(B315,資料欄位列表!C:C,資料欄位列表!C:C,\"\")","v":{"$error":"#NAME?"}},"news.num","news","num","int",null,"否"]
[{"$f":"_xludf.XLOOKUP(B316,資料欄位列表!C:C,資料欄位列表!C:C,\"\")","v":{"$error":"#NAME?"}},"news.subject","news","subject","nvarchar",200,"是"]
[{"$f":"_xludf.XLOOKUP(B317,資料欄位列表!C:C,資料欄位列表!C:C,\"\")","v":{"$error":"#NAME?"}},"news.kind","news","kind","int",null,"是","FK_news_news_kind","news_kind"]
[{"$f":"_xludf.XLOOKUP(B318,資料欄位列表!C:C,資料欄位列表!C:C,\"\")","v":{"$error":"#NAME?"}},"news.status","news","status","nvarchar",2,"是"]
[{"$f":"_xludf.XLOOKUP(B319,資料欄位列表!C:C,資料欄位列表!C:C,\"\")","v":{"$error":"#NAME?"}},"news.selltime1","news","selltime1","datetime",null,"是"]
[{"$f":"_xludf.XLOOKUP(B320,資料欄位列表!C:C,資料欄位列表!C:C,\"\")","v":{"$error":"#NAME?"}},"news.selltime2","news","selltime2","datetime",null,"是"]
[{"$f":"_xludf.XLOOKUP(B321,資料欄位列表!C:C,資料欄位列表!C:C,\"\")","v":{"$error":"#NAME?"}},"news.uptime","news","uptime","datetime",null,"是"]
[{"$f":"_xludf.XLOOKUP(B322,資料欄位列表!C:C,資料欄位列表!C:C,\"\")","v":{"$error":"#NAME?"}},"news.topping","news","topping","nvarchar",2,"是"]
[{"$f":"_xludf.XLOOKUP(B323,資料欄位列表!C:C,資料欄位列表!C:C,\"\")","v":{"$error":"#NAME?"}},"news.demo","news","demo","nvarchar","MAX","是"]
[{"$f":"_xludf.XLOOKUP(B324,資料欄位列表!C:C,資料欄位列表!C:C,\"\")","v":{"$error":"#NAME?"}},"news.word","news","word","nvarchar","MAX","是"]
[{"$f":"_xludf.XLOOKUP(B325,資料欄位列表!C:C,資料欄位列表!C:C,\"\")","v":{"$error":"#NAME?"}},"news.reg_time","news","reg_time","datetime",null,"是"]
[{"$f":"_xludf.XLOOKUP(B326,資料欄位列表!C:C,資料欄位列表!C:C,\"\")","v":{"$error":"#NAME?"}},"news.range","news","range","int",null,"是"]
[{"$f":"_xludf.XLOOKUP(B327,資料欄位列表!C:C,資料欄位列表!C:C,\"\")","v":{"$error":"#NAME?"}},"news.author","news","author","int",null,"是","FK_news_admin","admin"]
[{"$f":"_xludf.XLOOKUP(B328,資料欄位列表!C:C,資料欄位列表!C:C,\"\")","v":{"$error":"#NAME?"}},"news.activity_num","news","activity_num","int",null,"是","FK_news_activity","activity"]
[{"$f":"_xludf.XLOOKUP(B329,資料欄位列表!C:C,資料欄位列表!C:C,\"\")","v":{"$error":"#NAME?"}},"news_files.num","news_files","num","nvarchar",28,"否"]
[{"$f":"_xludf.XLOOKUP(B330,資料欄位列表!C:C,資料欄位列表!C:C,\"\")","v":{"$error":"#NAME?"}},"news_files.news_id","news_files","news_id","int",null,"否","FK_news_files_news","news"]
[{"$f":"_xludf.XLOOKUP(B331,資料欄位列表!C:C,資料欄位列表!C:C,\"\")","v":{"$error":"#NAME?"}},"news_files.pic1","news_files","pic1","nvarchar",100,"是"]
[{"$f":"_xludf.XLOOKUP(B332,資料欄位列表!C:C,資料欄位列表!C:C,\"\")","v":{"$error":"#NAME?"}},"news_files.reg_time","news_files","reg_time","datetime",null,"是"]
[{"$f":"_xludf.XLOOKUP(B333,資料欄位列表!C:C,資料欄位列表!C:C,\"\")","v":{"$error":"#NAME?"}},"news_files.pic_name","news_files","pic_name","nvarchar",300,"是"]
[{"$f":"_xludf.XLOOKUP(B334,資料欄位列表!C:C,資料欄位列表!C:C,\"\")","v":{"$error":"#NAME?"}},"news_files.pic_type","news_files","pic_type","nvarchar",20,"是"]
[{"$f":"_xludf.XLOOKUP(B335,資料欄位列表!C:C,資料欄位列表!C:C,\"\")","v":{"$error":"#NAME?"}},"news_kind.num","news_kind","num","int",null,"否"]
[{"$f":"_xludf.XLOOKUP(B336,資料欄位列表!C:C,資料欄位列表!C:C,\"\")","v":{"$error":"#NAME?"}},"news_kind.kind","news_kind","kind","nvarchar",200,"是"]
[{"$f":"_xludf.XLOOKUP(B337,資料欄位列表!C:C,資料欄位列表!C:C,\"\")","v":{"$error":"#NAME?"}},"news_kind.root","news_kind","root","int",null,"是"]
[{"$f":"_xludf.XLOOKUP(B338,資料欄位列表!C:C,資料欄位列表!C:C,\"\")","v":{"$error":"#NAME?"}},"news_kind.range","news_kind","range","int",null,"是"]
[{"$f":"_xludf.XLOOKUP(B339,資料欄位列表!C:C,資料欄位列表!C:C,\"\")","v":{"$error":"#NAME?"}},"news_kind.demo","news_kind","demo","nvarchar","MAX","是"]
[{"$f":"_xludf.XLOOKUP(B340,資料欄位列表!C:C,資料欄位列表!C:C,\"\")","v":{"$error":"#NAME?"}},"news_kind.status","news_kind","status","nvarchar",2,"是"]
[{"$f":"_xludf.XLOOKUP(B341,資料欄位列表!C:C,資料欄位列表!C:C,\"\")","v":{"$error":"#NAME?"}},"PostCity.city","PostCity","city","nvarchar",20,"是"]
[{"$f":"_xludf.XLOOKUP(B342,資料欄位列表!C:C,資料欄位列表!C:C,\"\")","v":{"$error":"#NAME?"}},"PostNumber.ID","PostNumber","ID","int",null,"是"]
[{"$f":"_xludf.XLOOKUP(B343,資料欄位列表!C:C,資料欄位列表!C:C,\"\")","v":{"$error":"#NAME?"}},"PostNumber.PostNumber","PostNumber","PostNumber","nvarchar",510,"是"]
[{"$f":"_xludf.XLOOKUP(B344,資料欄位列表!C:C,資料欄位列表!C:C,\"\")","v":{"$error":"#NAME?"}},"PostNumber.City","PostNumber","City","nvarchar",510,"是"]
[{"$f":"_xludf.XLOOKUP(B345,資料欄位列表!C:C,資料欄位列表!C:C,\"\")","v":{"$error":"#NAME?"}},"PostNumber.Area","PostNumber","Area","nvarchar",510,"是"]
[{"$f":"_xludf.XLOOKUP(B346,資料欄位列表!C:C,資料欄位列表!C:C,\"\")","v":{"$error":"#NAME?"}},"pro_order.order_no","pro_order","order_no","nvarchar",40,"否"]
[{"$f":"_xludf.XLOOKUP(B347,資料欄位列表!C:C,資料欄位列表!C:C,\"\")","v":{"$error":"#NAME?"}},"pro_order.up_time","pro_order","up_time","datetime",null,"是"]
[{"$f":"_xludf.XLOOKUP(B348,資料欄位列表!C:C,資料欄位列表!C:C,\"\")","v":{"$error":"#NAME?"}},"pro_order.reg_time","pro_order","reg_time","datetime",null,"是"]
[{"$f":"_xludf.XLOOKUP(B349,資料欄位列表!C:C,資料欄位列表!C:C,\"\")","v":{"$error":"#NAME?"}},"pro_order.keyin1","pro_order","keyin1","nvarchar",6,"是"]
[{"$f":"_xludf.XLOOKUP(B350,資料欄位列表!C:C,資料欄位列表!C:C,\"\")","v":{"$error":"#NAME?"}},"pro_order.f_num","pro_order","f_num","int",null,"是","FK_pro_order_followers","followers"]
[{"$f":"_xludf.XLOOKUP(B351,資料欄位列表!C:C,資料欄位列表!C:C,\"\")","v":{"$error":"#NAME?"}},"pro_order.phone","pro_order","phone","nvarchar","MAX","是"]
[{"$f":"_xludf.XLOOKUP(B352,資料欄位列表!C:C,資料欄位列表!C:C,\"\")","v":{"$error":"#NAME?"}},"pro_order.activity_num","pro_order","activity_num","int",null,"是","FK_pro_order_activity","activity"]
[{"$f":"_xludf.XLOOKUP(B353,資料欄位列表!C:C,資料欄位列表!C:C,\"\")","v":{"$error":"#NAME?"}},"pro_order.address","pro_order","address","nvarchar",400,"是"]
[{"$f":"_xludf.XLOOKUP(B354,資料欄位列表!C:C,資料欄位列表!C:C,\"\")","v":{"$error":"#NAME?"}},"pro_order.demo","pro_order","demo","nvarchar","MAX","是"]
[{"$f":"_xludf.XLOOKUP(B355,資料欄位列表!C:C,資料欄位列表!C:C,\"\")","v":{"$error":"#NAME?"}},"pro_order.customize_data","pro_order","customize_data","nvarchar","MAX","是"]
[{"$f":"_xludf.XLOOKUP(B356,資料欄位列表!C:C,資料欄位列表!C:C,\"\")","v":{"$error":"#NAME?"}},"pro_order.introducer","pro_order","introducer","int",null,"是","FK_pro_order_introducer","followers"]
[{"$f":"_xludf.XLOOKUP(B357,資料欄位列表!C:C,資料欄位列表!C:C,\"\")","v":{"$error":"#NAME?"}},"pro_order.send_receipt","pro_order","send_receipt","bit",null,"是"]
[{"$f":"_xludf.XLOOKUP(B358,資料欄位列表!C:C,資料欄位列表!C:C,\"\")","v":{"$error":"#NAME?"}},"pro_order.receipt_title","pro_order","receipt_title","nvarchar","MAX","是"]
[{"$f":"_xludf.XLOOKUP(B359,資料欄位列表!C:C,資料欄位列表!C:C,\"\")","v":{"$error":"#NAME?"}},"pro_order_detail.num","pro_order_detail","num","int",null,"否"]
[{"$f":"_xludf.XLOOKUP(B360,資料欄位列表!C:C,資料欄位列表!C:C,\"\")","v":{"$error":"#NAME?"}},"pro_order_detail.order_no","pro_order_detail","order_no","nvarchar",40,"否","FK_pro_order_detail_pro_order","pro_order"]
[{"$f":"_xludf.XLOOKUP(B361,資料欄位列表!C:C,資料欄位列表!C:C,\"\")","v":{"$error":"#NAME?"}},"pro_order_detail.actItem_num","pro_order_detail","actItem_num","int",null,"是","FK_pro_order_detail_actItem","actItem"]
[{"$f":"_xludf.XLOOKUP(B362,資料欄位列表!C:C,資料欄位列表!C:C,\"\")","v":{"$error":"#NAME?"}},"pro_order_detail.parent_num","pro_order_detail","parent_num","int",null,"是"]
[{"$f":"_xludf.XLOOKUP(B363,資料欄位列表!C:C,資料欄位列表!C:C,\"\")","v":{"$error":"#NAME?"}},"pro_order_detail.f_num","pro_order_detail","f_num","int",null,"是","FK_pro_order_detail_followers","followers"]
[{"$f":"_xludf.XLOOKUP(B364,資料欄位列表!C:C,資料欄位列表!C:C,\"\")","v":{"$error":"#NAME?"}},"pro_order_detail.f_num_tablet","pro_order_detail","f_num_tablet","nvarchar","MAX","是"]
[{"$f":"_xludf.XLOOKUP(B365,資料欄位列表!C:C,資料欄位列表!C:C,\"\")","v":{"$error":"#NAME?"}},"pro_order_detail.address","pro_order_detail","address","nvarchar",400,"是"]
[{"$f":"_xludf.XLOOKUP(B366,資料欄位列表!C:C,資料欄位列表!C:C,\"\")","v":{"$error":"#NAME?"}},"pro_order_detail.from_id","pro_order_detail","from_id","int",null,"是","FK_pro_order_detail_followers1","followers"]
[{"$f":"_xludf.XLOOKUP(B367,資料欄位列表!C:C,資料欄位列表!C:C,\"\")","v":{"$error":"#NAME?"}},"pro_order_detail.from_id_tablet","pro_order_detail","from_id_tablet","nvarchar","MAX","是"]
[{"$f":"_xludf.XLOOKUP(B368,資料欄位列表!C:C,資料欄位列表!C:C,\"\")","v":{"$error":"#NAME?"}},"pro_order_detail.due_date","pro_order_detail","due_date","datetime",null,"是"]
[{"$f":"_xludf.XLOOKUP(B369,資料欄位列表!C:C,資料欄位列表!C:C,\"\")","v":{"$error":"#NAME?"}},"pro_order_detail.bed_type","pro_order_detail","bed_type","int",null,"是"]
[{"$f":"_xludf.XLOOKUP(B370,資料欄位列表!C:C,資料欄位列表!C:C,\"\")","v":{"$error":"#NAME?"}},"pro_order_detail.price","pro_order_detail","price","real",null,"是"]
[{"$f":"_xludf.XLOOKUP(B371,資料欄位列表!C:C,資料欄位列表!C:C,\"\")","v":{"$error":"#NAME?"}},"pro_order_detail.qty","pro_order_detail","qty","int",null,"是"]
[{"$f":"_xludf.XLOOKUP(B372,資料欄位列表!C:C,資料欄位列表!C:C,\"\")","v":{"$error":"#NAME?"}},"pro_order_detail.start_date","pro_order_detail","start_date","datetime",null,"是"]
[{"$f":"_xludf.XLOOKUP(B373,資料欄位列表!C:C,資料欄位列表!C:C,\"\")","v":{"$error":"#NAME?"}},"pro_order_detail.extend_date","pro_order_detail","extend_date","datetime",null,"是"]
[{"$f":"_xludf.XLOOKUP(B374,資料欄位列表!C:C,資料欄位列表!C:C,\"\")","v":{"$error":"#NAME?"}},"pro_order_detail.pay","pro_order_detail","pay","real",null,"是"]
[{"$f":"_xludf.XLOOKUP(B375,資料欄位列表!C:C,資料欄位列表!C:C,\"\")","v":{"$error":"#NAME?"}},"pro_order_detail.pay_date","pro_order_detail","pay_date","datetime",null,"是"]
[{"$f":"_xludf.XLOOKUP(B376,資料欄位列表!C:C,資料欄位列表!C:C,\"\")","v":{"$error":"#NAME?"}},"pro_order_detail.keyin1","pro_order_detail","keyin1","int",null,"是"]
[{"$f":"_xludf.XLOOKUP(B377,資料欄位列表!C:C,資料欄位列表!C:C,\"\")","v":{"$error":"#NAME?"}},"pro_order_detail.demo","pro_order_detail","demo","nvarchar","MAX","是"]
[{"$f":"_xludf.XLOOKUP(B378,資料欄位列表!C:C,資料欄位列表!C:C,\"\")","v":{"$error":"#NAME?"}},"pro_order_detail.customize_data","pro_order_detail","customize_data","nvarchar","MAX","是"]
[{"$f":"_xludf.XLOOKUP(B379,資料欄位列表!C:C,資料欄位列表!C:C,\"\")","v":{"$error":"#NAME?"}},"pro_order_detail.printed_files","pro_order_detail","printed_files","nvarchar","MAX","是"]
[{"$f":"_xludf.XLOOKUP(B380,資料欄位列表!C:C,資料欄位列表!C:C,\"\")","v":{"$error":"#NAME?"}},"pro_order_record.num","pro_order_record","num","int",null,"否"]
[{"$f":"_xludf.XLOOKUP(B381,資料欄位列表!C:C,資料欄位列表!C:C,\"\")","v":{"$error":"#NAME?"}},"pro_order_record.detail_num","pro_order_record","detail_num","int",null,"是","FK_pro_order_record_pro_order_detail","pro_order_detail"]
[{"$f":"_xludf.XLOOKUP(B382,資料欄位列表!C:C,資料欄位列表!C:C,\"\")","v":{"$error":"#NAME?"}},"pro_order_record.price","pro_order_record","price","real",null,"是"]
[{"$f":"_xludf.XLOOKUP(B383,資料欄位列表!C:C,資料欄位列表!C:C,\"\")","v":{"$error":"#NAME?"}},"pro_order_record.payment","pro_order_record","payment","int",null,"是","FK_pro_order_record_accounting_kind2","accounting_kind2"]
[{"$f":"_xludf.XLOOKUP(B384,資料欄位列表!C:C,資料欄位列表!C:C,\"\")","v":{"$error":"#NAME?"}},"pro_order_record.reg_time","pro_order_record","reg_time","datetime",null,"是"]
[{"$f":"_xludf.XLOOKUP(B385,資料欄位列表!C:C,資料欄位列表!C:C,\"\")","v":{"$error":"#NAME?"}},"pro_order_record.pay_date","pro_order_record","pay_date","datetime",null,"是"]
[{"$f":"_xludf.XLOOKUP(B386,資料欄位列表!C:C,資料欄位列表!C:C,\"\")","v":{"$error":"#NAME?"}},"pro_order_record.organization","pro_order_record","organization","nvarchar",100,"是"]
[{"$f":"_xludf.XLOOKUP(B387,資料欄位列表!C:C,資料欄位列表!C:C,\"\")","v":{"$error":"#NAME?"}},"pro_order_record.bank_code","pro_order_record","bank_code","nvarchar",20,"是"]
[{"$f":"_xludf.XLOOKUP(B388,資料欄位列表!C:C,資料欄位列表!C:C,\"\")","v":{"$error":"#NAME?"}},"project.num","project","num","int",null,"否"]
[{"$f":"_xludf.XLOOKUP(B389,資料欄位列表!C:C,資料欄位列表!C:C,\"\")","v":{"$error":"#NAME?"}},"project.subject","project","subject","nvarchar",100,"是"]
[{"$f":"_xludf.XLOOKUP(B390,資料欄位列表!C:C,資料欄位列表!C:C,\"\")","v":{"$error":"#NAME?"}},"project.kind","project","kind","int",null,"是","FK_project_project_kind","project_kind"]
[{"$f":"_xludf.XLOOKUP(B391,資料欄位列表!C:C,資料欄位列表!C:C,\"\")","v":{"$error":"#NAME?"}},"project.actItem_num","project","actItem_num","int",null,"是","FK_project_actItem","actItem"]
[{"$f":"_xludf.XLOOKUP(B392,資料欄位列表!C:C,資料欄位列表!C:C,\"\")","v":{"$error":"#NAME?"}},"project.demo","project","demo","nvarchar","MAX","是"]
[{"$f":"_xludf.XLOOKUP(B393,資料欄位列表!C:C,資料欄位列表!C:C,\"\")","v":{"$error":"#NAME?"}},"project.reg_time","project","reg_time","datetime",null,"是"]
[{"$f":"_xludf.XLOOKUP(B394,資料欄位列表!C:C,資料欄位列表!C:C,\"\")","v":{"$error":"#NAME?"}},"project_kind.num","project_kind","num","int",null,"否"]
[{"$f":"_xludf.XLOOKUP(B395,資料欄位列表!C:C,資料欄位列表!C:C,\"\")","v":{"$error":"#NAME?"}},"project_kind.kind","project_kind","kind","nvarchar",200,"是"]
[{"$f":"_xludf.XLOOKUP(B396,資料欄位列表!C:C,資料欄位列表!C:C,\"\")","v":{"$error":"#NAME?"}},"project_kind.root","project_kind","root","int",null,"是"]
[{"$f":"_xludf.XLOOKUP(B397,資料欄位列表!C:C,資料欄位列表!C:C,\"\")","v":{"$error":"#NAME?"}},"project_kind.range","project_kind","range","int",null,"是"]
[{"$f":"_xludf.XLOOKUP(B398,資料欄位列表!C:C,資料欄位列表!C:C,\"\")","v":{"$error":"#NAME?"}},"project_kind.demo","project_kind","demo","nvarchar","MAX","是"]
[{"$f":"_xludf.XLOOKUP(B399,資料欄位列表!C:C,資料欄位列表!C:C,\"\")","v":{"$error":"#NAME?"}},"project_sub.num","project_sub","num","int",null,"否"]
[{"$f":"_xludf.XLOOKUP(B400,資料欄位列表!C:C,資料欄位列表!C:C,\"\")","v":{"$error":"#NAME?"}},"project_sub.subject","project_sub","subject","nvarchar",100,"是"]
[{"$f":"_xludf.XLOOKUP(B401,資料欄位列表!C:C,資料欄位列表!C:C,\"\")","v":{"$error":"#NAME?"}},"project_sub.uptime","project_sub","uptime","datetime",null,"是"]
[{"$f":"_xludf.XLOOKUP(B402,資料欄位列表!C:C,資料欄位列表!C:C,\"\")","v":{"$error":"#NAME?"}},"project_sub.reg_time","project_sub","reg_time","datetime",null,"是"]
[{"$f":"_xludf.XLOOKUP(B403,資料欄位列表!C:C,資料欄位列表!C:C,\"\")","v":{"$error":"#NAME?"}},"project_sub.word","project_sub","word","nvarchar","MAX","是"]
[{"$f":"_xludf.XLOOKUP(B404,資料欄位列表!C:C,資料欄位列表!C:C,\"\")","v":{"$error":"#NAME?"}},"project_sub.pic1","project_sub","pic1","nvarchar",100,"是"]
[{"$f":"_xludf.XLOOKUP(B405,資料欄位列表!C:C,資料欄位列表!C:C,\"\")","v":{"$error":"#NAME?"}},"project_sub.pro_id","project_sub","pro_id","int",null,"是","FK_project_sub_project","project"]
[{"$f":"_xludf.XLOOKUP(B406,資料欄位列表!C:C,資料欄位列表!C:C,\"\")","v":{"$error":"#NAME?"}},"stock.num","stock","num","int",null,"否"]
[{"$f":"_xludf.XLOOKUP(B407,資料欄位列表!C:C,資料欄位列表!C:C,\"\")","v":{"$error":"#NAME?"}},"stock.uptime","stock","uptime","datetime",null,"是"]
[{"$f":"_xludf.XLOOKUP(B408,資料欄位列表!C:C,資料欄位列表!C:C,\"\")","v":{"$error":"#NAME?"}},"stock.category","stock","category","int",null,"是"]
[{"$f":"_xludf.XLOOKUP(B409,資料欄位列表!C:C,資料欄位列表!C:C,\"\")","v":{"$error":"#NAME?"}},"stock.kind","stock","kind","int",null,"是","FK_stock_stock_kind","stock_kind"]
[{"$f":"_xludf.XLOOKUP(B410,資料欄位列表!C:C,資料欄位列表!C:C,\"\")","v":{"$error":"#NAME?"}},"stock.activity_num","stock","activity_num","int",null,"是","FK_stock_activity","activity"]
[{"$f":"_xludf.XLOOKUP(B411,資料欄位列表!C:C,資料欄位列表!C:C,\"\")","v":{"$error":"#NAME?"}},"stock.actItem_num","stock","actItem_num","int",null,"是","FK_stock_actItem","actItem"]
[{"$f":"_xludf.XLOOKUP(B412,資料欄位列表!C:C,資料欄位列表!C:C,\"\")","v":{"$error":"#NAME?"}},"stock.qty","stock","qty","int",null,"是"]
[{"$f":"_xludf.XLOOKUP(B413,資料欄位列表!C:C,資料欄位列表!C:C,\"\")","v":{"$error":"#NAME?"}},"stock.price","stock","price","real",null,"是"]
[{"$f":"_xludf.XLOOKUP(B414,資料欄位列表!C:C,資料欄位列表!C:C,\"\")","v":{"$error":"#NAME?"}},"stock.demo","stock","demo","nvarchar","MAX","是"]
[{"$f":"_xludf.XLOOKUP(B415,資料欄位列表!C:C,資料欄位列表!C:C,\"\")","v":{"$error":"#NAME?"}},"stock.reg_time","stock","reg_time","datetime",null,"是"]
[{"$f":"_xludf.XLOOKUP(B416,資料欄位列表!C:C,資料欄位列表!C:C,\"\")","v":{"$error":"#NAME?"}},"stock.mem_num","stock","mem_num","int",null,"是","FK_stock_member","member"]
[{"$f":"_xludf.XLOOKUP(B417,資料欄位列表!C:C,資料欄位列表!C:C,\"\")","v":{"$error":"#NAME?"}},"stock.debtor","stock","debtor","nvarchar",40,"是"]
[{"$f":"_xludf.XLOOKUP(B418,資料欄位列表!C:C,資料欄位列表!C:C,\"\")","v":{"$error":"#NAME?"}},"stock.balances","stock","balances","int",null,"是"]
[{"$f":"_xludf.XLOOKUP(B419,資料欄位列表!C:C,資料欄位列表!C:C,\"\")","v":{"$error":"#NAME?"}},"stock.reason","stock","reason","int",null,"是","FK_stock_stock_reason","stock_reason"]
[{"$f":"_xludf.XLOOKUP(B420,資料欄位列表!C:C,資料欄位列表!C:C,\"\")","v":{"$error":"#NAME?"}},"stock.supplier","stock","supplier","int",null,"是","FK_stock_supplier","supplier"]
[{"$f":"_xludf.XLOOKUP(B421,資料欄位列表!C:C,資料欄位列表!C:C,\"\")","v":{"$error":"#NAME?"}},"stock.final_stock","stock","final_stock","int",null,"是"]
[{"$f":"_xludf.XLOOKUP(B422,資料欄位列表!C:C,資料欄位列表!C:C,\"\")","v":{"$error":"#NAME?"}},"stock.rent_stock","stock","rent_stock","int",null,"是"]
[{"$f":"_xludf.XLOOKUP(B423,資料欄位列表!C:C,資料欄位列表!C:C,\"\")","v":{"$error":"#NAME?"}},"stock_files.num","stock_files","num","int",null,"否"]
[{"$f":"_xludf.XLOOKUP(B424,資料欄位列表!C:C,資料欄位列表!C:C,\"\")","v":{"$error":"#NAME?"}},"stock_files.stock_num","stock_files","stock_num","int",null,"是","FK_stock_files_stock","stock"]
[{"$f":"_xludf.XLOOKUP(B425,資料欄位列表!C:C,資料欄位列表!C:C,\"\")","v":{"$error":"#NAME?"}},"stock_files.reg_time","stock_files","reg_time","datetime",null,"是"]
[{"$f":"_xludf.XLOOKUP(B426,資料欄位列表!C:C,資料欄位列表!C:C,\"\")","v":{"$error":"#NAME?"}},"stock_files.pic1","stock_files","pic1","nvarchar",100,"是"]
[{"$f":"_xludf.XLOOKUP(B427,資料欄位列表!C:C,資料欄位列表!C:C,\"\")","v":{"$error":"#NAME?"}},"stock_files.pic1_name","stock_files","pic1_name","nvarchar",300,"是"]
[{"$f":"_xludf.XLOOKUP(B428,資料欄位列表!C:C,資料欄位列表!C:C,\"\")","v":{"$error":"#NAME?"}},"stock_kind.num","stock_kind","num","int",null,"否"]
[{"$f":"_xludf.XLOOKUP(B429,資料欄位列表!C:C,資料欄位列表!C:C,\"\")","v":{"$error":"#NAME?"}},"stock_kind.kind","stock_kind","kind","nvarchar",200,"是"]
[{"$f":"_xludf.XLOOKUP(B430,資料欄位列表!C:C,資料欄位列表!C:C,\"\")","v":{"$error":"#NAME?"}},"stock_kind.root","stock_kind","root","int",null,"是"]
[{"$f":"_xludf.XLOOKUP(B431,資料欄位列表!C:C,資料欄位列表!C:C,\"\")","v":{"$error":"#NAME?"}},"stock_kind.range","stock_kind","range","int",null,"是"]
[{"$f":"_xludf.XLOOKUP(B432,資料欄位列表!C:C,資料欄位列表!C:C,\"\")","v":{"$error":"#NAME?"}},"stock_kind.demo","stock_kind","demo","nvarchar","MAX","是"]
[{"$f":"_xludf.XLOOKUP(B433,資料欄位列表!C:C,資料欄位列表!C:C,\"\")","v":{"$error":"#NAME?"}},"stock_reason.num","stock_reason","num","int",null,"否"]
[{"$f":"_xludf.XLOOKUP(B434,資料欄位列表!C:C,資料欄位列表!C:C,\"\")","v":{"$error":"#NAME?"}},"stock_reason.kind","stock_reason","kind","nvarchar",200,"是"]
[{"$f":"_xludf.XLOOKUP(B435,資料欄位列表!C:C,資料欄位列表!C:C,\"\")","v":{"$error":"#NAME?"}},"stock_reason.root","stock_reason","root","int",null,"是"]
[{"$f":"_xludf.XLOOKUP(B436,資料欄位列表!C:C,資料欄位列表!C:C,\"\")","v":{"$error":"#NAME?"}},"stock_reason.range","stock_reason","range","int",null,"是"]
[{"$f":"_xludf.XLOOKUP(B437,資料欄位列表!C:C,資料欄位列表!C:C,\"\")","v":{"$error":"#NAME?"}},"stock_reason.category","stock_reason","category","int",null,"是"]
[{"$f":"_xludf.XLOOKUP(B438,資料欄位列表!C:C,資料欄位列表!C:C,\"\")","v":{"$error":"#NAME?"}},"supplier.num","supplier","num","int",null,"否"]
[{"$f":"_xludf.XLOOKUP(B439,資料欄位列表!C:C,資料欄位列表!C:C,\"\")","v":{"$error":"#NAME?"}},"supplier.s_number","supplier","s_number","nvarchar",40,"是"]
[{"$f":"_xludf.XLOOKUP(B440,資料欄位列表!C:C,資料欄位列表!C:C,\"\")","v":{"$error":"#NAME?"}},"supplier.u_name","supplier","u_name","nvarchar",40,"是"]
[{"$f":"_xludf.XLOOKUP(B441,資料欄位列表!C:C,資料欄位列表!C:C,\"\")","v":{"$error":"#NAME?"}},"supplier.kind","supplier","kind","int",null,"是","FK_supplier_supplier_kind","supplier_kind"]
[{"$f":"_xludf.XLOOKUP(B442,資料欄位列表!C:C,資料欄位列表!C:C,\"\")","v":{"$error":"#NAME?"}},"supplier.phone2","supplier","phone2","nvarchar","MAX","是"]
[{"$f":"_xludf.XLOOKUP(B443,資料欄位列表!C:C,資料欄位列表!C:C,\"\")","v":{"$error":"#NAME?"}},"supplier.phone1","supplier","phone1","nvarchar","MAX","是"]
[{"$f":"_xludf.XLOOKUP(B444,資料欄位列表!C:C,資料欄位列表!C:C,\"\")","v":{"$error":"#NAME?"}},"supplier.address","supplier","address","nvarchar",400,"是"]
[{"$f":"_xludf.XLOOKUP(B445,資料欄位列表!C:C,資料欄位列表!C:C,\"\")","v":{"$error":"#NAME?"}},"supplier.fax","supplier","fax","nvarchar","MAX","是"]
[{"$f":"_xludf.XLOOKUP(B446,資料欄位列表!C:C,資料欄位列表!C:C,\"\")","v":{"$error":"#NAME?"}},"supplier.email","supplier","email","nvarchar",400,"是"]
[{"$f":"_xludf.XLOOKUP(B447,資料欄位列表!C:C,資料欄位列表!C:C,\"\")","v":{"$error":"#NAME?"}},"supplier.url","supplier","url","nvarchar","MAX","是"]
[{"$f":"_xludf.XLOOKUP(B448,資料欄位列表!C:C,資料欄位列表!C:C,\"\")","v":{"$error":"#NAME?"}},"supplier.pic1","supplier","pic1","nvarchar",100,"是"]
[{"$f":"_xludf.XLOOKUP(B449,資料欄位列表!C:C,資料欄位列表!C:C,\"\")","v":{"$error":"#NAME?"}},"supplier.demo","supplier","demo","nvarchar","MAX","是"]
[{"$f":"_xludf.XLOOKUP(B450,資料欄位列表!C:C,資料欄位列表!C:C,\"\")","v":{"$error":"#NAME?"}},"supplier.reg_time","supplier","reg_time","datetime",null,"是"]
[{"$f":"_xludf.XLOOKUP(B451,資料欄位列表!C:C,資料欄位列表!C:C,\"\")","v":{"$error":"#NAME?"}},"supplier.admin_log","supplier","admin_log","nvarchar",100,"是"]
[{"$f":"_xludf.XLOOKUP(B452,資料欄位列表!C:C,資料欄位列表!C:C,\"\")","v":{"$error":"#NAME?"}},"supplier.c_num","supplier","c_num","nvarchar",16,"是"]
[{"$f":"_xludf.XLOOKUP(B453,資料欄位列表!C:C,資料欄位列表!C:C,\"\")","v":{"$error":"#NAME?"}},"supplier_kind.num","supplier_kind","num","int",null,"否"]
[{"$f":"_xludf.XLOOKUP(B454,資料欄位列表!C:C,資料欄位列表!C:C,\"\")","v":{"$error":"#NAME?"}},"supplier_kind.kind","supplier_kind","kind","nvarchar",200,"是"]
[{"$f":"_xludf.XLOOKUP(B455,資料欄位列表!C:C,資料欄位列表!C:C,\"\")","v":{"$error":"#NAME?"}},"supplier_kind.root","supplier_kind","root","int",null,"是"]
[{"$f":"_xludf.XLOOKUP(B456,資料欄位列表!C:C,資料欄位列表!C:C,\"\")","v":{"$error":"#NAME?"}},"supplier_kind.range","supplier_kind","range","int",null,"是"]
[{"$f":"_xludf.XLOOKUP(B457,資料欄位列表!C:C,資料欄位列表!C:C,\"\")","v":{"$error":"#NAME?"}},"supplier_kind.demo","supplier_kind","demo","nvarchar","MAX","是"]

{"sheet":"memo","index":5,"n_rows":5,"n_cols":2,"rows_kept":5,"hidden":true}
["LIST TABLES AND PK"]
[null,"SELECT tab.TABLE_NAME, tab.CONSTRAINT_NAME, Col.Column_Name from \n    INFORMATION_SCHEMA.TABLE_CONSTRAINTS Tab, \n    INFORMATION_SCHEMA.CONSTRAINT_COLUMN_USAGE Col \nWHERE \n    Col.Constraint_Name = Tab.Constraint_Name\n    AND Col.Table_Name = Tab.Table_Name\n    AND Tab.Constraint_Type = 'PRIMARY KEY'\nORDER BY TABLE_NAME"]
[]
[]
[null,"SELECT \n    c.name 'Column Name',\n    t.Name 'Data type',\n    c.max_length 'Max Length',\n    c.precision ,\n    c.scale ,\n    c.is_nullable,\n    ISNULL(i.is_primary_key, 0) 'Primary Key'\nFROM    \n    sys.columns c\nINNER JOIN \n    sys.types t ON c.user_type_id = t.user_type_id\nLEFT OUTER JOIN \n    sys.index_columns ic ON ic.object_id = c.object_id AND ic.column_id = c.column_id\nLEFT OUTER JOIN \n    sys.indexes i ON ic.object_id = i.object_id AND ic.index_id = i.index_id\nWHERE\n    c.object_id = OBJECT_ID('YourTableName')"]